Workbook

Sheet Chrono+Classement (hidden)
A1: 59423.89062 | C1: La NOBLE'RACE le 25 Mai 2015 | T1: Départ différé
O2: 0.1638310185
C4: Plaque | E4: NOM | G4: Plaque | K4: Classement | O4: Temps | T4: Temps écoulé
G5: arrivée
C6: 1 | E6: ='Noms des inscrits'!B2 -> VASSAL-Thibaut | G6: 403 | K6: 1 | M6: =IF(G6>0,LOOKUP(G6,C$6:E$22234),"") -> BIBET-Laurent | O6: 01:26:55
C7: 2 | E7: ='Noms des inscrits'!B3 -> PERUSIN-Benjamin | G7: 407 | K7: =K6+1 -> 2 | M7: PASQUET-Daniel | O7: 01:28:32 | T7: =O2 -> 03:55:55
C8: 3 | E8: ='Noms des inscrits'!B4 -> TAILLEFER-Loïc | G8: 402 | K8: =K7+1 -> 3 | M8: CONFOLENS-Eric | O8: 01:31:55
C9: 4 | E9: ='Noms des inscrits'!B5 -> LAPEYRE-Martin | G9: 413 | K9: 4 | M9: DELAHAYE-Fabrice | O9: 01:31:57
C10: 5 | E10: ='Noms des inscrits'!B6 -> PENDERIES-Frédéric | G10: 411 | K10: 5 | M10: LIABAT-Stéphane | O10: 01:41:04
C11: 6 | E11: ='Noms des inscrits'!B7 -> DELFINO-Benjamin | G11: 408 | K11: 6 | M11: COSTES-Joel | O11: 01:43:05
C12: 7 | E12: ='Noms des inscrits'!B8 -> PETIT-François | G12: 410 | K12: 7 | M12: CUBURY-Thierry | O12: 01:49:06
C13: 8 | E13: ='Noms des inscrits'!B9 -> REMY-Julien | G13: 409 | K13: 8 | M13: TEYSSIER-Eric | O13: 01:50:53
C14: 9 | E14: ='Noms des inscrits'!B10 -> RAMOUSSE-Arnaud | G14: 406 | K14: 9 | M14: FAGEDET-Pascal | O14: 01:53:18
C15: 10 | E15: ='Noms des inscrits'!B11 -> XIMENES-Thibaut | G15: 400 | K15: 10 | M15: SANCHEZ-Mathias | O15: 02:07:38
C16: 11 | E16: ='Noms des inscrits'!B12 -> FOURNALES-Olivier | G16: 1 | K16: 11 | M16: VASSAL-Thibaut | O16: 02:11:41
C17: 12 | E17: ='Noms des inscrits'!B13 -> PERRIE-Mathieu | G17: 401 | K17: 12 | M17: CHAUVET-Clara | O17: 02:11:47
C18: 13 | E18: ='Noms des inscrits'!B14 -> BLOT-Jean-Baptiste | G18: 47 | K18: 13 | M18: BORN-Vivian | O18: 02:13:47
C19: 14 | E19: ='Noms des inscrits'!B15 -> NADEAU-Frédéric | G19: 20 | K19: 14 | M19: FALOPPA-Christophe | O19: 02:16:59
C20: 15 | E20: ='Noms des inscrits'!B16 -> METRO-Alex | G20: 26 | K20: 15 | M20: COUSTILLERES-Christophe | O20: 02:19:11
C21: 16 | E21: ='Noms des inscrits'!B17 -> VILA-Sébastien | G21: 15 | K21: 16 | M21: METRO-Alex | O21: 02:20:41
C22: 17 | E22: ='Noms des inscrits'!B18 -> PECHBERRY-Laurent | G22: 21 | K22: 17 | M22: RIVALS-Eric | O22: 02:23:08
C23: 18 | E23: ='Noms des inscrits'!B19 -> DUPIN-Damien | G23: 2 | K23: =K22+1 -> 18 | M23: PERUSIN-Benjamin | O23: 02:23:43
C24: 19 | E24: ='Noms des inscrits'!B20 -> MONCASSIN-Jonathan | G24: 44 | K24: =K23+1 -> 19 | M24: MATHIEU-Sebastien | O24: 02:25:57
C25: 20 | E25: ='Noms des inscrits'!B21 -> FALOPPA-Christophe | G25: 11 | K25: 20 | M25: FOURNALES-Olivier | O25: 02:26:23
C26: 21 | E26: ='Noms des inscrits'!B22 -> RIVALS-Eric | G26: 42 | K26: 21 | M26: JOULIE-Nicolas | O26: 02:27:52
C27: 22 | E27: ='Noms des inscrits'!B23 -> ROUANET-Xavier | G27: 17 | K27: 22 | M27: PECHBERRY-Laurent | O27: 02:28:21
C28: 23 | E28: ='Noms des inscrits'!B24 -> SERRES-Benoit | G28: 23 | K28: 23 | M28: SERRES-Benoit | O28: 02:28:31
C29: 24 | E29: ='Noms des inscrits'!B25 -> TACHON-Bruno | G29: 34 | K29: 24 | M29: GAYRAL-Michael | O29: 02:29:56
C30: 25 | E30: ='Noms des inscrits'!B26 -> AUMAGY-Nicolas | G30: 39 | K30: 25 | M30: BARCELO-Thierry | O30: 02:32:30
C31: 26 | E31: ='Noms des inscrits'!B27 -> COUSTILLERES-Christophe | G31: 28 | K31: 26 | M31: FENASSE-Damien | O31: 02:33:02
C32: 27 | E32: ='Noms des inscrits'!B28 -> FENASSE-Frederic | G32: 22 | K32: 27 | M32: ROUANET-Xavier | O32: 02:34:17
C33: 28 | E33: ='Noms des inscrits'!B29 -> FENASSE-Damien | G33: 32 | K33: =K32+1 -> 28 | M33: DIAS SOEIRO-Eric | O33: 02:34:32
C34: 29 | E34: ='Noms des inscrits'!B30 -> LARRIPA-Bruno | G34: 38 | K34: 29 | M34: PAGES-Yves | O34: 02:34:47
C35: 30 | E35: ='Noms des inscrits'!B31 -> GINESTE-Antony | G35: 40 | K35: 30 | M35: GAYRAUD-Cédric | O35: 02:35:53
C36: 31 | E36: ='Noms des inscrits'!B32 -> ROCHE-Damien | G36: 14 | K36: 31 | M36: NADEAU-Frédéric | O36: 02:36:14
C37: 32 | E37: ='Noms des inscrits'!B33 -> DIAS SOEIRO-Eric | G37: 18 | K37: 32 | M37: DUPIN-Damien | O37: 02:36:58
C38: 33 | E38: ='Noms des inscrits'!B34 -> VIGROOX-Gaetan | G38: 8 | K38: 33 | M38: =IF(G38>0,LOOKUP(G38,C$6:E$22234),"") -> REMY-Julien | O38: 02:37:01
C39: 34 | E39: ='Noms des inscrits'!B35 -> GAYRAL-Michael | G39: 6 | K39: 34 | M39: DELFINO-Benjamin | O39: 02:39:56
C40: 35 | E40: ='Noms des inscrits'!B36 -> BARBANSON-Xavier | G40: 13 | K40: 35 | M40: BLOT-Jean-Baptiste | O40: 02:44:45
C41: 36 | E41: ='Noms des inscrits'!B37 -> RALECHE-Jean-Michel | G41: 43 | K41: 36 | M41: SIGOT-François | O41: 02:44:53
C42: 37 | E42: ='Noms des inscrits'!B38 -> CARTRON-Jacques | G42: 9 | K42: 37 | M42: RAMOUSSE-Arnaud | O42: 02:51:06
C43: 38 | E43: ='Noms des inscrits'!B39 -> PAGES-Yves | G43: 27 | K43: 38 | M43: FENASSE-Frederic | O43: 02:51:16
C44: 39 | E44: ='Noms des inscrits'!B40 -> BARCELO-Thierry | G44: 16 | K44: 39 | M44: VILA-Sébastien | O44: 02:52:28
C45: 40 | E45: ='Noms des inscrits'!B41 -> GAYRAUD-Cédric | G45: 412 | K45: 40 | M45: TURON-David | O45: 03:03:34
C46: 41 | E46: ='Noms des inscrits'!B42 -> NICE-Stephane | G46: 12 | K46: 41 | M46: PERRIE-Mathieu | O46: 03:05:32
C47: 42 | E47: ='Noms des inscrits'!B43 -> JOULIE-Nicolas | G47: 30 | K47: 42 | M47: GINESTE-Antony | O47: 03:12:48
C48: 43 | E48: ='Noms des inscrits'!B44 -> SIGOT-François | G48: 404 | K48: 43 | M48: SIRVEN-Patrick | O48: 03:14:19
C49: 44 | E49: ='Noms des inscrits'!B45 -> MATHIEU-Sebastien | G49: 3 | K49: 44 | M49: TAILLEFER-Loïc | O49: 03:14:25
C50: 45 | E50: ='Noms des inscrits'!B46 -> SIRGUE-Jérome | G50: 10 | K50: 45 | M50: XIMENES-Thibaut | O50: 03:14:50
C51: 46 | E51: ='Noms des inscrits'!B47 -> JOUVE-Dominique | G51: 37 | K51: 46 | M51: CARTRON-Jacques | O51: 03:15:54
C52: 47 | E52: ='Noms des inscrits'!B48 -> BORN-Vivian | G52: 45 | K52: 47 | M52: SIRGUE-Jérome | O52: 03:19:02
C53: 48 | E53: ='Noms des inscrits'!B49 -> - | G53: 33 | K53: 48 | M53: VIGROOX-Gaetan | O53: 03:19:11
C54: 49 | E54: ='Noms des inscrits'!B50 -> - | G54: 29 | K54: 49 | M54: LARRIPA-Bruno | O54: 03:22:24
C55: 50 | E55: ='Noms des inscrits'!B51 -> - | G55: 7 | K55: 50 | M55: PETIT-François | O55: 03:23:07
C56: 51 | E56: ='Noms des inscrits'!B52 -> - | G56: 4 | K56: 51 | M56: LAPEYRE-Martin | O56: 03:23:41
C57: 52 | E57: ='Noms des inscrits'!B53 -> - | G57: 5 | K57: =K56+1 -> 52 | M57: PENDERIES-Frédéric | O57: 03:27:23
C58: 53 | E58: ='Noms des inscrits'!B54 -> - | G58: 36 | K58: 53 | M58: RALECHE-Jean-Michel | O58: 03:31:07
C59: 54 | E59: ='Noms des inscrits'!B55 -> - | G59: 19 | K59: 54 | M59: MONCASSIN-Jonathan | O59: 03:33:39
C60: 55 | E60: ='Noms des inscrits'!B56 -> - | G60: 46 | K60: 55 | M60: JOUVE-Dominique | O60: 03:35:57
C61: 56 | E61: ='Noms des inscrits'!B57 -> - | G61: 41 | K61: 56 | M61: NICE-Stephane | O61: 03:45:41
C62: 57 | E62: ='Noms des inscrits'!B58 -> - | G62: 24 | K62: 57 | M62: TACHON-Bruno | O62: 03:53:11
C63: 58 | E63: ='Noms des inscrits'!B59 -> - | K63: 58
C64: 59 | E64: ='Noms des inscrits'!B60 -> - | K64: 59
C65: 60 | E65: ='Noms des inscrits'!B61 -> - | K65: 60
C66: 61 | E66: ='Noms des inscrits'!B62 -> - | K66: 61
C67: 62 | E67: ='Noms des inscrits'!B63 -> - | K67: 62
C68: 63 | E68: ='Noms des inscrits'!B64 -> - | K68: 63
C69: 64 | E69: ='Noms des inscrits'!B65 -> - | K69: 64
C70: 65 | E70: ='Noms des inscrits'!B66 -> - | K70: 65 | M70: =IF(G70>0,LOOKUP(G70,C$6:E$22234),"") -> 
C71: 66 | E71: ='Noms des inscrits'!B67 -> - | K71: 66
C72: 67 | E72: ='Noms des inscrits'!B68 -> - | K72: 67
C73: 68 | E73: ='Noms des inscrits'!B69 -> - | K73: 68
C74: 69 | E74: ='Noms des inscrits'!B70 -> - | K74: 69
C75: 70 | E75: ='Noms des inscrits'!B71 -> - | K75: 70
C76: 71 | E76: ='Noms des inscrits'!B72 -> - | K76: 71
C77: 72 | E77: ='Noms des inscrits'!B73 -> - | K77: 72
C78: 73 | E78: ='Noms des inscrits'!B74 -> - | K78: 73
C79: 74 | E79: ='Noms des inscrits'!B75 -> - | K79: 74
C80: 75 | E80: ='Noms des inscrits'!B76 -> - | K80: 75
C81: 76 | E81: ='Noms des inscrits'!B77 -> - | K81: 76
C82: 77 | E82: ='Noms des inscrits'!B78 -> - | K82: 77
C83: 78 | E83: ='Noms des inscrits'!B79 -> - | K83: 78
C84: 79 | E84: ='Noms des inscrits'!B80 -> - | K84: 79
C85: 80 | E85: ='Noms des inscrits'!B81 -> - | K85: 80
C86: 81 | E86: ='Noms des inscrits'!B82 -> - | K86: 81
C87: 82 | E87: ='Noms des inscrits'!B83 -> - | K87: 82
C88: 83 | E88: ='Noms des inscrits'!B84 -> - | K88: 83
C89: 84 | E89: ='Noms des inscrits'!B85 -> - | K89: 84
C90: 85 | E90: ='Noms des inscrits'!B86 -> - | K90: 85
C91: 86 | E91: ='Noms des inscrits'!B87 -> - | K91: 86
C92: 87 | E92: ='Noms des inscrits'!B88 -> - | K92: 87
C93: 88 | E93: ='Noms des inscrits'!B89 -> - | K93: 88
C94: 89 | E94: ='Noms des inscrits'!B90 -> - | K94: 89
C95: 90 | E95: ='Noms des inscrits'!B91 -> - | K95: 90
C96: 91 | E96: ='Noms des inscrits'!B92 -> - | K96: 91
C97: 92 | E97: ='Noms des inscrits'!B93 -> - | K97: 92
C98: 93 | E98: ='Noms des inscrits'!B94 -> - | K98: 93
C99: 94 | E99: ='Noms des inscrits'!B95 -> - | K99: 94
C100: 95 | E100: ='Noms des inscrits'!B96 -> - | K100: 95
C101: 96 | E101: ='Noms des inscrits'!B97 -> - | K101: 96
C102: 97 | E102: ='Noms des inscrits'!B98 -> - | K102: 97
C103: 98 | E103: ='Noms des inscrits'!B99 -> - | K103: 98
C104: 99 | E104: ='Noms des inscrits'!B100 -> - | K104: 99
C105: 100 | E105: ='Noms des inscrits'!B101 -> - | K105: 100
C106: 101 | E106: ='Noms des inscrits'!B102 -> - | K106: 101 | M106: =IF(G106>0,LOOKUP(G106,C$6:E$22234),"") -> 
C107: 102 | E107: ='Noms des inscrits'!B103 -> - | K107: 102
C108: 103 | E108: ='Noms des inscrits'!B104 -> - | K108: 103
C109: 104 | E109: ='Noms des inscrits'!B105 -> - | K109: 104
C110: 105 | E110: ='Noms des inscrits'!B106 -> - | K110: 105
C111: 106 | E111: ='Noms des inscrits'!B107 -> - | K111: 106
C112: 107 | E112: ='Noms des inscrits'!B108 -> - | K112: 107
C113: 108 | E113: ='Noms des inscrits'!B109 -> - | K113: 108
C114: 109 | E114: ='Noms des inscrits'!B110 -> - | K114: 109
C115: 110 | E115: ='Noms des inscrits'!B111 -> - | K115: 110
C116: 111 | E116: ='Noms des inscrits'!B112 -> - | K116: 111
C117: 112 | E117: ='Noms des inscrits'!B113 -> - | K117: 112
C118: 113 | E118: ='Noms des inscrits'!B114 -> - | K118: 113
C119: 114 | E119: ='Noms des inscrits'!B115 -> - | K119: 114
C120: 115 | E120: ='Noms des inscrits'!B116 -> - | K120: 115
C121: 116 | E121: ='Noms des inscrits'!B117 -> - | K121: =K120+1 -> 116
C122: 117 | E122: ='Noms des inscrits'!B118 -> - | K122: 117
C123: 118 | E123: ='Noms des inscrits'!B119 -> - | K123: 118
C124: 119 | E124: ='Noms des inscrits'!B120 -> - | K124: 119
C125: 120 | E125: ='Noms des inscrits'!B121 -> - | K125: 120
C126: 121 | E126: ='Noms des inscrits'!B122 -> - | K126: 121
C127: 122 | E127: ='Noms des inscrits'!B123 -> - | K127: 122
C128: 123 | E128: ='Noms des inscrits'!B124 -> - | K128: 123
C129: 124 | E129: ='Noms des inscrits'!B125 -> - | K129: 124
C130: 125 | E130: ='Noms des inscrits'!B126 -> - | K130: 125
C131: 126 | E131: ='Noms des inscrits'!B127 -> - | K131: 126
C132: 127 | E132: ='Noms des inscrits'!B128 -> - | K132: 127
C133: 128 | E133: ='Noms des inscrits'!B129 -> - | K133: 128
C134: 129 | E134: ='Noms des inscrits'!B130 -> - | K134: 129
C135: 130 | E135: ='Noms des inscrits'!B131 -> - | K135: 130
C136: 131 | E136: ='Noms des inscrits'!B132 -> - | K136: 131
C137: 132 | E137: ='Noms des inscrits'!B133 -> - | K137: 132
C138: 133 | E138: ='Noms des inscrits'!B134 -> - | K138: 133
C139: 134 | E139: ='Noms des inscrits'!B135 -> - | K139: 134
C140: 135 | E140: ='Noms des inscrits'!B136 -> - | K140: 135
C141: 136 | E141: ='Noms des inscrits'!B137 -> - | K141: 136
C142: 137 | E142: ='Noms des inscrits'!B138 -> - | K142: 137
C143: 138 | E143: ='Noms des inscrits'!B139 -> - | K143: 138
C144: 139 | E144: ='Noms des inscrits'!B140 -> - | K144: 139
C145: 140 | E145: ='Noms des inscrits'!B141 -> - | K145: 140
C146: 141 | E146: ='Noms des inscrits'!B142 -> - | K146: 141
C147: 142 | E147: ='Noms des inscrits'!B143 -> - | K147: 142
C148: 143 | E148: ='Noms des inscrits'!B144 -> - | K148: 143
C149: 144 | E149: ='Noms des inscrits'!B145 -> - | K149: 144
C150: 145 | E150: ='Noms des inscrits'!B146 -> - | K150: 145
C151: 146 | E151: ='Noms des inscrits'!B147 -> - | K151: 146
C152: 147 | E152: ='Noms des inscrits'!B148 -> - | K152: 147
C153: 148 | E153: ='Noms des inscrits'!B149 -> - | K153: 148
C154: 149 | E154: ='Noms des inscrits'!B150 -> - | K154: 149
C155: 150 | E155: ='Noms des inscrits'!B151 -> - | K155: 150
C156: 151 | E156: ='Noms des inscrits'!B152 -> - | K156: 151
C157: 152 | E157: ='Noms des inscrits'!B153 -> - | K157: 152
C158: 153 | E158: ='Noms des inscrits'!B154 -> - | K158: 153
C159: 154 | E159: ='Noms des inscrits'!B155 -> - | K159: 154
C160: 155 | E160: ='Noms des inscrits'!B156 -> - | K160: 155
C161: 156 | E161: ='Noms des inscrits'!B157 -> - | K161: 156
C162: 157 | E162: ='Noms des inscrits'!B158 -> - | K162: 157
C163: 158 | E163: ='Noms des inscrits'!B159 -> - | K163: 158
C164: 159 | E164: ='Noms des inscrits'!B160 -> - | K164: 159
C165: 160 | E165: ='Noms des inscrits'!B161 -> - | K165: 160
C166: 161 | E166: ='Noms des inscrits'!B162 -> - | K166: 161
C167: 162 | E167: ='Noms des inscrits'!B163 -> - | K167: 162
C168: 163 | E168: ='Noms des inscrits'!B164 -> - | K168: 163
C169: 164 | E169: ='Noms des inscrits'!B165 -> - | K169: 164
C170: 165 | E170: ='Noms des inscrits'!B166 -> - | K170: 165 | M170: =IF(G170>0,LOOKUP(G170,C$6:E$22234),"") -> 
C171: 166 | E171: ='Noms des inscrits'!B167 -> - | K171: 166
C172: 167 | E172: ='Noms des inscrits'!B168 -> - | K172: 167
C173: 168 | E173: ='Noms des inscrits'!B169 -> - | K173: 168
C174: 169 | E174: ='Noms des inscrits'!B170 -> - | K174: 169
C175: 170 | E175: ='Noms des inscrits'!B171 -> - | K175: 170
C176: 171 | E176: ='Noms des inscrits'!B172 -> - | K176: 171
C177: 172 | E177: ='Noms des inscrits'!B173 -> - | K177: 172
C178: 173 | E178: ='Noms des inscrits'!B174 -> - | K178: 173
C179: 174 | E179: ='Noms des inscrits'!B175 -> - | K179: 174
C180: 175 | E180: ='Noms des inscrits'!B176 -> - | K180: 175
C181: 176 | E181: ='Noms des inscrits'!B177 -> - | K181: 176
C182: 177 | E182: ='Noms des inscrits'!B178 -> - | K182: 177
C183: 178 | E183: ='Noms des inscrits'!B179 -> - | K183: 178
C184: 179 | E184: ='Noms des inscrits'!B180 -> - | K184: 179
C185: 180 | E185: ='Noms des inscrits'!B181 -> - | K185: =K184+1 -> 180
C186: 181 | E186: ='Noms des inscrits'!B182 -> - | K186: 181
C187: 182 | E187: ='Noms des inscrits'!B183 -> - | K187: 182
C188: 183 | E188: ='Noms des inscrits'!B184 -> - | K188: 183
C189: 184 | E189: ='Noms des inscrits'!B185 -> - | K189: 184
C190: 185 | E190: ='Noms des inscrits'!B186 -> - | K190: 185
C191: 186 | E191: ='Noms des inscrits'!B187 -> - | K191: 186
C192: 187 | E192: ='Noms des inscrits'!B188 -> - | K192: 187
C193: 188 | E193: ='Noms des inscrits'!B189 -> - | K193: 188
C194: 189 | E194: ='Noms des inscrits'!B190 -> - | K194: 189
C195: 190 | E195: ='Noms des inscrits'!B191 -> - | K195: 190
C196: 191 | E196: ='Noms des inscrits'!B192 -> - | K196: 191
C197: 192 | E197: ='Noms des inscrits'!B193 -> - | K197: 192
C198: 193 | E198: ='Noms des inscrits'!B194 -> - | K198: 193
C199: 194 | E199: ='Noms des inscrits'!B195 -> - | K199: 194
C200: 195 | E200: ='Noms des inscrits'!B196 -> - | K200: 195
C201: 196 | E201: ='Noms des inscrits'!B197 -> - | K201: 196
... 803 more rows

Sheet Noms des inscrits (hidden)
A1: Plaque | B1: Nom-Prénom | C1: NOM | D1: Prénom | E1: Sexe | F1: Date de naissance | G1: Age fin année | H1: Club | I1: Licence | J1: N° Licence | K1: Categorie | L1: Circuit | M1: Classement | N1: Temps | O1: Ecart Départ | P1: Temps Réel | R1: Année | S1: H | T1: F
A2: 1 | B2: =CONCATENATE(C2,"-",D2) -> VASSAL-Thibaut | C2: VASSAL | D2: Thibaut | E2: M | F2: 1975-01-16 | G2: =(TODAY()-F2)/365.25 -> 40.3559206 | H2: UV Mazamet | I2: FFC | J2: 2281031033 | K2: Masters 3/4 | L2: 45 | M2: =VLOOKUP(A2,'Chrono+Classement'!G:O,5,FALSE) -> 11 | N2: =VLOOKUP(A2,'Chrono+Classement'!G:O,9,FALSE) -> 02:11:41 | O2: =IF(L2=17,Param!G2,IF(L2=28,Param!H2,IF(L2=45,Param!I2))) -> 00:00:40 | P2: =N2-O2 -> 02:11:01 | R2: =YEAR(F2) -> 1975 | S2: =IF(E2="M",IF(R2<=1965,"Masters 5",IF(R2<=1975,"Masters 3/4",IF(R2<=1985,"Masters 1/2",IF(R2<=1992,"Hommes",IF(R2<=1996,"Espoirs",IF(R2<=1998,"Juniors",IF(R2<=2000,"Cadets",0)))))))) -> Masters 3/4 | T2: =IF(E2="F",IF(R2<=1992,"Dames",IF(R2<=1996,"Espoirs Dames",IF(R2<=1998,"Juniors Dames",IF(R2<=2000,"Cadettes",0))))) -> FALSE
A3: 2 | B3: PERUSIN-Benjamin | C3: PERUSIN | D3: Benjamin | E3: M | F3: 1986-02-08 | G3: 29.29226557 | H3: UVAGG | I3: FFC | J3: 2232048002 | K3: Hommes | L3: 45 | M3: =VLOOKUP(A3,'Chrono+Classement'!G:O,5,FALSE) -> 18 | N3: =VLOOKUP(A3,'Chrono+Classement'!G:O,9,FALSE) -> 02:23:43 | O3: =IF(L3=17,Param!G3,IF(L3=28,Param!H3,IF(L3=45,Param!I3))) -> 00:00:40 | P3: 02:23:03 | R3: 1986 | S3: Hommes | T3: FALSE
A4: 3 | B4: TAILLEFER-Loïc | C4: TAILLEFER | D4: Loïc | E4: M | F4: 1990-12-08 | G4: 24.46269678 | H4: TOAC | I4: FFC | J4: 2231105036 | K4: Hommes | L4: 45 | M4: =VLOOKUP(A4,'Chrono+Classement'!G:O,5,FALSE) -> 44 | N4: =VLOOKUP(A4,'Chrono+Classement'!G:O,9,FALSE) -> 03:14:25 | O4: =IF(L4=17,Param!G4,IF(L4=28,Param!H4,IF(L4=45,Param!I4))) -> 00:00:40 | P4: 03:13:45 | R4: 1990 | S4: Hommes | T4: FALSE
A5: 4 | B5: LAPEYRE-Martin | C5: LAPEYRE | D5: Martin | E5: M | F5: 1984-11-11 | G5: 30.53524983 | H5: TOAC | I5: FSGT | K5: Masters 1/2 | L5: 45 | M5: =VLOOKUP(A5,'Chrono+Classement'!G:O,5,FALSE) -> 51 | N5: =VLOOKUP(A5,'Chrono+Classement'!G:O,9,FALSE) -> 03:23:41 | O5: =IF(L5=17,Param!G5,IF(L5=28,Param!H5,IF(L5=45,Param!I5))) -> 00:00:40 | P5: 03:23:01 | R5: 1984 | S5: Masters 1/2 | T5: FALSE
A6: 5 | B6: PENDERIES-Frédéric | C6: PENDERIES | D6: Frédéric | E6: M | F6: 1975-12-30 | G6: 39.40314853 | H6: Team Racing Stephanois | I6: NL | K6: Masters 3/4 | L6: 45 | M6: =VLOOKUP(A6,'Chrono+Classement'!G:O,5,FALSE) -> 52 | N6: =VLOOKUP(A6,'Chrono+Classement'!G:O,9,FALSE) -> 03:27:23 | O6: =IF(L6=17,Param!G6,IF(L6=28,Param!H6,IF(L6=45,Param!I6))) -> 00:00:40 | P6: 03:26:43 | R6: 1975 | S6: Masters 3/4 | T6: FALSE
A7: 6 | B7: DELFINO-Benjamin | C7: DELFINO | D7: Benjamin | E7: M | F7: 1991-04-28 | G7: 24.07665982 | H7: Vélo Club Moyenne Durance | I7: FFC | J7: 2104148039 | K7: Hommes | L7: 45 | M7: =VLOOKUP(A7,'Chrono+Classement'!G:O,5,FALSE) -> 34 | N7: =VLOOKUP(A7,'Chrono+Classement'!G:O,9,FALSE) -> 02:39:56 | O7: =IF(L7=17,Param!G7,IF(L7=28,Param!H7,IF(L7=45,Param!I7))) -> 00:00:40 | P7: 02:39:16 | R7: 1991 | S7: Hommes | T7: FALSE
A8: 7 | B8: PETIT-François | C8: PETIT | D8: François | E8: M | F8: 1957-07-02 | G8: 57.8973306 | H8: Les Renardeaux du bas Quercy | I8: FFCT | K8: Masters 5 | L8: 45 | M8: =VLOOKUP(A8,'Chrono+Classement'!G:O,5,FALSE) -> 50 | N8: =VLOOKUP(A8,'Chrono+Classement'!G:O,9,FALSE) -> 03:23:07 | O8: =IF(L8=17,Param!G8,IF(L8=28,Param!H8,IF(L8=45,Param!I8))) -> 00:00:40 | P8: 03:22:27 | R8: 1957 | S8: Masters 5 | T8: FALSE
A9: 8 | B9: REMY-Julien | C9: REMY | D9: Julien | E9: M | F9: 1985-03-30 | G9: 30.15468857 | H9: CA Castelsarasin | I9: FFC | J9: 2282043200 | K9: Masters 1/2 | L9: 45 | M9: =VLOOKUP(A9,'Chrono+Classement'!G:O,5,FALSE) -> 33 | N9: =VLOOKUP(A9,'Chrono+Classement'!G:O,9,FALSE) -> 02:37:01 | O9: =IF(L9=17,Param!G9,IF(L9=28,Param!H9,IF(L9=45,Param!I9))) -> 00:00:40 | P9: 02:36:21 | R9: 1985 | S9: Masters 1/2 | T9: FALSE
A10: 9 | B10: RAMOUSSE-Arnaud | C10: RAMOUSSE | D10: Arnaud | E10: M | F10: 1972-07-28 | G10: 42.82546201 | H10: CPRS Pins Justaret | I10: FSGT | K10: Masters 3/4 | L10: 45 | M10: =VLOOKUP(A10,'Chrono+Classement'!G:O,5,FALSE) -> 37 | N10: =VLOOKUP(A10,'Chrono+Classement'!G:O,9,FALSE) -> 02:51:06 | O10: =IF(L10=17,Param!G10,IF(L10=28,Param!H10,IF(L10=45,Param!I10))) -> 00:00:40 | P10: 02:50:26 | R10: 1972 | S10: Masters 3/4 | T10: FALSE
A11: 10 | B11: XIMENES-Thibaut | C11: XIMENES | D11: Thibaut | E11: M | F11: 1988-11-15 | G11: 26.52429843 | I11: NL | K11: Hommes | L11: 45 | M11: =VLOOKUP(A11,'Chrono+Classement'!G:O,5,FALSE) -> 45 | N11: =VLOOKUP(A11,'Chrono+Classement'!G:O,9,FALSE) -> 03:14:50 | O11: =IF(L11=17,Param!G11,IF(L11=28,Param!H11,IF(L11=45,Param!I11))) -> 00:00:40 | P11: 03:14:10 | R11: 1988 | S11: Hommes | T11: FALSE
A12: 11 | B12: FOURNALES-Olivier | C12: FOURNALES | D12: Olivier | E12: M | F12: 1980-08-02 | G12: 34.81177276 | H12: CAC | I12: FFC | J12: 2282043252 | K12: Masters 1/2 | L12: 45 | M12: =VLOOKUP(A12,'Chrono+Classement'!G:O,5,FALSE) -> 20 | N12: =VLOOKUP(A12,'Chrono+Classement'!G:O,9,FALSE) -> 02:26:23 | O12: =IF(L12=17,Param!G12,IF(L12=28,Param!H12,IF(L12=45,Param!I12))) -> 00:00:40 | P12: 02:25:43 | R12: 1980 | S12: Masters 1/2 | T12: FALSE
A13: 12 | B13: PERRIE-Mathieu | C13: PERRIE | D13: Mathieu | E13: M | F13: 1987-05-06 | G13: 28.05475702 | H13: TOAC | I13: FSGT | K13: Hommes | L13: 45 | M13: =VLOOKUP(A13,'Chrono+Classement'!G:O,5,FALSE) -> 41 | N13: =VLOOKUP(A13,'Chrono+Classement'!G:O,9,FALSE) -> 03:05:32 | O13: =IF(L13=17,Param!G13,IF(L13=28,Param!H13,IF(L13=45,Param!I13))) -> 00:00:40 | P13: 03:04:52 | R13: 1987 | S13: Hommes | T13: FALSE
A14: 13 | B14: BLOT-Jean-Baptiste | C14: BLOT | D14: Jean-Baptiste | E14: M | F14: 1984-06-22 | G14: 30.92402464 | H14: VTT Cornebarieu | I14: NL | K14: Masters 1/2 | L14: 45 | M14: =VLOOKUP(A14,'Chrono+Classement'!G:O,5,FALSE) -> 35 | N14: =VLOOKUP(A14,'Chrono+Classement'!G:O,9,FALSE) -> 02:44:45 | O14: =IF(L14=17,Param!G14,IF(L14=28,Param!H14,IF(L14=45,Param!I14))) -> 00:00:40 | P14: 02:44:05 | R14: 1984 | S14: Masters 1/2 | T14: FALSE
A15: 14 | B15: NADEAU-Frédéric | C15: NADEAU | D15: Frédéric | E15: M | F15: 1984-12-10 | G15: 30.45585216 | H15: CHEVREUILS VTT | I15: FFC | J15: 0233030014 | K15: Masters 1/2 | L15: 45 | M15: =VLOOKUP(A15,'Chrono+Classement'!G:O,5,FALSE) -> 31 | N15: =VLOOKUP(A15,'Chrono+Classement'!G:O,9,FALSE) -> 02:36:14 | O15: =IF(L15=17,Param!G15,IF(L15=28,Param!H15,IF(L15=45,Param!I15))) -> 00:00:40 | P15: 02:35:34 | R15: 1984 | S15: Masters 1/2 | T15: FALSE
A16: 15 | B16: METRO-Alex | C16: METRO | D16: Alex | E16: M | F16: 1997-12-02 | G16: 17.47843943 | H16: VILLENEUVE Cycliste | I16: FFC | J16: 22311092102 | K16: Juniors | L16: 45 | M16: =VLOOKUP(A16,'Chrono+Classement'!G:O,5,FALSE) -> 16 | N16: =VLOOKUP(A16,'Chrono+Classement'!G:O,9,FALSE) -> 02:20:41 | O16: =IF(L16=17,Param!G16,IF(L16=28,Param!H16,IF(L16=45,Param!I16))) -> 00:00:40 | P16: 02:20:01 | R16: 1997 | S16: Juniors | T16: FALSE
A17: 16 | B17: VILA-Sébastien | C17: VILA | D17: Sébastien | E17: M | F17: 1981-09-14 | G17: 33.69472964 | H17: TOAC | I17: FFC | J17: 2231105031 | K17: Masters 1/2 | L17: 45 | M17: =VLOOKUP(A17,'Chrono+Classement'!G:O,5,FALSE) -> 39 | N17: =VLOOKUP(A17,'Chrono+Classement'!G:O,9,FALSE) -> 02:52:28 | O17: =IF(L17=17,Param!G17,IF(L17=28,Param!H17,IF(L17=45,Param!I17))) -> 00:00:40 | P17: 02:51:48 | R17: 1981 | S17: Masters 1/2 | T17: FALSE
A18: 17 | B18: PECHBERRY-Laurent | C18: PECHBERRY | D18: Laurent | E18: M | F18: 1970-02-01 | G18: 45.31143053 | H18: LOURDES VTT | I18: FFC | J18: 2265151274 | K18: Masters 3/4 | L18: 45 | M18: =VLOOKUP(A18,'Chrono+Classement'!G:O,5,FALSE) -> 22 | N18: =VLOOKUP(A18,'Chrono+Classement'!G:O,9,FALSE) -> 02:28:21 | O18: =IF(L18=17,Param!G18,IF(L18=28,Param!H18,IF(L18=45,Param!I18))) -> 00:00:40 | P18: 02:27:41 | R18: 1970 | S18: Masters 3/4 | T18: FALSE
A19: 18 | B19: DUPIN-Damien | C19: DUPIN | D19: Damien | E19: M | F19: 1993-09-03 | G19: 21.724846 | H19: Guidons Quercynois | I19: UFOLEP | K19: Espoirs | L19: 45 | M19: =VLOOKUP(A19,'Chrono+Classement'!G:O,5,FALSE) -> 32 | N19: =VLOOKUP(A19,'Chrono+Classement'!G:O,9,FALSE) -> 02:36:58 | O19: =IF(L19=17,Param!G19,IF(L19=28,Param!H19,IF(L19=45,Param!I19))) -> 00:00:40 | P19: 02:36:18 | R19: 1993 | S19: Espoirs | T19: FALSE
A20: 19 | B20: MONCASSIN-Jonathan | C20: MONCASSIN | D20: Jonathan | E20: M | F20: 1984-09-05 | G20: 30.71868583 | H20: Tarbes Pyrennées Cuyclisme | I20: FSGT | K20: Masters 1/2 | L20: 45 | M20: =VLOOKUP(A20,'Chrono+Classement'!G:O,5,FALSE) -> 54 | N20: =VLOOKUP(A20,'Chrono+Classement'!G:O,9,FALSE) -> 03:33:39 | O20: =IF(L20=17,Param!G20,IF(L20=28,Param!H20,IF(L20=45,Param!I20))) -> 00:00:40 | P20: 03:32:59 | R20: 1984 | S20: Masters 1/2 | T20: FALSE
A21: 20 | B21: FALOPPA-Christophe | C21: FALOPPA | D21: Christophe | E21: M | F21: 1981-11-03 | G21: 33.5578371 | H21: TOAC | I21: FFC | J21: 2231105074 | K21: Masters 1/2 | L21: 45 | M21: =VLOOKUP(A21,'Chrono+Classement'!G:O,5,FALSE) -> 14 | N21: =VLOOKUP(A21,'Chrono+Classement'!G:O,9,FALSE) -> 02:16:59 | O21: =IF(L21=17,Param!G21,IF(L21=28,Param!H21,IF(L21=45,Param!I21))) -> 00:00:40 | P21: 02:16:19 | R21: 1981 | S21: Masters 1/2 | T21: FALSE
A22: 21 | B22: RIVALS-Eric | C22: RIVALS | D22: Eric | E22: M | F22: 1983-05-18 | G22: 32.02190281 | H22: TOAC | I22: FFC | J22: 2231105023 | K22: Masters 1/2 | L22: 45 | M22: =VLOOKUP(A22,'Chrono+Classement'!G:O,5,FALSE) -> 17 | N22: =VLOOKUP(A22,'Chrono+Classement'!G:O,9,FALSE) -> 02:23:08 | O22: =IF(L22=17,Param!G22,IF(L22=28,Param!H22,IF(L22=45,Param!I22))) -> 00:00:40 | P22: 02:22:28 | R22: 1983 | S22: Masters 1/2 | T22: FALSE
A23: 22 | B23: ROUANET-Xavier | C23: ROUANET | D23: Xavier | E23: M | F23: 1976-02-24 | G23: 39.24982888 | H23: Albi Velo Sport | I23: FFC | J23: 2281246105 | K23: Masters 1/2 | L23: 45 | M23: =VLOOKUP(A23,'Chrono+Classement'!G:O,5,FALSE) -> 27 | N23: =VLOOKUP(A23,'Chrono+Classement'!G:O,9,FALSE) -> 02:34:17 | O23: =IF(L23=17,Param!G23,IF(L23=28,Param!H23,IF(L23=45,Param!I23))) -> 00:00:40 | P23: 02:33:37 | R23: 1976 | S23: Masters 1/2 | T23: FALSE
A24: 23 | B24: SERRES-Benoit | C24: SERRES | D24: Benoit | E24: M | F24: 1970-11-16 | G24: 44.5229295 | H24: Velo Club Naucelle | I24: UFOLEP | K24: Masters 3/4 | L24: 45 | M24: =VLOOKUP(A24,'Chrono+Classement'!G:O,5,FALSE) -> 23 | N24: =VLOOKUP(A24,'Chrono+Classement'!G:O,9,FALSE) -> 02:28:31 | O24: =IF(L24=17,Param!G24,IF(L24=28,Param!H24,IF(L24=45,Param!I24))) -> 00:00:40 | P24: 02:27:51 | R24: 1970 | S24: Masters 3/4 | T24: FALSE
A25: 24 | B25: TACHON-Bruno | C25: TACHON | D25: Bruno | E25: M | F25: 1967-03-25 | G25: 48.16974675 | H25: Vélo Club Villefranchois | I25: FSGT | K25: Masters 3/4 | L25: 45 | M25: =VLOOKUP(A25,'Chrono+Classement'!G:O,5,FALSE) -> 57 | N25: =VLOOKUP(A25,'Chrono+Classement'!G:O,9,FALSE) -> 03:53:11 | O25: =IF(L25=17,Param!G25,IF(L25=28,Param!H25,IF(L25=45,Param!I25))) -> 00:00:40 | P25: 03:52:31 | R25: 1967 | S25: Masters 3/4 | T25: FALSE
A26: 25 | B26: AUMAGY-Nicolas | C26: AUMAGY | D26: Nicolas | E26: M | F26: 1985-02-04 | G26: 30.30253251 | I26: NL | K26: Masters 1/2 | L26: 45 | M26: ABD | N26: ABD | O26: =IF(L26=17,Param!G26,IF(L26=28,Param!H26,IF(L26=45,Param!I26))) -> 00:00:40 | P26: ABD | R26: 1985 | S26: Masters 1/2 | T26: FALSE
A27: 26 | B27: COUSTILLERES-Christophe | C27: COUSTILLERES | D27: Christophe | E27: M | F27: 1971-12-13 | G27: 43.44969199 | H27: VC Castelmayran | I27: UFOLEP | K27: Masters 3/4 | L27: 45 | M27: =VLOOKUP(A27,'Chrono+Classement'!G:O,5,FALSE) -> 15 | N27: =VLOOKUP(A27,'Chrono+Classement'!G:O,9,FALSE) -> 02:19:11 | O27: =IF(L27=17,Param!G27,IF(L27=28,Param!H27,IF(L27=45,Param!I27))) -> 00:00:40 | P27: =N27-O27 -> 02:18:31 | R27: 1971 | S27: Masters 3/4 | T27: FALSE
A28: 27 | B28: FENASSE-Frederic | C28: FENASSE | D28: Frederic | E28: M | F28: 1964-12-09 | G28: 50.45859001 | H28: TOAC | I28: FFC | J28: 2231105003 | K28: Masters 5 | L28: 45 | M28: =VLOOKUP(A28,'Chrono+Classement'!G:O,5,FALSE) -> 38 | N28: =VLOOKUP(A28,'Chrono+Classement'!G:O,9,FALSE) -> 02:51:16 | O28: =IF(L28=17,Param!G28,IF(L28=28,Param!H28,IF(L28=45,Param!I28))) -> 00:00:40 | P28: =N28-O28 -> 02:50:36 | R28: 1964 | S28: Masters 5 | T28: FALSE
A29: 28 | B29: FENASSE-Damien | C29: FENASSE | D29: Damien | E29: M | F29: 1994-11-08 | G29: 20.54483231 | H29: TOAC | I29: FFC | J29: 2231105002 | K29: Espoirs | L29: 45 | M29: =VLOOKUP(A29,'Chrono+Classement'!G:O,5,FALSE) -> 26 | N29: =VLOOKUP(A29,'Chrono+Classement'!G:O,9,FALSE) -> 02:33:02 | O29: =IF(L29=17,Param!G29,IF(L29=28,Param!H29,IF(L29=45,Param!I29))) -> 00:00:40 | P29: =N29-O29 -> 02:32:22 | R29: 1994 | S29: Espoirs | T29: FALSE
A30: 29 | B30: LARRIPA-Bruno | C30: LARRIPA | D30: Bruno | E30: M | F30: 1965-12-06 | G30: 49.46748802 | H30: JURANCON | I30: UFOLEP | K30: Masters 5 | L30: 45 | M30: =VLOOKUP(A30,'Chrono+Classement'!G:O,5,FALSE) -> 49 | N30: =VLOOKUP(A30,'Chrono+Classement'!G:O,9,FALSE) -> 03:22:24 | O30: =IF(L30=17,Param!G30,IF(L30=28,Param!H30,IF(L30=45,Param!I30))) -> 00:00:40 | P30: =N30-O30 -> 03:21:44 | R30: 1965 | S30: Masters 5 | T30: FALSE
A31: 30 | B31: GINESTE-Antony | C31: GINESTE | D31: Antony | E31: M | F31: 1991-06-12 | G31: 23.95345654 | H31: VC Montauban | I31: FFC | J31: 2282320015 | K31: Hommes | L31: 45 | M31: =VLOOKUP(A31,'Chrono+Classement'!G:O,5,FALSE) -> 42 | N31: =VLOOKUP(A31,'Chrono+Classement'!G:O,9,FALSE) -> 03:12:48 | O31: =IF(L31=17,Param!G31,IF(L31=28,Param!H31,IF(L31=45,Param!I31))) -> 00:00:40 | P31: =N31-O31 -> 03:12:08 | R31: 1991 | S31: Hommes | T31: FALSE
A32: 31 | B32: ROCHE-Damien | C32: ROCHE | D32: Damien | E32: M | F32: 1980-12-11 | G32: 34.45311431 | H32: Cahors Cyclisme | I32: FFC | J32: 2246018045 | K32: Masters 1/2 | L32: 45 | M32: ABD | N32: ABD | O32: =IF(L32=17,Param!G32,IF(L32=28,Param!H32,IF(L32=45,Param!I32))) -> 00:00:40 | P32: ABD | R32: 1980 | S32: Masters 1/2 | T32: FALSE
A33: 32 | B33: DIAS SOEIRO-Eric | C33: DIAS SOEIRO | D33: Eric | E33: M | F33: 1977-11-08 | G33: 37.54414784 | H33: Cahors Cyclisme | I33: FFC | J33: 2246018208 | K33: Masters 1/2 | L33: 45 | M33: =VLOOKUP(A33,'Chrono+Classement'!G:O,5,FALSE) -> 28 | N33: =VLOOKUP(A33,'Chrono+Classement'!G:O,9,FALSE) -> 02:34:32 | O33: =IF(L33=17,Param!G33,IF(L33=28,Param!H33,IF(L33=45,Param!I33))) -> 00:00:40 | P33: =N33-O33 -> 02:33:52 | R33: 1977 | S33: Masters 1/2 | T33: FALSE
A34: 33 | B34: VIGROOX-Gaetan | C34: VIGROOX | D34: Gaetan | E34: M | F34: 1987-05-19 | G34: 28.01916496 | H34: VTT Evasion | I34: FFC | J34: 2281800050 | K34: Hommes | L34: 45 | M34: =VLOOKUP(A34,'Chrono+Classement'!G:O,5,FALSE) -> 48 | N34: =VLOOKUP(A34,'Chrono+Classement'!G:O,9,FALSE) -> 03:19:11 | O34: =IF(L34=17,Param!G34,IF(L34=28,Param!H34,IF(L34=45,Param!I34))) -> 00:00:40 | P34: =N34-O34 -> 03:18:31 | R34: 1987 | S34: Hommes | T34: FALSE
A35: 34 | B35: GAYRAL-Michael | C35: GAYRAL | D35: Michael | E35: M | F35: 1992-08-27 | G35: 22.74332649 | H35: VSM | I35: FFC | J35: 2282320010 | K35: Hommes | L35: 45 | M35: =VLOOKUP(A35,'Chrono+Classement'!G:O,5,FALSE) -> 24 | N35: =VLOOKUP(A35,'Chrono+Classement'!G:O,9,FALSE) -> 02:29:56 | O35: =IF(L35=17,Param!G35,IF(L35=28,Param!H35,IF(L35=45,Param!I35))) -> 00:00:40 | P35: =N35-O35 -> 02:29:16 | R35: 1992 | S35: Hommes | T35: FALSE
A36: 35 | B36: BARBANSON-Xavier | C36: BARBANSON | D36: Xavier | E36: M | F36: 1979-09-27 | G36: 35.6605065 | H36: TOAC | I36: FSGT | K36: Masters 1/2 | L36: 45 | M36: ABD | N36: ABD | O36: =IF(L36=17,Param!G36,IF(L36=28,Param!H36,IF(L36=45,Param!I36))) -> 00:00:40 | P36: ABD | R36: 1979 | S36: Masters 1/2 | T36: FALSE
A37: 36 | B37: RALECHE-Jean-Michel | C37: RALECHE | D37: Jean-Michel | E37: M | F37: 1971-04-23 | G37: 44.09034908 | I37: NL | K37: Masters 3/4 | L37: 45 | M37: =VLOOKUP(A37,'Chrono+Classement'!G:O,5,FALSE) -> 53 | N37: =VLOOKUP(A37,'Chrono+Classement'!G:O,9,FALSE) -> 03:31:07 | O37: =IF(L37=17,Param!G37,IF(L37=28,Param!H37,IF(L37=45,Param!I37))) -> 00:00:40 | P37: =N37-O37 -> 03:30:27 | R37: 1971 | S37: Masters 3/4 | T37: FALSE
A38: 37 | B38: CARTRON-Jacques | C38: CARTRON | D38: Jacques | E38: M | F38: 1967-07-07 | G38: 47.88501027 | H38: Maillons Libres | I38: NL | K38: Masters 3/4 | L38: 45 | M38: =VLOOKUP(A38,'Chrono+Classement'!G:O,5,FALSE) -> 46 | N38: =VLOOKUP(A38,'Chrono+Classement'!G:O,9,FALSE) -> 03:15:54 | O38: =IF(L38=17,Param!G38,IF(L38=28,Param!H38,IF(L38=45,Param!I38))) -> 00:00:40 | P38: 03:15:14 | R38: 1967 | S38: Masters 3/4 | T38: FALSE
A39: 38 | B39: PAGES-Yves | C39: PAGES | D39: Yves | E39: M | F39: 1967-10-12 | G39: 47.61943874 | H39: VTT Cornebarieu | I39: NL | K39: Masters 3/4 | L39: 45 | M39: =VLOOKUP(A39,'Chrono+Classement'!G:O,5,FALSE) -> 29 | N39: =VLOOKUP(A39,'Chrono+Classement'!G:O,9,FALSE) -> 02:34:47 | O39: =IF(L39=17,Param!G39,IF(L39=28,Param!H39,IF(L39=45,Param!I39))) -> 00:00:40 | P39: 02:34:07 | R39: 1967 | S39: Masters 3/4 | T39: FALSE
A40: 39 | B40: BARCELO-Thierry | C40: BARCELO | D40: Thierry | E40: M | F40: 1963-04-24 | G40: 52.08761123 | H40: CPRS Pins Justaret | I40: FSGT | K40: Masters 5 | L40: 45 | M40: =VLOOKUP(A40,'Chrono+Classement'!G:O,5,FALSE) -> 25 | N40: =VLOOKUP(A40,'Chrono+Classement'!G:O,9,FALSE) -> 02:32:30 | O40: =IF(L40=17,Param!G40,IF(L40=28,Param!H40,IF(L40=45,Param!I40))) -> 00:00:40 | P40: 02:31:50 | R40: 1963 | S40: Masters 5 | T40: FALSE
A41: 40 | B41: GAYRAUD-Cédric | C41: GAYRAUD | D41: Cédric | E41: M | F41: 1983-03-21 | G41: 32.18069815 | H41: APC | I41: UFOLEP | K41: Masters 1/2 | L41: 45 | M41: =VLOOKUP(A41,'Chrono+Classement'!G:O,5,FALSE) -> 30 | N41: =VLOOKUP(A41,'Chrono+Classement'!G:O,9,FALSE) -> 02:35:53 | O41: =IF(L41=17,Param!G41,IF(L41=28,Param!H41,IF(L41=45,Param!I41))) -> 00:00:40 | P41: 02:35:13 | R41: 1983 | S41: Masters 1/2 | T41: FALSE
A42: 41 | B42: NICE-Stephane | C42: NICE | D42: Stephane | E42: M | F42: 1981-05-07 | G42: 34.05065024 | I42: NL | K42: Masters 1/2 | L42: 45 | M42: =VLOOKUP(A42,'Chrono+Classement'!G:O,5,FALSE) -> 56 | N42: =VLOOKUP(A42,'Chrono+Classement'!G:O,9,FALSE) -> 03:45:41 | O42: =IF(L42=17,Param!G42,IF(L42=28,Param!H42,IF(L42=45,Param!I42))) -> 00:00:40 | P42: 03:45:01 | R42: 1981 | S42: Masters 1/2 | T42: FALSE
A43: 42 | B43: JOULIE-Nicolas | C43: JOULIE | D43: Nicolas | E43: M | F43: 1973-12-11 | G43: 41.45379877 | H43: Muret | I43: FFC | J43: 2231025021 | K43: Masters 3/4 | L43: 45 | M43: =VLOOKUP(A43,'Chrono+Classement'!G:O,5,FALSE) -> 21 | N43: =VLOOKUP(A43,'Chrono+Classement'!G:O,9,FALSE) -> 02:27:52 | O43: =IF(L43=17,Param!G43,IF(L43=28,Param!H43,IF(L43=45,Param!I43))) -> 00:00:40 | P43: 02:27:12 | R43: 1973 | S43: Masters 3/4 | T43: FALSE
A44: 43 | B44: SIGOT-François | C44: SIGOT | D44: François | E44: M | F44: 1964-08-17 | G44: 50.770705 | H44: Muret | I44: FFC | J44: 2231025002 | K44: Masters 5 | L44: 45 | M44: =VLOOKUP(A44,'Chrono+Classement'!G:O,5,FALSE) -> 36 | N44: =VLOOKUP(A44,'Chrono+Classement'!G:O,9,FALSE) -> 02:44:53 | O44: =IF(L44=17,Param!G44,IF(L44=28,Param!H44,IF(L44=45,Param!I44))) -> 00:00:40 | P44: 02:44:13 | R44: 1964 | S44: Masters 5 | T44: FALSE
A45: 44 | B45: MATHIEU-Sebastien | C45: MATHIEU | D45: Sebastien | E45: M | F45: 1981-10-03 | G45: 33.64271047 | H45: VC Laissac | I45: FFC | J45: 2212095078 | K45: Masters 1/2 | L45: 45 | M45: =VLOOKUP(A45,'Chrono+Classement'!G:O,5,FALSE) -> 19 | N45: =VLOOKUP(A45,'Chrono+Classement'!G:O,9,FALSE) -> 02:25:57 | O45: =IF(L45=17,Param!G45,IF(L45=28,Param!H45,IF(L45=45,Param!I45))) -> 00:00:40 | P45: 02:25:17 | R45: 1981 | S45: Masters 1/2 | T45: FALSE
A46: 45 | B46: SIRGUE-Jérome | C46: SIRGUE | D46: Jérome | E46: M | F46: 1973-04-11 | G46: 42.12183436 | H46: VC Laissac | I46: FFC | J46: 2212095114 | K46: Masters 3/4 | L46: 45 | M46: =VLOOKUP(A46,'Chrono+Classement'!G:O,5,FALSE) -> 47 | N46: =VLOOKUP(A46,'Chrono+Classement'!G:O,9,FALSE) -> 03:19:02 | O46: =IF(L46=17,Param!G46,IF(L46=28,Param!H46,IF(L46=45,Param!I46))) -> 00:00:40 | P46: 03:18:22 | R46: 1973 | S46: Masters 3/4 | T46: FALSE
A47: 46 | B47: JOUVE-Dominique | C47: JOUVE | D47: Dominique | E47: M | F47: 1961-08-25 | G47: 53.74948665 | I47: NL | K47: Masters 5 | L47: 45 | M47: =VLOOKUP(A47,'Chrono+Classement'!G:O,5,FALSE) -> 55 | N47: =VLOOKUP(A47,'Chrono+Classement'!G:O,9,FALSE) -> 03:35:57 | O47: =IF(L47=17,Param!G47,IF(L47=28,Param!H47,IF(L47=45,Param!I47))) -> 00:00:40 | P47: 03:35:17 | R47: 1961 | S47: Masters 5 | T47: FALSE
A48: 47 | B48: BORN-Vivian | C48: BORN | D48: Vivian | E48: M | F48: 1996-04-19 | G48: 19.09924709 | H48: VILLENEUVE Cycliste | I48: FFC | J48: 2233109039 | K48: Espoirs | L48: 45 | M48: =VLOOKUP(A48,'Chrono+Classement'!G:O,5,FALSE) -> 13 | N48: =VLOOKUP(A48,'Chrono+Classement'!G:O,9,FALSE) -> 02:13:47 | O48: =IF(L48=17,Param!G48,IF(L48=28,Param!H48,IF(L48=45,Param!I48))) -> 00:00:40 | P48: 02:13:07 | R48: 1996 | S48: Espoirs | T48: FALSE
A49: 48 | B49: - | G49: 115.4004107 | L49: 45 | M49: =VLOOKUP(A49,'Chrono+Classement'!G:O,5,FALSE) ->  | N49: =VLOOKUP(A49,'Chrono+Classement'!G:O,9,FALSE) ->  | O49: =IF(L49=17,Param!G49,IF(L49=28,Param!H49,IF(L49=45,Param!I49))) -> 00:00:40 | R49: 1900 | S49: FALSE | T49: FALSE
A50: 49 | B50: - | G50: 115.4004107 | L50: 45 | M50: =VLOOKUP(A50,'Chrono+Classement'!G:O,5,FALSE) ->  | N50: =VLOOKUP(A50,'Chrono+Classement'!G:O,9,FALSE) ->  | O50: =IF(L50=17,Param!G50,IF(L50=28,Param!H50,IF(L50=45,Param!I50))) -> 00:00:40 | R50: 1900 | S50: FALSE | T50: FALSE
A51: 50 | B51: - | G51: 115.4004107 | L51: 45 | M51: =VLOOKUP(A51,'Chrono+Classement'!G:O,5,FALSE) ->  | N51: =VLOOKUP(A51,'Chrono+Classement'!G:O,9,FALSE) ->  | O51: =IF(L51=17,Param!G51,IF(L51=28,Param!H51,IF(L51=45,Param!I51))) -> 00:00:40 | R51: 1900 | S51: FALSE | T51: FALSE
A52: 51 | B52: - | G52: 115.4004107 | L52: 45 | M52: =VLOOKUP(A52,'Chrono+Classement'!G:O,5,FALSE) ->  | N52: =VLOOKUP(A52,'Chrono+Classement'!G:O,9,FALSE) ->  | O52: =IF(L52=17,Param!G52,IF(L52=28,Param!H52,IF(L52=45,Param!I52))) -> 00:00:40 | R52: 1900 | S52: FALSE | T52: FALSE
A53: 52 | B53: - | G53: 115.4004107 | L53: 45 | M53: =VLOOKUP(A53,'Chrono+Classement'!G:O,5,FALSE) ->  | N53: =VLOOKUP(A53,'Chrono+Classement'!G:O,9,FALSE) ->  | O53: =IF(L53=17,Param!G53,IF(L53=28,Param!H53,IF(L53=45,Param!I53))) -> 00:00:40 | R53: 1900 | S53: FALSE | T53: FALSE
A54: 53 | B54: - | G54: 115.4004107 | L54: 45 | M54: =VLOOKUP(A54,'Chrono+Classement'!G:O,5,FALSE) ->  | N54: =VLOOKUP(A54,'Chrono+Classement'!G:O,9,FALSE) ->  | O54: =IF(L54=17,Param!G54,IF(L54=28,Param!H54,IF(L54=45,Param!I54))) -> 00:00:40 | R54: 1900 | S54: FALSE | T54: FALSE
A55: 54 | B55: - | G55: 115.4004107 | L55: 45 | M55: =VLOOKUP(A55,'Chrono+Classement'!G:O,5,FALSE) ->  | N55: =VLOOKUP(A55,'Chrono+Classement'!G:O,9,FALSE) ->  | O55: =IF(L55=17,Param!G55,IF(L55=28,Param!H55,IF(L55=45,Param!I55))) -> 00:00:40 | R55: 1900 | S55: FALSE | T55: FALSE
A56: 55 | B56: - | G56: 115.4004107 | L56: 45 | M56: =VLOOKUP(A56,'Chrono+Classement'!G:O,5,FALSE) ->  | N56: =VLOOKUP(A56,'Chrono+Classement'!G:O,9,FALSE) ->  | O56: =IF(L56=17,Param!G56,IF(L56=28,Param!H56,IF(L56=45,Param!I56))) -> 00:00:40 | R56: 1900 | S56: FALSE | T56: FALSE
A57: 56 | B57: - | G57: 115.4004107 | L57: 45 | M57: =VLOOKUP(A57,'Chrono+Classement'!G:O,5,FALSE) ->  | N57: =VLOOKUP(A57,'Chrono+Classement'!G:O,9,FALSE) ->  | O57: =IF(L57=17,Param!G57,IF(L57=28,Param!H57,IF(L57=45,Param!I57))) -> 00:00:40 | R57: 1900 | S57: FALSE | T57: FALSE
A58: 57 | B58: - | G58: 115.4004107 | L58: 45 | M58: =VLOOKUP(A58,'Chrono+Classement'!G:O,5,FALSE) ->  | N58: =VLOOKUP(A58,'Chrono+Classement'!G:O,9,FALSE) ->  | O58: =IF(L58=17,Param!G58,IF(L58=28,Param!H58,IF(L58=45,Param!I58))) -> 00:00:40 | R58: 1900 | S58: FALSE | T58: FALSE
A59: 58 | B59: - | G59: 115.4004107 | L59: 45 | M59: =VLOOKUP(A59,'Chrono+Classement'!G:O,5,FALSE) ->  | N59: =VLOOKUP(A59,'Chrono+Classement'!G:O,9,FALSE) ->  | O59: =IF(L59=17,Param!G59,IF(L59=28,Param!H59,IF(L59=45,Param!I59))) -> 00:00:40 | R59: 1900 | S59: FALSE | T59: FALSE
A60: 59 | B60: - | G60: 115.4004107 | L60: 45 | M60: =VLOOKUP(A60,'Chrono+Classement'!G:O,5,FALSE) ->  | N60: =VLOOKUP(A60,'Chrono+Classement'!G:O,9,FALSE) ->  | O60: =IF(L60=17,Param!G60,IF(L60=28,Param!H60,IF(L60=45,Param!I60))) -> 00:00:40 | R60: 1900 | S60: FALSE | T60: FALSE
A61: 60 | B61: - | G61: 115.4004107 | L61: 45 | M61: =VLOOKUP(A61,'Chrono+Classement'!G:O,5,FALSE) ->  | N61: =VLOOKUP(A61,'Chrono+Classement'!G:O,9,FALSE) ->  | O61: =IF(L61=17,Param!G61,IF(L61=28,Param!H61,IF(L61=45,Param!I61))) -> 00:00:40 | R61: 1900 | S61: FALSE | T61: FALSE
A62: 61 | B62: - | G62: 115.4004107 | L62: 45 | M62: =VLOOKUP(A62,'Chrono+Classement'!G:O,5,FALSE) ->  | N62: =VLOOKUP(A62,'Chrono+Classement'!G:O,9,FALSE) ->  | O62: =IF(L62=17,Param!G62,IF(L62=28,Param!H62,IF(L62=45,Param!I62))) -> 00:00:40 | R62: 1900 | S62: FALSE | T62: FALSE
A63: 62 | B63: - | G63: 115.4004107 | L63: 45 | M63: =VLOOKUP(A63,'Chrono+Classement'!G:O,5,FALSE) ->  | N63: =VLOOKUP(A63,'Chrono+Classement'!G:O,9,FALSE) ->  | O63: =IF(L63=17,Param!G63,IF(L63=28,Param!H63,IF(L63=45,Param!I63))) -> 00:00:40 | R63: 1900 | S63: FALSE | T63: FALSE
A64: 63 | B64: - | G64: 115.4004107 | L64: 45 | M64: =VLOOKUP(A64,'Chrono+Classement'!G:O,5,FALSE) ->  | N64: =VLOOKUP(A64,'Chrono+Classement'!G:O,9,FALSE) ->  | O64: =IF(L64=17,Param!G64,IF(L64=28,Param!H64,IF(L64=45,Param!I64))) -> 00:00:40 | R64: 1900 | S64: FALSE | T64: FALSE
A65: 64 | B65: - | G65: 115.4004107 | L65: 45 | M65: =VLOOKUP(A65,'Chrono+Classement'!G:O,5,FALSE) ->  | N65: =VLOOKUP(A65,'Chrono+Classement'!G:O,9,FALSE) ->  | O65: =IF(L65=17,Param!G65,IF(L65=28,Param!H65,IF(L65=45,Param!I65))) -> 00:00:40 | R65: 1900 | S65: FALSE | T65: FALSE
A66: 65 | B66: =CONCATENATE(C66,"-",D66) -> - | G66: =(TODAY()-F66)/365.25 -> 115.4004107 | L66: 45 | M66: =VLOOKUP(A66,'Chrono+Classement'!G:O,5,FALSE) ->  | N66: =VLOOKUP(A66,'Chrono+Classement'!G:O,9,FALSE) ->  | O66: =IF(L66=17,Param!G66,IF(L66=28,Param!H66,IF(L66=45,Param!I66))) -> 00:00:40 | R66: =YEAR(F66) -> 1900 | S66: =IF(E66="M",IF(R66<=1965,"Masters 5",IF(R66<=1975,"Masters 3/4",IF(R66<=1985,"Masters 1/2",IF(R66<=1992,"Hommes",IF(R66<=1996,"Espoirs",IF(R66<=1998,"Juniors",IF(R66<=2000,"Cadets",0)))))))) -> FALSE | T66: =IF(E66="F",IF(R66<=1992,"Dames",IF(R66<=1996,"Espoirs Dames",IF(R66<=1998,"Juniors Dames",IF(R66<=2000,"Cadettes",0))))) -> FALSE
A67: 66 | B67: - | G67: 115.4004107 | L67: 45 | M67: =VLOOKUP(A67,'Chrono+Classement'!G:O,5,FALSE) ->  | N67: =VLOOKUP(A67,'Chrono+Classement'!G:O,9,FALSE) ->  | O67: =IF(L67=17,Param!G67,IF(L67=28,Param!H67,IF(L67=45,Param!I67))) -> 00:00:40 | R67: 1900 | S67: FALSE | T67: FALSE
A68: 67 | B68: - | G68: 115.4004107 | L68: 45 | M68: =VLOOKUP(A68,'Chrono+Classement'!G:O,5,FALSE) ->  | N68: =VLOOKUP(A68,'Chrono+Classement'!G:O,9,FALSE) ->  | O68: =IF(L68=17,Param!G68,IF(L68=28,Param!H68,IF(L68=45,Param!I68))) -> 00:00:40 | R68: 1900 | S68: FALSE | T68: FALSE
A69: 68 | B69: - | G69: 115.4004107 | L69: 45 | M69: =VLOOKUP(A69,'Chrono+Classement'!G:O,5,FALSE) ->  | N69: =VLOOKUP(A69,'Chrono+Classement'!G:O,9,FALSE) ->  | O69: =IF(L69=17,Param!G69,IF(L69=28,Param!H69,IF(L69=45,Param!I69))) -> 00:00:40 | R69: 1900 | S69: FALSE | T69: FALSE
A70: 69 | B70: - | G70: 115.4004107 | L70: 45 | M70: =VLOOKUP(A70,'Chrono+Classement'!G:O,5,FALSE) ->  | N70: =VLOOKUP(A70,'Chrono+Classement'!G:O,9,FALSE) ->  | O70: =IF(L70=17,Param!G70,IF(L70=28,Param!H70,IF(L70=45,Param!I70))) -> 00:00:40 | R70: 1900 | S70: FALSE | T70: FALSE
A71: 70 | B71: - | G71: 115.4004107 | L71: 45 | M71: =VLOOKUP(A71,'Chrono+Classement'!G:O,5,FALSE) ->  | N71: =VLOOKUP(A71,'Chrono+Classement'!G:O,9,FALSE) ->  | O71: =IF(L71=17,Param!G71,IF(L71=28,Param!H71,IF(L71=45,Param!I71))) -> 00:00:40 | R71: 1900 | S71: FALSE | T71: FALSE
A72: 71 | B72: - | G72: 115.4004107 | L72: 45 | M72: =VLOOKUP(A72,'Chrono+Classement'!G:O,5,FALSE) ->  | N72: =VLOOKUP(A72,'Chrono+Classement'!G:O,9,FALSE) ->  | O72: =IF(L72=17,Param!G72,IF(L72=28,Param!H72,IF(L72=45,Param!I72))) -> 00:00:40 | R72: 1900 | S72: FALSE | T72: FALSE
A73: 72 | B73: - | G73: 115.4004107 | L73: 45 | M73: =VLOOKUP(A73,'Chrono+Classement'!G:O,5,FALSE) ->  | N73: =VLOOKUP(A73,'Chrono+Classement'!G:O,9,FALSE) ->  | O73: =IF(L73=17,Param!G73,IF(L73=28,Param!H73,IF(L73=45,Param!I73))) -> 00:00:40 | R73: 1900 | S73: FALSE | T73: FALSE
A74: 73 | B74: - | G74: 115.4004107 | L74: 45 | M74: =VLOOKUP(A74,'Chrono+Classement'!G:O,5,FALSE) ->  | N74: =VLOOKUP(A74,'Chrono+Classement'!G:O,9,FALSE) ->  | O74: =IF(L74=17,Param!G74,IF(L74=28,Param!H74,IF(L74=45,Param!I74))) -> 00:00:40 | R74: 1900 | S74: FALSE | T74: FALSE
A75: 74 | B75: - | G75: 115.4004107 | L75: 45 | M75: =VLOOKUP(A75,'Chrono+Classement'!G:O,5,FALSE) ->  | N75: =VLOOKUP(A75,'Chrono+Classement'!G:O,9,FALSE) ->  | O75: =IF(L75=17,Param!G75,IF(L75=28,Param!H75,IF(L75=45,Param!I75))) -> 00:00:40 | R75: 1900 | S75: FALSE | T75: FALSE
A76: 75 | B76: - | G76: 115.4004107 | L76: 45 | M76: =VLOOKUP(A76,'Chrono+Classement'!G:O,5,FALSE) ->  | N76: =VLOOKUP(A76,'Chrono+Classement'!G:O,9,FALSE) ->  | O76: =IF(L76=17,Param!G76,IF(L76=28,Param!H76,IF(L76=45,Param!I76))) -> 00:00:40 | R76: 1900 | S76: FALSE | T76: FALSE
A77: 76 | B77: - | G77: 115.4004107 | L77: 45 | M77: =VLOOKUP(A77,'Chrono+Classement'!G:O,5,FALSE) ->  | N77: =VLOOKUP(A77,'Chrono+Classement'!G:O,9,FALSE) ->  | O77: =IF(L77=17,Param!G77,IF(L77=28,Param!H77,IF(L77=45,Param!I77))) -> 00:00:40 | R77: 1900 | S77: FALSE | T77: FALSE
A78: 77 | B78: - | G78: 115.4004107 | L78: 45 | M78: =VLOOKUP(A78,'Chrono+Classement'!G:O,5,FALSE) ->  | N78: =VLOOKUP(A78,'Chrono+Classement'!G:O,9,FALSE) ->  | O78: =IF(L78=17,Param!G78,IF(L78=28,Param!H78,IF(L78=45,Param!I78))) -> 00:00:40 | R78: 1900 | S78: FALSE | T78: FALSE
A79: 78 | B79: - | G79: 115.4004107 | L79: 45 | M79: =VLOOKUP(A79,'Chrono+Classement'!G:O,5,FALSE) ->  | N79: =VLOOKUP(A79,'Chrono+Classement'!G:O,9,FALSE) ->  | O79: =IF(L79=17,Param!G79,IF(L79=28,Param!H79,IF(L79=45,Param!I79))) -> 00:00:40 | R79: 1900 | S79: FALSE | T79: FALSE
A80: 79 | B80: - | G80: 115.4004107 | L80: 45 | M80: =VLOOKUP(A80,'Chrono+Classement'!G:O,5,FALSE) ->  | N80: =VLOOKUP(A80,'Chrono+Classement'!G:O,9,FALSE) ->  | O80: =IF(L80=17,Param!G80,IF(L80=28,Param!H80,IF(L80=45,Param!I80))) -> 00:00:40 | R80: 1900 | S80: FALSE | T80: FALSE
A81: 80 | B81: - | G81: 115.4004107 | L81: 45 | M81: =VLOOKUP(A81,'Chrono+Classement'!G:O,5,FALSE) ->  | N81: =VLOOKUP(A81,'Chrono+Classement'!G:O,9,FALSE) ->  | O81: =IF(L81=17,Param!G81,IF(L81=28,Param!H81,IF(L81=45,Param!I81))) -> 00:00:40 | R81: 1900 | S81: FALSE | T81: FALSE
A82: 81 | B82: - | G82: 115.4004107 | L82: 45 | M82: =VLOOKUP(A82,'Chrono+Classement'!G:O,5,FALSE) ->  | N82: =VLOOKUP(A82,'Chrono+Classement'!G:O,9,FALSE) ->  | O82: =IF(L82=17,Param!G82,IF(L82=28,Param!H82,IF(L82=45,Param!I82))) -> 00:00:40 | R82: 1900 | S82: FALSE | T82: FALSE
A83: 82 | B83: - | G83: 115.4004107 | L83: 45 | M83: =VLOOKUP(A83,'Chrono+Classement'!G:O,5,FALSE) ->  | N83: =VLOOKUP(A83,'Chrono+Classement'!G:O,9,FALSE) ->  | O83: =IF(L83=17,Param!G83,IF(L83=28,Param!H83,IF(L83=45,Param!I83))) -> 00:00:40 | R83: 1900 | S83: FALSE | T83: FALSE
A84: 83 | B84: - | G84: 115.4004107 | L84: 45 | M84: =VLOOKUP(A84,'Chrono+Classement'!G:O,5,FALSE) ->  | N84: =VLOOKUP(A84,'Chrono+Classement'!G:O,9,FALSE) ->  | O84: =IF(L84=17,Param!G84,IF(L84=28,Param!H84,IF(L84=45,Param!I84))) -> 00:00:40 | R84: 1900 | S84: FALSE | T84: FALSE
A85: 84 | B85: - | G85: 115.4004107 | L85: 45 | M85: =VLOOKUP(A85,'Chrono+Classement'!G:O,5,FALSE) ->  | N85: =VLOOKUP(A85,'Chrono+Classement'!G:O,9,FALSE) ->  | O85: =IF(L85=17,Param!G85,IF(L85=28,Param!H85,IF(L85=45,Param!I85))) -> 00:00:40 | R85: 1900 | S85: FALSE | T85: FALSE
A86: 85 | B86: - | G86: 115.4004107 | L86: 45 | M86: =VLOOKUP(A86,'Chrono+Classement'!G:O,5,FALSE) ->  | N86: =VLOOKUP(A86,'Chrono+Classement'!G:O,9,FALSE) ->  | O86: =IF(L86=17,Param!G86,IF(L86=28,Param!H86,IF(L86=45,Param!I86))) -> 00:00:40 | R86: 1900 | S86: FALSE | T86: FALSE
A87: 86 | B87: - | G87: 115.4004107 | L87: 45 | M87: =VLOOKUP(A87,'Chrono+Classement'!G:O,5,FALSE) ->  | N87: =VLOOKUP(A87,'Chrono+Classement'!G:O,9,FALSE) ->  | O87: =IF(L87=17,Param!G87,IF(L87=28,Param!H87,IF(L87=45,Param!I87))) -> 00:00:40 | R87: 1900 | S87: FALSE | T87: FALSE
A88: 87 | B88: - | G88: 115.4004107 | L88: 45 | M88: =VLOOKUP(A88,'Chrono+Classement'!G:O,5,FALSE) ->  | N88: =VLOOKUP(A88,'Chrono+Classement'!G:O,9,FALSE) ->  | O88: =IF(L88=17,Param!G88,IF(L88=28,Param!H88,IF(L88=45,Param!I88))) -> 00:00:40 | R88: 1900 | S88: FALSE | T88: FALSE
A89: 88 | B89: - | G89: 115.4004107 | L89: 45 | M89: =VLOOKUP(A89,'Chrono+Classement'!G:O,5,FALSE) ->  | N89: =VLOOKUP(A89,'Chrono+Classement'!G:O,9,FALSE) ->  | O89: =IF(L89=17,Param!G89,IF(L89=28,Param!H89,IF(L89=45,Param!I89))) -> 00:00:40 | R89: 1900 | S89: FALSE | T89: FALSE
A90: 89 | B90: - | G90: 115.4004107 | L90: 45 | M90: =VLOOKUP(A90,'Chrono+Classement'!G:O,5,FALSE) ->  | N90: =VLOOKUP(A90,'Chrono+Classement'!G:O,9,FALSE) ->  | O90: =IF(L90=17,Param!G90,IF(L90=28,Param!H90,IF(L90=45,Param!I90))) -> 00:00:40 | R90: 1900 | S90: FALSE | T90: FALSE
A91: 90 | B91: - | G91: 115.4004107 | L91: 45 | M91: =VLOOKUP(A91,'Chrono+Classement'!G:O,5,FALSE) ->  | N91: =VLOOKUP(A91,'Chrono+Classement'!G:O,9,FALSE) ->  | O91: =IF(L91=17,Param!G91,IF(L91=28,Param!H91,IF(L91=45,Param!I91))) -> 00:00:40 | R91: 1900 | S91: FALSE | T91: FALSE
A92: 91 | B92: - | G92: 115.4004107 | L92: 45 | M92: =VLOOKUP(A92,'Chrono+Classement'!G:O,5,FALSE) ->  | N92: =VLOOKUP(A92,'Chrono+Classement'!G:O,9,FALSE) ->  | O92: =IF(L92=17,Param!G92,IF(L92=28,Param!H92,IF(L92=45,Param!I92))) -> 00:00:40 | R92: 1900 | S92: FALSE | T92: FALSE
A93: 92 | B93: - | G93: 115.4004107 | L93: 45 | M93: =VLOOKUP(A93,'Chrono+Classement'!G:O,5,FALSE) ->  | N93: =VLOOKUP(A93,'Chrono+Classement'!G:O,9,FALSE) ->  | O93: =IF(L93=17,Param!G93,IF(L93=28,Param!H93,IF(L93=45,Param!I93))) -> 00:00:40 | R93: 1900 | S93: FALSE | T93: FALSE
A94: 93 | B94: - | G94: 115.4004107 | L94: 45 | M94: =VLOOKUP(A94,'Chrono+Classement'!G:O,5,FALSE) ->  | N94: =VLOOKUP(A94,'Chrono+Classement'!G:O,9,FALSE) ->  | O94: =IF(L94=17,Param!G94,IF(L94=28,Param!H94,IF(L94=45,Param!I94))) -> 00:00:40 | R94: 1900 | S94: FALSE | T94: FALSE
A95: 94 | B95: - | G95: 115.4004107 | L95: 45 | M95: =VLOOKUP(A95,'Chrono+Classement'!G:O,5,FALSE) ->  | N95: =VLOOKUP(A95,'Chrono+Classement'!G:O,9,FALSE) ->  | O95: =IF(L95=17,Param!G95,IF(L95=28,Param!H95,IF(L95=45,Param!I95))) -> 00:00:40 | R95: 1900 | S95: FALSE | T95: FALSE
A96: 95 | B96: - | G96: 115.4004107 | L96: 45 | M96: =VLOOKUP(A96,'Chrono+Classement'!G:O,5,FALSE) ->  | N96: =VLOOKUP(A96,'Chrono+Classement'!G:O,9,FALSE) ->  | O96: =IF(L96=17,Param!G96,IF(L96=28,Param!H96,IF(L96=45,Param!I96))) -> 00:00:40 | R96: 1900 | S96: FALSE | T96: FALSE
A97: 96 | B97: - | G97: 115.4004107 | L97: 45 | M97: =VLOOKUP(A97,'Chrono+Classement'!G:O,5,FALSE) ->  | N97: =VLOOKUP(A97,'Chrono+Classement'!G:O,9,FALSE) ->  | O97: =IF(L97=17,Param!G97,IF(L97=28,Param!H97,IF(L97=45,Param!I97))) -> 00:00:40 | R97: 1900 | S97: FALSE | T97: FALSE
A98: 97 | B98: - | G98: 115.4004107 | L98: 45 | M98: =VLOOKUP(A98,'Chrono+Classement'!G:O,5,FALSE) ->  | N98: =VLOOKUP(A98,'Chrono+Classement'!G:O,9,FALSE) ->  | O98: =IF(L98=17,Param!G98,IF(L98=28,Param!H98,IF(L98=45,Param!I98))) -> 00:00:40 | R98: 1900 | S98: FALSE | T98: FALSE
A99: 98 | B99: - | G99: 115.4004107 | L99: 45 | M99: =VLOOKUP(A99,'Chrono+Classement'!G:O,5,FALSE) ->  | N99: =VLOOKUP(A99,'Chrono+Classement'!G:O,9,FALSE) ->  | O99: =IF(L99=17,Param!G99,IF(L99=28,Param!H99,IF(L99=45,Param!I99))) -> 00:00:40 | R99: 1900 | S99: FALSE | T99: FALSE
A100: 99 | B100: - | G100: 115.4004107 | L100: 45 | M100: =VLOOKUP(A100,'Chrono+Classement'!G:O,5,FALSE) ->  | N100: =VLOOKUP(A100,'Chrono+Classement'!G:O,9,FALSE) ->  | O100: =IF(L100=17,Param!G100,IF(L100=28,Param!H100,IF(L100=45,Param!I100))) -> 00:00:40 | R100: 1900 | S100: FALSE | T100: FALSE
A101: 100 | B101: - | G101: 115.4004107 | L101: 45 | M101: =VLOOKUP(A101,'Chrono+Classement'!G:O,5,FALSE) ->  | N101: =VLOOKUP(A101,'Chrono+Classement'!G:O,9,FALSE) ->  | O101: =IF(L101=17,Param!G101,IF(L101=28,Param!H101,IF(L101=45,Param!I101))) -> 00:00:40 | P101: =N101-O101 ->  | R101: 1900 | S101: FALSE | T101: FALSE
A102: 101 | B102: - | G102: 115.4004107 | L102: 45 | M102: =VLOOKUP(A102,'Chrono+Classement'!G:O,5,FALSE) ->  | N102: =VLOOKUP(A102,'Chrono+Classement'!G:O,9,FALSE) ->  | O102: =IF(L102=17,Param!G102,IF(L102=28,Param!H102,IF(L102=45,Param!I102))) -> 00:00:40 | R102: 1900 | S102: FALSE | T102: FALSE
A103: 102 | B103: - | G103: 115.4004107 | L103: 45 | M103: =VLOOKUP(A103,'Chrono+Classement'!G:O,5,FALSE) ->  | N103: =VLOOKUP(A103,'Chrono+Classement'!G:O,9,FALSE) ->  | O103: =IF(L103=17,Param!G103,IF(L103=28,Param!H103,IF(L103=45,Param!I103))) -> 00:00:40 | R103: 1900 | S103: FALSE | T103: FALSE
A104: 103 | B104: - | G104: 115.4004107 | L104: 45 | M104: =VLOOKUP(A104,'Chrono+Classement'!G:O,5,FALSE) ->  | N104: =VLOOKUP(A104,'Chrono+Classement'!G:O,9,FALSE) ->  | O104: =IF(L104=17,Param!G104,IF(L104=28,Param!H104,IF(L104=45,Param!I104))) -> 00:00:40 | R104: 1900 | S104: FALSE | T104: FALSE
A105: 104 | B105: - | G105: 115.4004107 | L105: 45 | M105: =VLOOKUP(A105,'Chrono+Classement'!G:O,5,FALSE) ->  | N105: =VLOOKUP(A105,'Chrono+Classement'!G:O,9,FALSE) ->  | O105: =IF(L105=17,Param!G105,IF(L105=28,Param!H105,IF(L105=45,Param!I105))) -> 00:00:40 | R105: 1900 | S105: FALSE | T105: FALSE
A106: 105 | B106: - | G106: 115.4004107 | L106: 45 | M106: =VLOOKUP(A106,'Chrono+Classement'!G:O,5,FALSE) ->  | N106: =VLOOKUP(A106,'Chrono+Classement'!G:O,9,FALSE) ->  | O106: =IF(L106=17,Param!G106,IF(L106=28,Param!H106,IF(L106=45,Param!I106))) -> 00:00:40 | R106: 1900 | S106: FALSE | T106: FALSE
A107: 106 | B107: - | G107: 115.4004107 | L107: 45 | M107: =VLOOKUP(A107,'Chrono+Classement'!G:O,5,FALSE) ->  | N107: =VLOOKUP(A107,'Chrono+Classement'!G:O,9,FALSE) ->  | O107: =IF(L107=17,Param!G107,IF(L107=28,Param!H107,IF(L107=45,Param!I107))) -> 00:00:40 | R107: 1900 | S107: FALSE | T107: FALSE
A108: 107 | B108: - | G108: 115.4004107 | L108: 45 | M108: =VLOOKUP(A108,'Chrono+Classement'!G:O,5,FALSE) ->  | N108: =VLOOKUP(A108,'Chrono+Classement'!G:O,9,FALSE) ->  | O108: =IF(L108=17,Param!G108,IF(L108=28,Param!H108,IF(L108=45,Param!I108))) -> 00:00:40 | R108: 1900 | S108: FALSE | T108: FALSE
A109: 108 | B109: - | G109: 115.4004107 | L109: 45 | M109: =VLOOKUP(A109,'Chrono+Classement'!G:O,5,FALSE) ->  | N109: =VLOOKUP(A109,'Chrono+Classement'!G:O,9,FALSE) ->  | O109: =IF(L109=17,Param!G109,IF(L109=28,Param!H109,IF(L109=45,Param!I109))) -> 00:00:40 | R109: 1900 | S109: FALSE | T109: FALSE
A110: 109 | B110: - | G110: 115.4004107 | L110: 45 | M110: =VLOOKUP(A110,'Chrono+Classement'!G:O,5,FALSE) ->  | N110: =VLOOKUP(A110,'Chrono+Classement'!G:O,9,FALSE) ->  | O110: =IF(L110=17,Param!G110,IF(L110=28,Param!H110,IF(L110=45,Param!I110))) -> 00:00:40 | R110: 1900 | S110: FALSE | T110: FALSE
A111: 110 | B111: - | G111: 115.4004107 | L111: 45 | M111: =VLOOKUP(A111,'Chrono+Classement'!G:O,5,FALSE) ->  | N111: =VLOOKUP(A111,'Chrono+Classement'!G:O,9,FALSE) ->  | O111: =IF(L111=17,Param!G111,IF(L111=28,Param!H111,IF(L111=45,Param!I111))) -> 00:00:40 | R111: 1900 | S111: FALSE | T111: FALSE
A112: 111 | B112: - | G112: 115.4004107 | L112: 45 | M112: =VLOOKUP(A112,'Chrono+Classement'!G:O,5,FALSE) ->  | N112: =VLOOKUP(A112,'Chrono+Classement'!G:O,9,FALSE) ->  | O112: =IF(L112=17,Param!G112,IF(L112=28,Param!H112,IF(L112=45,Param!I112))) -> 00:00:40 | R112: 1900 | S112: FALSE | T112: FALSE
A113: 112 | B113: - | G113: 115.4004107 | L113: 45 | M113: =VLOOKUP(A113,'Chrono+Classement'!G:O,5,FALSE) ->  | N113: =VLOOKUP(A113,'Chrono+Classement'!G:O,9,FALSE) ->  | O113: =IF(L113=17,Param!G113,IF(L113=28,Param!H113,IF(L113=45,Param!I113))) -> 00:00:40 | R113: 1900 | S113: FALSE | T113: FALSE
A114: 113 | B114: - | G114: 115.4004107 | L114: 45 | M114: =VLOOKUP(A114,'Chrono+Classement'!G:O,5,FALSE) ->  | N114: =VLOOKUP(A114,'Chrono+Classement'!G:O,9,FALSE) ->  | O114: =IF(L114=17,Param!G114,IF(L114=28,Param!H114,IF(L114=45,Param!I114))) -> 00:00:40 | R114: 1900 | S114: FALSE | T114: FALSE
A115: 114 | B115: - | G115: 115.4004107 | L115: 45 | M115: =VLOOKUP(A115,'Chrono+Classement'!G:O,5,FALSE) ->  | N115: =VLOOKUP(A115,'Chrono+Classement'!G:O,9,FALSE) ->  | O115: =IF(L115=17,Param!G115,IF(L115=28,Param!H115,IF(L115=45,Param!I115))) -> 00:00:40 | R115: 1900 | S115: FALSE | T115: FALSE
A116: 115 | B116: - | G116: 115.4004107 | L116: 45 | M116: =VLOOKUP(A116,'Chrono+Classement'!G:O,5,FALSE) ->  | N116: =VLOOKUP(A116,'Chrono+Classement'!G:O,9,FALSE) ->  | O116: =IF(L116=17,Param!G116,IF(L116=28,Param!H116,IF(L116=45,Param!I116))) -> 00:00:40 | R116: 1900 | S116: FALSE | T116: FALSE
A117: 116 | B117: - | G117: 115.4004107 | L117: 45 | M117: =VLOOKUP(A117,'Chrono+Classement'!G:O,5,FALSE) ->  | N117: =VLOOKUP(A117,'Chrono+Classement'!G:O,9,FALSE) ->  | O117: =IF(L117=17,Param!G117,IF(L117=28,Param!H117,IF(L117=45,Param!I117))) -> 00:00:40 | R117: 1900 | S117: FALSE | T117: FALSE
A118: 117 | B118: - | G118: 115.4004107 | L118: 45 | M118: =VLOOKUP(A118,'Chrono+Classement'!G:O,5,FALSE) ->  | N118: =VLOOKUP(A118,'Chrono+Classement'!G:O,9,FALSE) ->  | O118: =IF(L118=17,Param!G118,IF(L118=28,Param!H118,IF(L118=45,Param!I118))) -> 00:00:40 | R118: 1900 | S118: FALSE | T118: FALSE
A119: 118 | B119: - | G119: 115.4004107 | L119: 45 | M119: =VLOOKUP(A119,'Chrono+Classement'!G:O,5,FALSE) ->  | N119: =VLOOKUP(A119,'Chrono+Classement'!G:O,9,FALSE) ->  | O119: =IF(L119=17,Param!G119,IF(L119=28,Param!H119,IF(L119=45,Param!I119))) -> 00:00:40 | R119: 1900 | S119: FALSE | T119: FALSE
A120: 119 | B120: - | G120: 115.4004107 | L120: 45 | M120: =VLOOKUP(A120,'Chrono+Classement'!G:O,5,FALSE) ->  | N120: =VLOOKUP(A120,'Chrono+Classement'!G:O,9,FALSE) ->  | O120: =IF(L120=17,Param!G120,IF(L120=28,Param!H120,IF(L120=45,Param!I120))) -> 00:00:40 | R120: 1900 | S120: FALSE | T120: FALSE
A121: 120 | B121: - | G121: 115.4004107 | L121: 45 | M121: =VLOOKUP(A121,'Chrono+Classement'!G:O,5,FALSE) ->  | N121: =VLOOKUP(A121,'Chrono+Classement'!G:O,9,FALSE) ->  | O121: =IF(L121=17,Param!G121,IF(L121=28,Param!H121,IF(L121=45,Param!I121))) -> 00:00:40 | R121: 1900 | S121: FALSE | T121: FALSE
A122: 121 | B122: - | G122: 115.4004107 | L122: 45 | M122: =VLOOKUP(A122,'Chrono+Classement'!G:O,5,FALSE) ->  | N122: =VLOOKUP(A122,'Chrono+Classement'!G:O,9,FALSE) ->  | O122: =IF(L122=17,Param!G122,IF(L122=28,Param!H122,IF(L122=45,Param!I122))) -> 00:00:40 | R122: 1900 | S122: FALSE | T122: FALSE
A123: 122 | B123: - | G123: 115.4004107 | L123: 45 | M123: =VLOOKUP(A123,'Chrono+Classement'!G:O,5,FALSE) ->  | N123: =VLOOKUP(A123,'Chrono+Classement'!G:O,9,FALSE) ->  | O123: =IF(L123=17,Param!G123,IF(L123=28,Param!H123,IF(L123=45,Param!I123))) -> 00:00:40 | R123: 1900 | S123: FALSE | T123: FALSE
A124: 123 | B124: - | G124: 115.4004107 | L124: 45 | M124: =VLOOKUP(A124,'Chrono+Classement'!G:O,5,FALSE) ->  | N124: =VLOOKUP(A124,'Chrono+Classement'!G:O,9,FALSE) ->  | O124: =IF(L124=17,Param!G124,IF(L124=28,Param!H124,IF(L124=45,Param!I124))) -> 00:00:40 | R124: 1900 | S124: FALSE | T124: FALSE
A125: 124 | B125: - | G125: 115.4004107 | L125: 45 | M125: =VLOOKUP(A125,'Chrono+Classement'!G:O,5,FALSE) ->  | N125: =VLOOKUP(A125,'Chrono+Classement'!G:O,9,FALSE) ->  | O125: =IF(L125=17,Param!G125,IF(L125=28,Param!H125,IF(L125=45,Param!I125))) -> 00:00:40 | R125: 1900 | S125: FALSE | T125: FALSE
A126: 125 | B126: - | G126: 115.4004107 | L126: 45 | M126: =VLOOKUP(A126,'Chrono+Classement'!G:O,5,FALSE) ->  | N126: =VLOOKUP(A126,'Chrono+Classement'!G:O,9,FALSE) ->  | O126: =IF(L126=17,Param!G126,IF(L126=28,Param!H126,IF(L126=45,Param!I126))) -> 00:00:40 | R126: 1900 | S126: FALSE | T126: FALSE
A127: 126 | B127: - | G127: 115.4004107 | L127: 45 | M127: =VLOOKUP(A127,'Chrono+Classement'!G:O,5,FALSE) ->  | N127: =VLOOKUP(A127,'Chrono+Classement'!G:O,9,FALSE) ->  | O127: =IF(L127=17,Param!G127,IF(L127=28,Param!H127,IF(L127=45,Param!I127))) -> 00:00:40 | R127: 1900 | S127: FALSE | T127: FALSE
A128: 127 | B128: - | G128: 115.4004107 | L128: 45 | M128: =VLOOKUP(A128,'Chrono+Classement'!G:O,5,FALSE) ->  | N128: =VLOOKUP(A128,'Chrono+Classement'!G:O,9,FALSE) ->  | O128: =IF(L128=17,Param!G128,IF(L128=28,Param!H128,IF(L128=45,Param!I128))) -> 00:00:40 | R128: 1900 | S128: FALSE | T128: FALSE
A129: 128 | B129: - | G129: 115.4004107 | L129: 45 | M129: =VLOOKUP(A129,'Chrono+Classement'!G:O,5,FALSE) ->  | N129: =VLOOKUP(A129,'Chrono+Classement'!G:O,9,FALSE) ->  | O129: =IF(L129=17,Param!G129,IF(L129=28,Param!H129,IF(L129=45,Param!I129))) -> 00:00:40 | R129: 1900 | S129: FALSE | T129: FALSE
A130: 129 | B130: =CONCATENATE(C130,"-",D130) -> - | G130: =(TODAY()-F130)/365.25 -> 115.4004107 | L130: 45 | M130: =VLOOKUP(A130,'Chrono+Classement'!G:O,5,FALSE) ->  | N130: =VLOOKUP(A130,'Chrono+Classement'!G:O,9,FALSE) ->  | O130: =IF(L130=17,Param!G130,IF(L130=28,Param!H130,IF(L130=45,Param!I130))) -> 00:00:40 | R130: =YEAR(F130) -> 1900 | S130: =IF(E130="M",IF(R130<=1965,"Masters 5",IF(R130<=1975,"Masters 3/4",IF(R130<=1985,"Masters 1/2",IF(R130<=1992,"Hommes",IF(R130<=1996,"Espoirs",IF(R130<=1998,"Juniors",IF(R130<=2000,"Cadets",0)))))))) -> FALSE | T130: =IF(E130="F",IF(R130<=1992,"Dames",IF(R130<=1996,"Espoirs Dames",IF(R130<=1998,"Juniors Dames",IF(R130<=2000,"Cadettes",0))))) -> FALSE
A131: 130 | B131: - | G131: 115.4004107 | L131: 45 | M131: =VLOOKUP(A131,'Chrono+Classement'!G:O,5,FALSE) ->  | N131: =VLOOKUP(A131,'Chrono+Classement'!G:O,9,FALSE) ->  | O131: =IF(L131=17,Param!G131,IF(L131=28,Param!H131,IF(L131=45,Param!I131))) -> 00:00:40 | R131: 1900 | S131: FALSE | T131: FALSE
A132: 131 | B132: - | G132: 115.4004107 | L132: 45 | M132: =VLOOKUP(A132,'Chrono+Classement'!G:O,5,FALSE) ->  | N132: =VLOOKUP(A132,'Chrono+Classement'!G:O,9,FALSE) ->  | O132: =IF(L132=17,Param!G132,IF(L132=28,Param!H132,IF(L132=45,Param!I132))) -> 00:00:40 | R132: 1900 | S132: FALSE | T132: FALSE
A133: 132 | B133: - | G133: 115.4004107 | L133: 45 | M133: =VLOOKUP(A133,'Chrono+Classement'!G:O,5,FALSE) ->  | N133: =VLOOKUP(A133,'Chrono+Classement'!G:O,9,FALSE) ->  | O133: =IF(L133=17,Param!G133,IF(L133=28,Param!H133,IF(L133=45,Param!I133))) -> 00:00:40 | R133: 1900 | S133: FALSE | T133: FALSE
A134: 133 | B134: - | G134: 115.4004107 | L134: 45 | M134: =VLOOKUP(A134,'Chrono+Classement'!G:O,5,FALSE) ->  | N134: =VLOOKUP(A134,'Chrono+Classement'!G:O,9,FALSE) ->  | O134: =IF(L134=17,Param!G134,IF(L134=28,Param!H134,IF(L134=45,Param!I134))) -> 00:00:40 | R134: 1900 | S134: FALSE | T134: FALSE
A135: 134 | B135: - | G135: 115.4004107 | L135: 45 | M135: =VLOOKUP(A135,'Chrono+Classement'!G:O,5,FALSE) ->  | N135: =VLOOKUP(A135,'Chrono+Classement'!G:O,9,FALSE) ->  | O135: =IF(L135=17,Param!G135,IF(L135=28,Param!H135,IF(L135=45,Param!I135))) -> 00:00:40 | R135: 1900 | S135: FALSE | T135: FALSE
A136: 135 | B136: - | G136: 115.4004107 | L136: 45 | M136: =VLOOKUP(A136,'Chrono+Classement'!G:O,5,FALSE) ->  | N136: =VLOOKUP(A136,'Chrono+Classement'!G:O,9,FALSE) ->  | O136: =IF(L136=17,Param!G136,IF(L136=28,Param!H136,IF(L136=45,Param!I136))) -> 00:00:40 | R136: 1900 | S136: FALSE | T136: FALSE
A137: 136 | B137: - | G137: 115.4004107 | L137: 45 | M137: =VLOOKUP(A137,'Chrono+Classement'!G:O,5,FALSE) ->  | N137: =VLOOKUP(A137,'Chrono+Classement'!G:O,9,FALSE) ->  | O137: =IF(L137=17,Param!G137,IF(L137=28,Param!H137,IF(L137=45,Param!I137))) -> 00:00:40 | R137: 1900 | S137: FALSE | T137: FALSE
A138: 137 | B138: - | G138: 115.4004107 | L138: 45 | M138: =VLOOKUP(A138,'Chrono+Classement'!G:O,5,FALSE) ->  | N138: =VLOOKUP(A138,'Chrono+Classement'!G:O,9,FALSE) ->  | O138: =IF(L138=17,Param!G138,IF(L138=28,Param!H138,IF(L138=45,Param!I138))) -> 00:00:40 | R138: 1900 | S138: FALSE | T138: FALSE
A139: 138 | B139: - | G139: 115.4004107 | L139: 45 | M139: =VLOOKUP(A139,'Chrono+Classement'!G:O,5,FALSE) ->  | N139: =VLOOKUP(A139,'Chrono+Classement'!G:O,9,FALSE) ->  | O139: =IF(L139=17,Param!G139,IF(L139=28,Param!H139,IF(L139=45,Param!I139))) -> 00:00:40 | R139: 1900 | S139: FALSE | T139: FALSE
A140: 139 | B140: - | G140: 115.4004107 | L140: 45 | M140: =VLOOKUP(A140,'Chrono+Classement'!G:O,5,FALSE) ->  | N140: =VLOOKUP(A140,'Chrono+Classement'!G:O,9,FALSE) ->  | O140: =IF(L140=17,Param!G140,IF(L140=28,Param!H140,IF(L140=45,Param!I140))) -> 00:00:40 | R140: 1900 | S140: FALSE | T140: FALSE
A141: 140 | B141: - | G141: 115.4004107 | L141: 45 | M141: =VLOOKUP(A141,'Chrono+Classement'!G:O,5,FALSE) ->  | N141: =VLOOKUP(A141,'Chrono+Classement'!G:O,9,FALSE) ->  | O141: =IF(L141=17,Param!G141,IF(L141=28,Param!H141,IF(L141=45,Param!I141))) -> 00:00:40 | R141: 1900 | S141: FALSE | T141: FALSE
A142: 141 | B142: - | G142: 115.4004107 | L142: 45 | M142: =VLOOKUP(A142,'Chrono+Classement'!G:O,5,FALSE) ->  | N142: =VLOOKUP(A142,'Chrono+Classement'!G:O,9,FALSE) ->  | O142: =IF(L142=17,Param!G142,IF(L142=28,Param!H142,IF(L142=45,Param!I142))) -> 00:00:40 | R142: 1900 | S142: FALSE | T142: FALSE
A143: 142 | B143: - | G143: 115.4004107 | L143: 45 | M143: =VLOOKUP(A143,'Chrono+Classement'!G:O,5,FALSE) ->  | N143: =VLOOKUP(A143,'Chrono+Classement'!G:O,9,FALSE) ->  | O143: =IF(L143=17,Param!G143,IF(L143=28,Param!H143,IF(L143=45,Param!I143))) -> 00:00:40 | R143: 1900 | S143: FALSE | T143: FALSE
A144: 143 | B144: - | G144: 115.4004107 | L144: 45 | M144: =VLOOKUP(A144,'Chrono+Classement'!G:O,5,FALSE) ->  | N144: =VLOOKUP(A144,'Chrono+Classement'!G:O,9,FALSE) ->  | O144: =IF(L144=17,Param!G144,IF(L144=28,Param!H144,IF(L144=45,Param!I144))) -> 00:00:40 | R144: 1900 | S144: FALSE | T144: FALSE
A145: 144 | B145: - | G145: 115.4004107 | L145: 45 | M145: =VLOOKUP(A145,'Chrono+Classement'!G:O,5,FALSE) ->  | N145: =VLOOKUP(A145,'Chrono+Classement'!G:O,9,FALSE) ->  | O145: =IF(L145=17,Param!G145,IF(L145=28,Param!H145,IF(L145=45,Param!I145))) -> 00:00:40 | R145: 1900 | S145: FALSE | T145: FALSE
A146: 145 | B146: - | G146: 115.4004107 | L146: 45 | M146: =VLOOKUP(A146,'Chrono+Classement'!G:O,5,FALSE) ->  | N146: =VLOOKUP(A146,'Chrono+Classement'!G:O,9,FALSE) ->  | O146: =IF(L146=17,Param!G146,IF(L146=28,Param!H146,IF(L146=45,Param!I146))) -> 00:00:40 | R146: 1900 | S146: FALSE | T146: FALSE
A147: 146 | B147: - | G147: 115.4004107 | L147: 45 | M147: =VLOOKUP(A147,'Chrono+Classement'!G:O,5,FALSE) ->  | N147: =VLOOKUP(A147,'Chrono+Classement'!G:O,9,FALSE) ->  | O147: =IF(L147=17,Param!G147,IF(L147=28,Param!H147,IF(L147=45,Param!I147))) -> 00:00:40 | R147: 1900 | S147: FALSE | T147: FALSE
A148: 147 | B148: - | G148: 115.4004107 | L148: 45 | M148: =VLOOKUP(A148,'Chrono+Classement'!G:O,5,FALSE) ->  | N148: =VLOOKUP(A148,'Chrono+Classement'!G:O,9,FALSE) ->  | O148: =IF(L148=17,Param!G148,IF(L148=28,Param!H148,IF(L148=45,Param!I148))) -> 00:00:40 | R148: 1900 | S148: FALSE | T148: FALSE
A149: 148 | B149: - | G149: 115.4004107 | L149: 45 | M149: =VLOOKUP(A149,'Chrono+Classement'!G:O,5,FALSE) ->  | N149: =VLOOKUP(A149,'Chrono+Classement'!G:O,9,FALSE) ->  | O149: =IF(L149=17,Param!G149,IF(L149=28,Param!H149,IF(L149=45,Param!I149))) -> 00:00:40 | R149: 1900 | S149: FALSE | T149: FALSE
A150: 149 | B150: - | G150: 115.4004107 | L150: 45 | M150: =VLOOKUP(A150,'Chrono+Classement'!G:O,5,FALSE) ->  | N150: =VLOOKUP(A150,'Chrono+Classement'!G:O,9,FALSE) ->  | O150: =IF(L150=17,Param!G150,IF(L150=28,Param!H150,IF(L150=45,Param!I150))) -> 00:00:40 | R150: 1900 | S150: FALSE | T150: FALSE
A151: 150 | B151: - | G151: 115.4004107 | L151: 45 | M151: =VLOOKUP(A151,'Chrono+Classement'!G:O,5,FALSE) ->  | N151: =VLOOKUP(A151,'Chrono+Classement'!G:O,9,FALSE) ->  | O151: =IF(L151=17,Param!G151,IF(L151=28,Param!H151,IF(L151=45,Param!I151))) -> 00:00:40 | R151: 1900 | S151: FALSE | T151: FALSE
A152: 151 | B152: - | G152: 115.4004107 | L152: 45 | M152: =VLOOKUP(A152,'Chrono+Classement'!G:O,5,FALSE) ->  | N152: =VLOOKUP(A152,'Chrono+Classement'!G:O,9,FALSE) ->  | O152: =IF(L152=17,Param!G152,IF(L152=28,Param!H152,IF(L152=45,Param!I152))) -> 00:00:40 | R152: 1900 | S152: FALSE | T152: FALSE
A153: 152 | B153: - | G153: 115.4004107 | L153: 45 | M153: =VLOOKUP(A153,'Chrono+Classement'!G:O,5,FALSE) ->  | N153: =VLOOKUP(A153,'Chrono+Classement'!G:O,9,FALSE) ->  | O153: =IF(L153=17,Param!G153,IF(L153=28,Param!H153,IF(L153=45,Param!I153))) -> 00:00:40 | R153: 1900 | S153: FALSE | T153: FALSE
A154: 153 | B154: - | G154: 115.4004107 | L154: 45 | M154: =VLOOKUP(A154,'Chrono+Classement'!G:O,5,FALSE) ->  | N154: =VLOOKUP(A154,'Chrono+Classement'!G:O,9,FALSE) ->  | O154: =IF(L154=17,Param!G154,IF(L154=28,Param!H154,IF(L154=45,Param!I154))) -> 00:00:40 | R154: 1900 | S154: FALSE | T154: FALSE
A155: 154 | B155: - | G155: 115.4004107 | L155: 45 | M155: =VLOOKUP(A155,'Chrono+Classement'!G:O,5,FALSE) ->  | N155: =VLOOKUP(A155,'Chrono+Classement'!G:O,9,FALSE) ->  | O155: =IF(L155=17,Param!G155,IF(L155=28,Param!H155,IF(L155=45,Param!I155))) -> 00:00:40 | R155: 1900 | S155: FALSE | T155: FALSE
A156: 155 | B156: - | G156: 115.4004107 | L156: 45 | M156: =VLOOKUP(A156,'Chrono+Classement'!G:O,5,FALSE) ->  | N156: =VLOOKUP(A156,'Chrono+Classement'!G:O,9,FALSE) ->  | O156: =IF(L156=17,Param!G156,IF(L156=28,Param!H156,IF(L156=45,Param!I156))) -> 00:00:40 | R156: 1900 | S156: FALSE | T156: FALSE
A157: 156 | B157: - | G157: 115.4004107 | L157: 45 | M157: =VLOOKUP(A157,'Chrono+Classement'!G:O,5,FALSE) ->  | N157: =VLOOKUP(A157,'Chrono+Classement'!G:O,9,FALSE) ->  | O157: =IF(L157=17,Param!G157,IF(L157=28,Param!H157,IF(L157=45,Param!I157))) -> 00:00:40 | R157: 1900 | S157: FALSE | T157: FALSE
A158: 157 | B158: - | G158: 115.4004107 | L158: 45 | M158: =VLOOKUP(A158,'Chrono+Classement'!G:O,5,FALSE) ->  | N158: =VLOOKUP(A158,'Chrono+Classement'!G:O,9,FALSE) ->  | O158: =IF(L158=17,Param!G158,IF(L158=28,Param!H158,IF(L158=45,Param!I158))) -> 00:00:40 | R158: 1900 | S158: FALSE | T158: FALSE
A159: 158 | B159: - | G159: 115.4004107 | L159: 45 | M159: =VLOOKUP(A159,'Chrono+Classement'!G:O,5,FALSE) ->  | N159: =VLOOKUP(A159,'Chrono+Classement'!G:O,9,FALSE) ->  | O159: =IF(L159=17,Param!G159,IF(L159=28,Param!H159,IF(L159=45,Param!I159))) -> 00:00:40 | R159: 1900 | S159: FALSE | T159: FALSE
A160: 159 | B160: - | G160: 115.4004107 | L160: 45 | M160: =VLOOKUP(A160,'Chrono+Classement'!G:O,5,FALSE) ->  | N160: =VLOOKUP(A160,'Chrono+Classement'!G:O,9,FALSE) ->  | O160: =IF(L160=17,Param!G160,IF(L160=28,Param!H160,IF(L160=45,Param!I160))) -> 00:00:40 | R160: 1900 | S160: FALSE | T160: FALSE
A161: 160 | B161: - | G161: 115.4004107 | L161: 45 | M161: =VLOOKUP(A161,'Chrono+Classement'!G:O,5,FALSE) ->  | N161: =VLOOKUP(A161,'Chrono+Classement'!G:O,9,FALSE) ->  | O161: =IF(L161=17,Param!G161,IF(L161=28,Param!H161,IF(L161=45,Param!I161))) -> 00:00:40 | R161: 1900 | S161: FALSE | T161: FALSE
A162: 161 | B162: - | G162: 115.4004107 | L162: 45 | M162: =VLOOKUP(A162,'Chrono+Classement'!G:O,5,FALSE) ->  | N162: =VLOOKUP(A162,'Chrono+Classement'!G:O,9,FALSE) ->  | O162: =IF(L162=17,Param!G162,IF(L162=28,Param!H162,IF(L162=45,Param!I162))) -> 00:00:40 | R162: 1900 | S162: FALSE | T162: FALSE
A163: 162 | B163: - | G163: 115.4004107 | L163: 45 | M163: =VLOOKUP(A163,'Chrono+Classement'!G:O,5,FALSE) ->  | N163: =VLOOKUP(A163,'Chrono+Classement'!G:O,9,FALSE) ->  | O163: =IF(L163=17,Param!G163,IF(L163=28,Param!H163,IF(L163=45,Param!I163))) -> 00:00:40 | R163: 1900 | S163: FALSE | T163: FALSE
A164: 163 | B164: - | G164: 115.4004107 | L164: 45 | M164: =VLOOKUP(A164,'Chrono+Classement'!G:O,5,FALSE) ->  | N164: =VLOOKUP(A164,'Chrono+Classement'!G:O,9,FALSE) ->  | O164: =IF(L164=17,Param!G164,IF(L164=28,Param!H164,IF(L164=45,Param!I164))) -> 00:00:40 | R164: 1900 | S164: FALSE | T164: FALSE
A165: 164 | B165: - | G165: 115.4004107 | L165: 45 | M165: =VLOOKUP(A165,'Chrono+Classement'!G:O,5,FALSE) ->  | N165: =VLOOKUP(A165,'Chrono+Classement'!G:O,9,FALSE) ->  | O165: =IF(L165=17,Param!G165,IF(L165=28,Param!H165,IF(L165=45,Param!I165))) -> 00:00:40 | P165: =N165-O165 ->  | R165: 1900 | S165: FALSE | T165: FALSE
A166: 165 | B166: - | G166: 115.4004107 | L166: 45 | M166: =VLOOKUP(A166,'Chrono+Classement'!G:O,5,FALSE) ->  | N166: =VLOOKUP(A166,'Chrono+Classement'!G:O,9,FALSE) ->  | O166: =IF(L166=17,Param!G166,IF(L166=28,Param!H166,IF(L166=45,Param!I166))) -> 00:00:40 | R166: 1900 | S166: FALSE | T166: FALSE
A167: 166 | B167: - | G167: 115.4004107 | L167: 45 | M167: =VLOOKUP(A167,'Chrono+Classement'!G:O,5,FALSE) ->  | N167: =VLOOKUP(A167,'Chrono+Classement'!G:O,9,FALSE) ->  | O167: =IF(L167=17,Param!G167,IF(L167=28,Param!H167,IF(L167=45,Param!I167))) -> 00:00:40 | R167: 1900 | S167: FALSE | T167: FALSE
A168: 167 | B168: - | G168: 115.4004107 | L168: 45 | M168: =VLOOKUP(A168,'Chrono+Classement'!G:O,5,FALSE) ->  | N168: =VLOOKUP(A168,'Chrono+Classement'!G:O,9,FALSE) ->  | O168: =IF(L168=17,Param!G168,IF(L168=28,Param!H168,IF(L168=45,Param!I168))) -> 00:00:40 | R168: 1900 | S168: FALSE | T168: FALSE
A169: 168 | B169: - | G169: 115.4004107 | L169: 45 | M169: =VLOOKUP(A169,'Chrono+Classement'!G:O,5,FALSE) ->  | N169: =VLOOKUP(A169,'Chrono+Classement'!G:O,9,FALSE) ->  | O169: =IF(L169=17,Param!G169,IF(L169=28,Param!H169,IF(L169=45,Param!I169))) -> 00:00:40 | R169: 1900 | S169: FALSE | T169: FALSE
A170: 169 | B170: - | G170: 115.4004107 | L170: 45 | M170: =VLOOKUP(A170,'Chrono+Classement'!G:O,5,FALSE) ->  | N170: =VLOOKUP(A170,'Chrono+Classement'!G:O,9,FALSE) ->  | O170: =IF(L170=17,Param!G170,IF(L170=28,Param!H170,IF(L170=45,Param!I170))) -> 00:00:40 | R170: 1900 | S170: FALSE | T170: FALSE
A171: 170 | B171: - | G171: 115.4004107 | L171: 45 | M171: =VLOOKUP(A171,'Chrono+Classement'!G:O,5,FALSE) ->  | N171: =VLOOKUP(A171,'Chrono+Classement'!G:O,9,FALSE) ->  | O171: =IF(L171=17,Param!G171,IF(L171=28,Param!H171,IF(L171=45,Param!I171))) -> 00:00:40 | R171: 1900 | S171: FALSE | T171: FALSE
A172: 171 | B172: - | G172: 115.4004107 | L172: 45 | M172: =VLOOKUP(A172,'Chrono+Classement'!G:O,5,FALSE) ->  | N172: =VLOOKUP(A172,'Chrono+Classement'!G:O,9,FALSE) ->  | O172: =IF(L172=17,Param!G172,IF(L172=28,Param!H172,IF(L172=45,Param!I172))) -> 00:00:40 | R172: 1900 | S172: FALSE | T172: FALSE
A173: 172 | B173: - | G173: 115.4004107 | L173: 45 | M173: =VLOOKUP(A173,'Chrono+Classement'!G:O,5,FALSE) ->  | N173: =VLOOKUP(A173,'Chrono+Classement'!G:O,9,FALSE) ->  | O173: =IF(L173=17,Param!G173,IF(L173=28,Param!H173,IF(L173=45,Param!I173))) -> 00:00:40 | R173: 1900 | S173: FALSE | T173: FALSE
A174: 173 | B174: - | G174: 115.4004107 | L174: 45 | M174: =VLOOKUP(A174,'Chrono+Classement'!G:O,5,FALSE) ->  | N174: =VLOOKUP(A174,'Chrono+Classement'!G:O,9,FALSE) ->  | O174: =IF(L174=17,Param!G174,IF(L174=28,Param!H174,IF(L174=45,Param!I174))) -> 00:00:40 | R174: 1900 | S174: FALSE | T174: FALSE
A175: 174 | B175: - | G175: 115.4004107 | L175: 45 | M175: =VLOOKUP(A175,'Chrono+Classement'!G:O,5,FALSE) ->  | N175: =VLOOKUP(A175,'Chrono+Classement'!G:O,9,FALSE) ->  | O175: =IF(L175=17,Param!G175,IF(L175=28,Param!H175,IF(L175=45,Param!I175))) -> 00:00:40 | R175: 1900 | S175: FALSE | T175: FALSE
A176: 175 | B176: - | G176: 115.4004107 | L176: 45 | M176: =VLOOKUP(A176,'Chrono+Classement'!G:O,5,FALSE) ->  | N176: =VLOOKUP(A176,'Chrono+Classement'!G:O,9,FALSE) ->  | O176: =IF(L176=17,Param!G176,IF(L176=28,Param!H176,IF(L176=45,Param!I176))) -> 00:00:40 | R176: 1900 | S176: FALSE | T176: FALSE
A177: 176 | B177: - | G177: 115.4004107 | L177: 45 | M177: =VLOOKUP(A177,'Chrono+Classement'!G:O,5,FALSE) ->  | N177: =VLOOKUP(A177,'Chrono+Classement'!G:O,9,FALSE) ->  | O177: =IF(L177=17,Param!G177,IF(L177=28,Param!H177,IF(L177=45,Param!I177))) -> 00:00:40 | R177: 1900 | S177: FALSE | T177: FALSE
A178: 177 | B178: - | G178: 115.4004107 | L178: 45 | M178: =VLOOKUP(A178,'Chrono+Classement'!G:O,5,FALSE) ->  | N178: =VLOOKUP(A178,'Chrono+Classement'!G:O,9,FALSE) ->  | O178: =IF(L178=17,Param!G178,IF(L178=28,Param!H178,IF(L178=45,Param!I178))) -> 00:00:40 | R178: 1900 | S178: FALSE | T178: FALSE
A179: 178 | B179: - | G179: 115.4004107 | L179: 45 | M179: =VLOOKUP(A179,'Chrono+Classement'!G:O,5,FALSE) ->  | N179: =VLOOKUP(A179,'Chrono+Classement'!G:O,9,FALSE) ->  | O179: =IF(L179=17,Param!G179,IF(L179=28,Param!H179,IF(L179=45,Param!I179))) -> 00:00:40 | R179: 1900 | S179: FALSE | T179: FALSE
A180: 179 | B180: - | G180: 115.4004107 | L180: 45 | M180: =VLOOKUP(A180,'Chrono+Classement'!G:O,5,FALSE) ->  | N180: =VLOOKUP(A180,'Chrono+Classement'!G:O,9,FALSE) ->  | O180: =IF(L180=17,Param!G180,IF(L180=28,Param!H180,IF(L180=45,Param!I180))) -> 00:00:40 | R180: 1900 | S180: FALSE | T180: FALSE
A181: 180 | B181: - | G181: 115.4004107 | L181: 45 | M181: =VLOOKUP(A181,'Chrono+Classement'!G:O,5,FALSE) ->  | N181: =VLOOKUP(A181,'Chrono+Classement'!G:O,9,FALSE) ->  | O181: =IF(L181=17,Param!G181,IF(L181=28,Param!H181,IF(L181=45,Param!I181))) -> 00:00:40 | R181: 1900 | S181: FALSE | T181: FALSE
A182: 181 | B182: - | G182: 115.4004107 | L182: 45 | M182: =VLOOKUP(A182,'Chrono+Classement'!G:O,5,FALSE) ->  | N182: =VLOOKUP(A182,'Chrono+Classement'!G:O,9,FALSE) ->  | O182: =IF(L182=17,Param!G182,IF(L182=28,Param!H182,IF(L182=45,Param!I182))) -> 00:00:40 | R182: 1900 | S182: FALSE | T182: FALSE
A183: 182 | B183: - | G183: 115.4004107 | L183: 45 | M183: =VLOOKUP(A183,'Chrono+Classement'!G:O,5,FALSE) ->  | N183: =VLOOKUP(A183,'Chrono+Classement'!G:O,9,FALSE) ->  | O183: =IF(L183=17,Param!G183,IF(L183=28,Param!H183,IF(L183=45,Param!I183))) -> 00:00:40 | R183: 1900 | S183: FALSE | T183: FALSE
A184: 183 | B184: - | G184: 115.4004107 | L184: 45 | M184: =VLOOKUP(A184,'Chrono+Classement'!G:O,5,FALSE) ->  | N184: =VLOOKUP(A184,'Chrono+Classement'!G:O,9,FALSE) ->  | O184: =IF(L184=17,Param!G184,IF(L184=28,Param!H184,IF(L184=45,Param!I184))) -> 00:00:40 | R184: 1900 | S184: FALSE | T184: FALSE
A185: 184 | B185: - | G185: 115.4004107 | L185: 45 | M185: =VLOOKUP(A185,'Chrono+Classement'!G:O,5,FALSE) ->  | N185: =VLOOKUP(A185,'Chrono+Classement'!G:O,9,FALSE) ->  | O185: =IF(L185=17,Param!G185,IF(L185=28,Param!H185,IF(L185=45,Param!I185))) -> 00:00:40 | R185: 1900 | S185: FALSE | T185: FALSE
A186: 185 | B186: - | G186: 115.4004107 | L186: 45 | M186: =VLOOKUP(A186,'Chrono+Classement'!G:O,5,FALSE) ->  | N186: =VLOOKUP(A186,'Chrono+Classement'!G:O,9,FALSE) ->  | O186: =IF(L186=17,Param!G186,IF(L186=28,Param!H186,IF(L186=45,Param!I186))) -> 00:00:40 | R186: 1900 | S186: FALSE | T186: FALSE
A187: 186 | B187: - | G187: 115.4004107 | L187: 45 | M187: =VLOOKUP(A187,'Chrono+Classement'!G:O,5,FALSE) ->  | N187: =VLOOKUP(A187,'Chrono+Classement'!G:O,9,FALSE) ->  | O187: =IF(L187=17,Param!G187,IF(L187=28,Param!H187,IF(L187=45,Param!I187))) -> 00:00:40 | R187: 1900 | S187: FALSE | T187: FALSE
A188: 187 | B188: - | G188: 115.4004107 | L188: 45 | M188: =VLOOKUP(A188,'Chrono+Classement'!G:O,5,FALSE) ->  | N188: =VLOOKUP(A188,'Chrono+Classement'!G:O,9,FALSE) ->  | O188: =IF(L188=17,Param!G188,IF(L188=28,Param!H188,IF(L188=45,Param!I188))) -> 00:00:40 | R188: 1900 | S188: FALSE | T188: FALSE
A189: 188 | B189: - | G189: 115.4004107 | L189: 45 | M189: =VLOOKUP(A189,'Chrono+Classement'!G:O,5,FALSE) ->  | N189: =VLOOKUP(A189,'Chrono+Classement'!G:O,9,FALSE) ->  | O189: =IF(L189=17,Param!G189,IF(L189=28,Param!H189,IF(L189=45,Param!I189))) -> 00:00:40 | R189: 1900 | S189: FALSE | T189: FALSE
A190: 189 | B190: - | G190: 115.4004107 | L190: 45 | M190: =VLOOKUP(A190,'Chrono+Classement'!G:O,5,FALSE) ->  | N190: =VLOOKUP(A190,'Chrono+Classement'!G:O,9,FALSE) ->  | O190: =IF(L190=17,Param!G190,IF(L190=28,Param!H190,IF(L190=45,Param!I190))) -> 00:00:40 | R190: 1900 | S190: FALSE | T190: FALSE
A191: 190 | B191: - | G191: 115.4004107 | L191: 45 | M191: =VLOOKUP(A191,'Chrono+Classement'!G:O,5,FALSE) ->  | N191: =VLOOKUP(A191,'Chrono+Classement'!G:O,9,FALSE) ->  | O191: =IF(L191=17,Param!G191,IF(L191=28,Param!H191,IF(L191=45,Param!I191))) -> 00:00:40 | R191: 1900 | S191: FALSE | T191: FALSE
A192: 191 | B192: - | G192: 115.4004107 | L192: 45 | M192: =VLOOKUP(A192,'Chrono+Classement'!G:O,5,FALSE) ->  | N192: =VLOOKUP(A192,'Chrono+Classement'!G:O,9,FALSE) ->  | O192: =IF(L192=17,Param!G192,IF(L192=28,Param!H192,IF(L192=45,Param!I192))) -> 00:00:40 | R192: 1900 | S192: FALSE | T192: FALSE
A193: 192 | B193: - | G193: 115.4004107 | L193: 45 | M193: =VLOOKUP(A193,'Chrono+Classement'!G:O,5,FALSE) ->  | N193: =VLOOKUP(A193,'Chrono+Classement'!G:O,9,FALSE) ->  | O193: =IF(L193=17,Param!G193,IF(L193=28,Param!H193,IF(L193=45,Param!I193))) -> 00:00:40 | R193: 1900 | S193: FALSE | T193: FALSE
A194: 193 | B194: =CONCATENATE(C194,"-",D194) -> - | G194: =(TODAY()-F194)/365.25 -> 115.4004107 | L194: 45 | M194: =VLOOKUP(A194,'Chrono+Classement'!G:O,5,FALSE) ->  | N194: =VLOOKUP(A194,'Chrono+Classement'!G:O,9,FALSE) ->  | O194: =IF(L194=17,Param!G194,IF(L194=28,Param!H194,IF(L194=45,Param!I194))) -> 00:00:40 | R194: =YEAR(F194) -> 1900 | S194: =IF(E194="M",IF(R194<=1965,"Masters 5",IF(R194<=1975,"Masters 3/4",IF(R194<=1985,"Masters 1/2",IF(R194<=1992,"Hommes",IF(R194<=1996,"Espoirs",IF(R194<=1998,"Juniors",IF(R194<=2000,"Cadets",0)))))))) -> FALSE | T194: =IF(E194="F",IF(R194<=1992,"Dames",IF(R194<=1996,"Espoirs Dames",IF(R194<=1998,"Juniors Dames",IF(R194<=2000,"Cadettes",0))))) -> FALSE
A195: 194 | B195: - | G195: 115.4004107 | L195: 45 | M195: =VLOOKUP(A195,'Chrono+Classement'!G:O,5,FALSE) ->  | N195: =VLOOKUP(A195,'Chrono+Classement'!G:O,9,FALSE) ->  | O195: =IF(L195=17,Param!G195,IF(L195=28,Param!H195,IF(L195=45,Param!I195))) -> 00:00:40 | R195: 1900 | S195: FALSE | T195: FALSE
A196: 195 | B196: - | G196: 115.4004107 | L196: 45 | M196: =VLOOKUP(A196,'Chrono+Classement'!G:O,5,FALSE) ->  | N196: =VLOOKUP(A196,'Chrono+Classement'!G:O,9,FALSE) ->  | O196: =IF(L196=17,Param!G196,IF(L196=28,Param!H196,IF(L196=45,Param!I196))) -> 00:00:40 | R196: 1900 | S196: FALSE | T196: FALSE
A197: 196 | B197: - | G197: 115.4004107 | L197: 45 | M197: =VLOOKUP(A197,'Chrono+Classement'!G:O,5,FALSE) ->  | N197: =VLOOKUP(A197,'Chrono+Classement'!G:O,9,FALSE) ->  | O197: =IF(L197=17,Param!G197,IF(L197=28,Param!H197,IF(L197=45,Param!I197))) -> 00:00:40 | R197: 1900 | S197: FALSE | T197: FALSE
A198: 197 | B198: - | G198: 115.4004107 | L198: 45 | M198: =VLOOKUP(A198,'Chrono+Classement'!G:O,5,FALSE) ->  | N198: =VLOOKUP(A198,'Chrono+Classement'!G:O,9,FALSE) ->  | O198: =IF(L198=17,Param!G198,IF(L198=28,Param!H198,IF(L198=45,Param!I198))) -> 00:00:40 | R198: 1900 | S198: FALSE | T198: FALSE
A199: 198 | B199: - | G199: 115.4004107 | L199: 45 | M199: =VLOOKUP(A199,'Chrono+Classement'!G:O,5,FALSE) ->  | N199: =VLOOKUP(A199,'Chrono+Classement'!G:O,9,FALSE) ->  | O199: =IF(L199=17,Param!G199,IF(L199=28,Param!H199,IF(L199=45,Param!I199))) -> 00:00:40 | R199: 1900 | S199: FALSE | T199: FALSE
A200: 199 | B200: - | G200: 115.4004107 | L200: 45 | M200: =VLOOKUP(A200,'Chrono+Classement'!G:O,5,FALSE) ->  | N200: =VLOOKUP(A200,'Chrono+Classement'!G:O,9,FALSE) ->  | O200: =IF(L200=17,Param!G200,IF(L200=28,Param!H200,IF(L200=45,Param!I200))) -> 00:00:40 | R200: 1900 | S200: FALSE | T200: FALSE
... 800 more rows

Sheet Param (hidden)
A1: sexe | B1: Licence | C1: Categorie | E1: Circuit | G1: 17 km | H1: 28 km | I1: 45 km | O1: N° Licence | Q1: Classement
A2: F | B2: FFC | C2: Cadets | D2: 17 | E2: 17 | G2: 00:00:00 | H2: 00:00:42 | I2: 00:00:40 | Q2: 1
A3: M | B3: FSGT | C3: Cadettes | D3: 17 | E3: 28 | G3: =G2 -> 00:00:00 | H3: =H2 -> 00:00:42 | I3: 00:00:40 | Q3: 2
B4: UFOLEP | C4: Juniors | D4: 28 | E4: 45 | G4: =G3 -> 00:00:00 | H4: 00:00:42 | I4: 00:00:40 | Q4: 3
B5: NL | C5: Juniors Dames | D5: 28 | G5: 00:00:00 | H5: 00:00:42 | I5: 00:00:40 | Q5: 4
C6: Espoirs | D6: 45 | G6: 00:00:00 | H6: 00:00:42 | I6: 00:00:40 | Q6: 5
C7: Espoirs Dames | D7: 28 | G7: 00:00:00 | H7: 00:00:42 | I7: 00:00:40 | Q7: 6
C8: Dames | D8: 28 | G8: 00:00:00 | H8: 00:00:42 | I8: 00:00:40 | Q8: 7
C9: Dames 45 | D9: 45 | G9: 00:00:00 | H9: 00:00:42 | I9: 00:00:40 | Q9: 8
C10: Hommes | D10: 45 | G10: 00:00:00 | H10: 00:00:42 | I10: 00:00:40 | Q10: 9
C11: Masters 1/2 | D11: 45 | G11: 00:00:00 | H11: 00:00:42 | I11: 00:00:40 | Q11: 10
C12: Masters 3/4 | D12: 28 | G12: 00:00:00 | H12: 00:00:42 | I12: 00:00:40 | Q12: 11
C13: Masters 5 | D13: 28 | G13: 00:00:00 | H13: 00:00:42 | I13: 00:00:40 | Q13: 12
G14: 00:00:00 | H14: 00:00:42 | I14: 00:00:40 | Q14: 13
G15: 00:00:00 | H15: 00:00:42 | I15: 00:00:40 | Q15: 14
G16: 00:00:00 | H16: 00:00:42 | I16: 00:00:40 | Q16: 15
G17: 00:00:00 | H17: 00:00:42 | I17: 00:00:40 | Q17: 16
G18: 00:00:00 | H18: 00:00:42 | I18: 00:00:40 | Q18: 17
G19: 00:00:00 | H19: =H18 -> 00:00:42 | I19: =I18 -> 00:00:40 | Q19: 18
G20: 00:00:00 | H20: 00:00:42 | I20: 00:00:40 | Q20: 19
G21: 00:00:00 | H21: 00:00:42 | I21: 00:00:40 | Q21: 20
G22: 00:00:00 | H22: 00:00:42 | I22: 00:00:40 | Q22: 21
G23: 00:00:00 | H23: 00:00:42 | I23: 00:00:40 | Q23: 22
G24: 00:00:00 | H24: 00:00:42 | I24: 00:00:40 | Q24: 23
G25: 00:00:00 | H25: 00:00:42 | I25: 00:00:40 | Q25: 24
G26: 00:00:00 | H26: 00:00:42 | I26: 00:00:40 | Q26: 25
G27: 00:00:00 | H27: 00:00:42 | I27: 00:00:40 | Q27: 26
G28: 00:00:00 | H28: 00:00:42 | I28: 00:00:40 | Q28: 27
G29: 00:00:00 | H29: 00:00:42 | I29: 00:00:40 | Q29: 28
G30: 00:00:00 | H30: 00:00:42 | I30: 00:00:40 | Q30: 29
G31: 00:00:00 | H31: 00:00:42 | I31: 00:00:40 | Q31: 30
G32: 00:00:00 | H32: 00:00:42 | I32: 00:00:40 | Q32: 31
G33: 00:00:00 | H33: 00:00:42 | I33: 00:00:40 | Q33: 32
G34: 00:00:00 | H34: 00:00:42 | I34: 00:00:40 | Q34: 33
G35: 00:00:00 | H35: 00:00:42 | I35: 00:00:40 | Q35: 34
G36: 00:00:00 | H36: 00:00:42 | I36: 00:00:40 | Q36: 35
G37: 00:00:00 | H37: 00:00:42 | I37: 00:00:40 | Q37: 36
G38: 00:00:00 | H38: 00:00:42 | I38: 00:00:40 | Q38: 37
G39: 00:00:00 | H39: 00:00:42 | I39: 00:00:40 | Q39: 38
G40: 00:00:00 | H40: 00:00:42 | I40: 00:00:40 | Q40: 39
G41: 00:00:00 | H41: 00:00:42 | I41: 00:00:40 | Q41: 40
G42: 00:00:00 | H42: 00:00:42 | I42: 00:00:40 | Q42: 41
G43: 00:00:00 | H43: 00:00:42 | I43: 00:00:40 | Q43: 42
G44: 00:00:00 | H44: 00:00:42 | I44: 00:00:40 | Q44: 43
G45: 00:00:00 | H45: 00:00:42 | I45: 00:00:40 | Q45: 44
G46: 00:00:00 | H46: 00:00:42 | I46: 00:00:40 | Q46: 45
G47: 00:00:00 | H47: 00:00:42 | I47: 00:00:40 | Q47: 46
G48: 00:00:00 | H48: 00:00:42 | I48: 00:00:40 | Q48: 47
G49: 00:00:00 | H49: 00:00:42 | I49: 00:00:40 | Q49: 48
G50: 00:00:00 | H50: 00:00:42 | I50: 00:00:40 | Q50: 49
G51: 00:00:00 | H51: 00:00:42 | I51: 00:00:40 | Q51: 50
G52: 00:00:00 | H52: 00:00:42 | I52: 00:00:40 | Q52: 51
G53: 00:00:00 | H53: 00:00:42 | I53: 00:00:40 | Q53: 52
G54: 00:00:00 | H54: 00:00:42 | I54: 00:00:40 | Q54: 53
G55: 00:00:00 | H55: 00:00:42 | I55: 00:00:40 | Q55: 54
G56: 00:00:00 | H56: 00:00:42 | I56: 00:00:40 | Q56: 55
G57: 00:00:00 | H57: 00:00:42 | I57: 00:00:40 | Q57: 56
G58: 00:00:00 | H58: 00:00:42 | I58: 00:00:40 | Q58: 57
G59: 00:00:00 | H59: 00:00:42 | I59: 00:00:40 | Q59: 58
G60: 00:00:00 | H60: 00:00:42 | I60: 00:00:40 | Q60: 59
G61: 00:00:00 | H61: 00:00:42 | I61: 00:00:40 | Q61: 60
G62: 00:00:00 | H62: 00:00:42 | I62: 00:00:40 | Q62: 61
G63: 00:00:00 | H63: 00:00:42 | I63: 00:00:40 | Q63: 62
G64: 00:00:00 | H64: 00:00:42 | I64: 00:00:40 | Q64: 63
G65: 00:00:00 | H65: 00:00:42 | I65: 00:00:40 | Q65: 64
G66: 00:00:00 | H66: 00:00:42 | I66: 00:00:40 | Q66: 65
G67: 00:00:00 | H67: 00:00:42 | I67: 00:00:40 | Q67: 66
G68: =G67 -> 00:00:00 | H68: 00:00:42 | I68: 00:00:40 | Q68: 67
G69: 00:00:00 | H69: 00:00:42 | I69: 00:00:40 | Q69: 68
G70: 00:00:00 | H70: 00:00:42 | I70: 00:00:40 | Q70: 69
G71: 00:00:00 | H71: 00:00:42 | I71: 00:00:40 | Q71: 70
G72: 00:00:00 | H72: 00:00:42 | I72: 00:00:40 | Q72: 71
G73: 00:00:00 | H73: 00:00:42 | I73: 00:00:40 | Q73: 72
G74: 00:00:00 | H74: 00:00:42 | I74: 00:00:40 | Q74: 73
G75: 00:00:00 | H75: 00:00:42 | I75: 00:00:40 | Q75: 74
G76: 00:00:00 | H76: 00:00:42 | I76: 00:00:40 | Q76: 75
G77: 00:00:00 | H77: 00:00:42 | I77: 00:00:40 | Q77: 76
G78: 00:00:00 | H78: 00:00:42 | I78: 00:00:40 | Q78: 77
G79: 00:00:00 | H79: 00:00:42 | I79: 00:00:40 | Q79: 78
G80: 00:00:00 | H80: 00:00:42 | I80: 00:00:40 | Q80: 79
G81: 00:00:00 | H81: 00:00:42 | I81: 00:00:40 | Q81: 80
G82: 00:00:00 | H82: 00:00:42 | I82: 00:00:40 | Q82: 81
G83: 00:00:00 | H83: =H82 -> 00:00:42 | I83: =I82 -> 00:00:40 | Q83: 82
G84: 00:00:00 | H84: 00:00:42 | I84: 00:00:40 | Q84: 83
G85: 00:00:00 | H85: 00:00:42 | I85: 00:00:40 | Q85: 84
G86: 00:00:00 | H86: 00:00:42 | I86: 00:00:40 | Q86: 85
G87: 00:00:00 | H87: 00:00:42 | I87: 00:00:40 | Q87: 86
G88: 00:00:00 | H88: 00:00:42 | I88: 00:00:40 | Q88: 87
G89: 00:00:00 | H89: 00:00:42 | I89: 00:00:40 | Q89: 88
G90: 00:00:00 | H90: 00:00:42 | I90: 00:00:40 | Q90: 89
G91: 00:00:00 | H91: 00:00:42 | I91: 00:00:40 | Q91: 90
G92: 00:00:00 | H92: 00:00:42 | I92: 00:00:40 | Q92: 91
G93: 00:00:00 | H93: 00:00:42 | I93: 00:00:40 | Q93: 92
G94: 00:00:00 | H94: 00:00:42 | I94: 00:00:40 | Q94: 93
G95: 00:00:00 | H95: 00:00:42 | I95: 00:00:40 | Q95: 94
G96: 00:00:00 | H96: 00:00:42 | I96: 00:00:40 | Q96: 95
G97: 00:00:00 | H97: 00:00:42 | I97: 00:00:40 | Q97: 96
G98: 00:00:00 | H98: 00:00:42 | I98: 00:00:40 | Q98: 97
G99: 00:00:00 | H99: 00:00:42 | I99: 00:00:40 | Q99: 98
G100: 00:00:00 | H100: 00:00:42 | I100: 00:00:40 | Q100: 99
G101: 00:00:00 | H101: 00:00:42 | I101: 00:00:40 | Q101: 100
G102: 00:00:00 | H102: 00:00:42 | I102: 00:00:40 | Q102: 101
G103: 00:00:00 | H103: 00:00:42 | I103: 00:00:40 | Q103: 102
G104: 00:00:00 | H104: 00:00:42 | I104: 00:00:40 | Q104: 103
G105: 00:00:00 | H105: 00:00:42 | I105: 00:00:40 | Q105: 104
G106: 00:00:00 | H106: 00:00:42 | I106: 00:00:40 | Q106: 105
G107: 00:00:00 | H107: 00:00:42 | I107: 00:00:40 | Q107: 106
G108: 00:00:00 | H108: 00:00:42 | I108: 00:00:40 | Q108: 107
G109: 00:00:00 | H109: 00:00:42 | I109: 00:00:40 | Q109: 108
G110: 00:00:00 | H110: 00:00:42 | I110: 00:00:40 | Q110: 109
G111: 00:00:00 | H111: 00:00:42 | I111: 00:00:40 | Q111: 110
G112: 00:00:00 | H112: 00:00:42 | I112: 00:00:40 | Q112: 111
G113: 00:00:00 | H113: 00:00:42 | I113: 00:00:40 | Q113: 112
G114: 00:00:00 | H114: 00:00:42 | I114: 00:00:40 | Q114: 113
G115: 00:00:00 | H115: 00:00:42 | I115: 00:00:40 | Q115: 114
G116: 00:00:00 | H116: 00:00:42 | I116: 00:00:40 | Q116: 115
G117: 00:00:00 | H117: 00:00:42 | I117: 00:00:40 | Q117: 116
G118: 00:00:00 | H118: 00:00:42 | I118: 00:00:40 | Q118: 117
G119: 00:00:00 | H119: 00:00:42 | I119: 00:00:40 | Q119: 118
G120: 00:00:00 | H120: 00:00:42 | I120: 00:00:40 | Q120: 119
G121: 00:00:00 | H121: 00:00:42 | I121: 00:00:40 | Q121: 120
G122: 00:00:00 | H122: 00:00:42 | I122: 00:00:40 | Q122: 121
G123: 00:00:00 | H123: 00:00:42 | I123: 00:00:40 | Q123: 122
G124: 00:00:00 | H124: 00:00:42 | I124: 00:00:40 | Q124: 123
G125: 00:00:00 | H125: 00:00:42 | I125: 00:00:40 | Q125: 124
G126: 00:00:00 | H126: 00:00:42 | I126: 00:00:40 | Q126: 125
G127: 00:00:00 | H127: 00:00:42 | I127: 00:00:40 | Q127: 126
G128: 00:00:00 | H128: 00:00:42 | I128: 00:00:40 | Q128: 127
G129: 00:00:00 | H129: 00:00:42 | I129: 00:00:40 | Q129: 128
G130: 00:00:00 | H130: 00:00:42 | I130: 00:00:40 | Q130: 129
G131: 00:00:00 | H131: 00:00:42 | I131: 00:00:40 | Q131: 130
G132: =G131 -> 00:00:00 | H132: 00:00:42 | I132: 00:00:40 | Q132: 131
G133: 00:00:00 | H133: 00:00:42 | I133: 00:00:40 | Q133: 132
G134: 00:00:00 | H134: 00:00:42 | I134: 00:00:40 | Q134: 133
G135: 00:00:00 | H135: 00:00:42 | I135: 00:00:40 | Q135: 134
G136: 00:00:00 | H136: 00:00:42 | I136: 00:00:40 | Q136: 135
G137: 00:00:00 | H137: 00:00:42 | I137: 00:00:40 | Q137: 136
G138: 00:00:00 | H138: 00:00:42 | I138: 00:00:40 | Q138: 137
G139: 00:00:00 | H139: 00:00:42 | I139: 00:00:40 | Q139: 138
G140: 00:00:00 | H140: 00:00:42 | I140: 00:00:40 | Q140: 139
G141: 00:00:00 | H141: 00:00:42 | I141: 00:00:40 | Q141: 140
G142: 00:00:00 | H142: 00:00:42 | I142: 00:00:40 | Q142: 141
G143: 00:00:00 | H143: 00:00:42 | I143: 00:00:40 | Q143: 142
G144: 00:00:00 | H144: 00:00:42 | I144: 00:00:40 | Q144: 143
G145: 00:00:00 | H145: 00:00:42 | I145: 00:00:40 | Q145: 144
G146: 00:00:00 | H146: 00:00:42 | I146: 00:00:40 | Q146: 145
G147: 00:00:00 | H147: =H146 -> 00:00:42 | I147: =I146 -> 00:00:40 | Q147: 146
G148: 00:00:00 | H148: 00:00:42 | I148: 00:00:40 | Q148: 147
G149: 00:00:00 | H149: 00:00:42 | I149: 00:00:40 | Q149: 148
G150: 00:00:00 | H150: 00:00:42 | I150: 00:00:40 | Q150: 149
G151: 00:00:00 | H151: 00:00:42 | I151: 00:00:40 | Q151: 150
G152: 00:00:00 | H152: 00:00:42 | I152: 00:00:40 | Q152: 151
G153: 00:00:00 | H153: 00:00:42 | I153: 00:00:40 | Q153: 152
G154: 00:00:00 | H154: 00:00:42 | I154: 00:00:40 | Q154: 153
G155: 00:00:00 | H155: 00:00:42 | I155: 00:00:40 | Q155: 154
G156: 00:00:00 | H156: 00:00:42 | I156: 00:00:40 | Q156: 155
G157: 00:00:00 | H157: 00:00:42 | I157: 00:00:40 | Q157: 156
G158: 00:00:00 | H158: 00:00:42 | I158: 00:00:40 | Q158: 157
G159: 00:00:00 | H159: 00:00:42 | I159: 00:00:40 | Q159: 158
G160: 00:00:00 | H160: 00:00:42 | I160: 00:00:40 | Q160: 159
G161: 00:00:00 | H161: 00:00:42 | I161: 00:00:40 | Q161: 160
G162: 00:00:00 | H162: 00:00:42 | I162: 00:00:40 | Q162: 161
G163: 00:00:00 | H163: 00:00:42 | I163: 00:00:40 | Q163: 162
G164: 00:00:00 | H164: 00:00:42 | I164: 00:00:40 | Q164: 163
G165: 00:00:00 | H165: 00:00:42 | I165: 00:00:40 | Q165: 164
G166: 00:00:00 | H166: 00:00:42 | I166: 00:00:40 | Q166: 165
G167: 00:00:00 | H167: 00:00:42 | I167: 00:00:40 | Q167: 166
G168: 00:00:00 | H168: 00:00:42 | I168: 00:00:40 | Q168: 167
G169: 00:00:00 | H169: 00:00:42 | I169: 00:00:40 | Q169: 168
G170: 00:00:00 | H170: 00:00:42 | I170: 00:00:40 | Q170: 169
G171: 00:00:00 | H171: 00:00:42 | I171: 00:00:40 | Q171: 170
G172: 00:00:00 | H172: 00:00:42 | I172: 00:00:40 | Q172: 171
G173: 00:00:00 | H173: 00:00:42 | I173: 00:00:40 | Q173: 172
G174: 00:00:00 | H174: 00:00:42 | I174: 00:00:40 | Q174: 173
G175: 00:00:00 | H175: 00:00:42 | I175: 00:00:40 | Q175: 174
G176: 00:00:00 | H176: 00:00:42 | I176: 00:00:40 | Q176: 175
G177: 00:00:00 | H177: 00:00:42 | I177: 00:00:40 | Q177: 176
G178: 00:00:00 | H178: 00:00:42 | I178: 00:00:40 | Q178: 177
G179: 00:00:00 | H179: 00:00:42 | I179: 00:00:40 | Q179: 178
G180: 00:00:00 | H180: 00:00:42 | I180: 00:00:40 | Q180: 179
G181: 00:00:00 | H181: 00:00:42 | I181: 00:00:40 | Q181: 180
G182: 00:00:00 | H182: 00:00:42 | I182: 00:00:40 | Q182: 181
G183: 00:00:00 | H183: 00:00:42 | I183: 00:00:40 | Q183: 182
G184: 00:00:00 | H184: 00:00:42 | I184: 00:00:40 | Q184: 183
G185: 00:00:00 | H185: 00:00:42 | I185: 00:00:40 | Q185: 184
G186: 00:00:00 | H186: 00:00:42 | I186: 00:00:40 | Q186: 185
G187: 00:00:00 | H187: 00:00:42 | I187: 00:00:40 | Q187: 186
G188: 00:00:00 | H188: 00:00:42 | I188: 00:00:40 | Q188: 187
G189: 00:00:00 | H189: 00:00:42 | I189: 00:00:40 | Q189: 188
G190: 00:00:00 | H190: 00:00:42 | I190: 00:00:40 | Q190: 189
G191: 00:00:00 | H191: 00:00:42 | I191: 00:00:40 | Q191: 190
G192: 00:00:00 | H192: 00:00:42 | I192: 00:00:40 | Q192: 191
G193: 00:00:00 | H193: 00:00:42 | I193: 00:00:40 | Q193: 192
G194: 00:00:00 | H194: 00:00:42 | I194: 00:00:40 | Q194: 193
G195: 00:00:00 | H195: 00:00:42 | I195: 00:00:40 | Q195: 194
G196: =G195 -> 00:00:00 | H196: 00:00:42 | I196: 00:00:40 | Q196: 195
G197: 00:00:00 | H197: 00:00:42 | I197: 00:00:40 | Q197: 196
G198: 00:00:00 | H198: 00:00:42 | I198: 00:00:40 | Q198: 197
G199: 00:00:00 | H199: 00:00:42 | I199: 00:00:40 | Q199: 198
G200: 00:00:00 | H200: 00:00:42 | I200: 00:00:40 | Q200: 199
... 799 more rows

Sheet Sauve (hidden)
A1: Plaque | B1: Nom-Prénom | C1: NOM | D1: Prénom | E1: Sexe | F1: Date de naissance | G1: Age fin année | H1: Club | I1: Licence | J1: Categorie | K1: Circuit | L1: Classement | M1: Temps | N1: Ecart Départ | O1: Temps Réel | Q1: Année | R1: H | S1: F
A2: 1 | B2: =CONCATENATE(C2,"-",D2) -> VASSAL-Thibaut | C2: VASSAL | D2: Thibaut | E2: M | F2: 1975-01-16 | G2: =(TODAY()-F2)/365.25 -> 40.3559206 | H2: UV Mazamet | I2: FFC | J2: Masters 3/4 | K2: 45 | L2: =VLOOKUP(A2,'Chrono+Classement'!G:O,5,FALSE) -> 11 | M2: =VLOOKUP(A2,'Chrono+Classement'!G:O,9,FALSE) -> 02:11:41 | N2: =IF(K2=17,Param!G2,IF(K2=28,Param!H2,IF(K2=45,Param!I2))) -> 00:00:40 | O2: =M2-N2 -> 02:11:01 | Q2: =YEAR(F2) -> 1975 | R2: =IF(E2="M",IF(Q2<=1965,"Masters 5",IF(Q2<=1975,"Masters 3/4",IF(Q2<=1985,"Masters 1/2",IF(Q2<=1992,"Hommes",IF(Q2<=1996,"Espoirs",IF(Q2<=1998,"Juniors",IF(Q2<=2000,"Cadets",0)))))))) -> Masters 3/4 | S2: =IF(E2="F",IF(Q2<=1992,"Dames",IF(Q2<=1996,"Espoirs Dames",IF(Q2<=1998,"Juniors Dames",IF(Q2<=2000,"Cadettes",0))))) -> FALSE
A3: 2 | B3: PERUSIN-Benjamin | C3: PERUSIN | D3: Benjamin | E3: M | F3: 1986-02-08 | G3: 29.29226557 | H3: UVAGG | I3: FFC | J3: Hommes | K3: 45 | L3: =VLOOKUP(A3,'Chrono+Classement'!G:O,5,FALSE) -> 18 | M3: =VLOOKUP(A3,'Chrono+Classement'!G:O,9,FALSE) -> 02:23:43 | N3: =IF(K3=17,Param!G3,IF(K3=28,Param!H3,IF(K3=45,Param!I3))) -> 00:00:40 | O3: 02:23:03 | Q3: 1986 | R3: Hommes | S3: FALSE
A4: 3 | B4: TAILLEFER-Loïc | C4: TAILLEFER | D4: Loïc | E4: M | F4: 1990-12-08 | G4: 24.46269678 | H4: TOAC | I4: FFC | J4: Hommes | K4: 45 | L4: =VLOOKUP(A4,'Chrono+Classement'!G:O,5,FALSE) -> 44 | M4: =VLOOKUP(A4,'Chrono+Classement'!G:O,9,FALSE) -> 03:14:25 | N4: =IF(K4=17,Param!G4,IF(K4=28,Param!H4,IF(K4=45,Param!I4))) -> 00:00:40 | O4: 03:13:45 | Q4: 1990 | R4: Hommes | S4: FALSE
A5: 4 | B5: LAPEYRE-Martin | C5: LAPEYRE | D5: Martin | E5: M | F5: 1984-11-11 | G5: 30.53524983 | H5: TOAC | I5: FSGT | J5: Masters 1/2 | K5: 45 | L5: =VLOOKUP(A5,'Chrono+Classement'!G:O,5,FALSE) -> 51 | M5: =VLOOKUP(A5,'Chrono+Classement'!G:O,9,FALSE) -> 03:23:41 | N5: =IF(K5=17,Param!G5,IF(K5=28,Param!H5,IF(K5=45,Param!I5))) -> 00:00:40 | O5: 03:23:01 | Q5: 1984 | R5: Masters 1/2 | S5: FALSE
A6: 5 | B6: PENDERIES-Frédéric | C6: PENDERIES | D6: Frédéric | E6: M | F6: 1975-12-30 | G6: 39.40314853 | H6: Team Racing Stephanois | I6: NL | J6: Masters 3/4 | K6: 45 | L6: =VLOOKUP(A6,'Chrono+Classement'!G:O,5,FALSE) -> 52 | M6: =VLOOKUP(A6,'Chrono+Classement'!G:O,9,FALSE) -> 03:27:23 | N6: =IF(K6=17,Param!G6,IF(K6=28,Param!H6,IF(K6=45,Param!I6))) -> 00:00:40 | O6: 03:26:43 | Q6: 1975 | R6: Masters 3/4 | S6: FALSE
A7: 6 | B7: DELFINO-Benjamin | C7: DELFINO | D7: Benjamin | E7: M | F7: 1991-04-28 | G7: 24.07665982 | H7: Vélo Club Moyenne Durance | I7: FFC | J7: Hommes | K7: 45 | L7: =VLOOKUP(A7,'Chrono+Classement'!G:O,5,FALSE) -> 34 | M7: =VLOOKUP(A7,'Chrono+Classement'!G:O,9,FALSE) -> 02:39:56 | N7: =IF(K7=17,Param!G7,IF(K7=28,Param!H7,IF(K7=45,Param!I7))) -> 00:00:40 | O7: 02:39:16 | Q7: 1991 | R7: Hommes | S7: FALSE
A8: 7 | B8: PETIT-François | C8: PETIT | D8: François | E8: M | F8: 1957-07-02 | G8: 57.8973306 | H8: Les Renardeaux du bas Quercy | I8: FFCT | J8: Masters 5 | K8: 45 | L8: =VLOOKUP(A8,'Chrono+Classement'!G:O,5,FALSE) -> 50 | M8: =VLOOKUP(A8,'Chrono+Classement'!G:O,9,FALSE) -> 03:23:07 | N8: =IF(K8=17,Param!G8,IF(K8=28,Param!H8,IF(K8=45,Param!I8))) -> 00:00:40 | O8: 03:22:27 | Q8: 1957 | R8: Masters 5 | S8: FALSE
A9: 8 | B9: REMY-Julien | C9: REMY | D9: Julien | E9: M | F9: 1985-03-30 | G9: 30.15468857 | H9: CA Castelsarasin | I9: FFC | J9: Masters 1/2 | K9: 45 | L9: =VLOOKUP(A9,'Chrono+Classement'!G:O,5,FALSE) -> 33 | M9: =VLOOKUP(A9,'Chrono+Classement'!G:O,9,FALSE) -> 02:37:01 | N9: =IF(K9=17,Param!G9,IF(K9=28,Param!H9,IF(K9=45,Param!I9))) -> 00:00:40 | O9: 02:36:21 | Q9: 1985 | R9: Masters 1/2 | S9: FALSE
A10: 9 | B10: RAMOUSSE-Arnaud | C10: RAMOUSSE | D10: Arnaud | E10: M | F10: 1972-07-28 | G10: 42.82546201 | H10: CPRS Pins Justaret | I10: FSGT | J10: Masters 3/4 | K10: 45 | L10: =VLOOKUP(A10,'Chrono+Classement'!G:O,5,FALSE) -> 37 | M10: =VLOOKUP(A10,'Chrono+Classement'!G:O,9,FALSE) -> 02:51:06 | N10: =IF(K10=17,Param!G10,IF(K10=28,Param!H10,IF(K10=45,Param!I10))) -> 00:00:40 | O10: 02:50:26 | Q10: 1972 | R10: Masters 3/4 | S10: FALSE
A11: 10 | B11: XIMENES-Thibaut | C11: XIMENES | D11: Thibaut | E11: M | F11: 1988-11-15 | G11: 26.52429843 | I11: NL | J11: Hommes | K11: 45 | L11: =VLOOKUP(A11,'Chrono+Classement'!G:O,5,FALSE) -> 45 | M11: =VLOOKUP(A11,'Chrono+Classement'!G:O,9,FALSE) -> 03:14:50 | N11: =IF(K11=17,Param!G11,IF(K11=28,Param!H11,IF(K11=45,Param!I11))) -> 00:00:40 | O11: 03:14:10 | Q11: 1988 | R11: Hommes | S11: FALSE
A12: 11 | B12: FOURNALES-Olivier | C12: FOURNALES | D12: Olivier | E12: M | F12: 1980-08-02 | G12: 34.81177276 | H12: CAC | I12: FFC | J12: Masters 1/2 | K12: 45 | L12: =VLOOKUP(A12,'Chrono+Classement'!G:O,5,FALSE) -> 20 | M12: =VLOOKUP(A12,'Chrono+Classement'!G:O,9,FALSE) -> 02:26:23 | N12: =IF(K12=17,Param!G12,IF(K12=28,Param!H12,IF(K12=45,Param!I12))) -> 00:00:40 | O12: 02:25:43 | Q12: 1980 | R12: Masters 1/2 | S12: FALSE
A13: 12 | B13: PERRIE-Mathieu | C13: PERRIE | D13: Mathieu | E13: M | F13: 1987-05-06 | G13: 28.05475702 | H13: TOAC | I13: FSGT | J13: Hommes | K13: 45 | L13: =VLOOKUP(A13,'Chrono+Classement'!G:O,5,FALSE) -> 41 | M13: =VLOOKUP(A13,'Chrono+Classement'!G:O,9,FALSE) -> 03:05:32 | N13: =IF(K13=17,Param!G13,IF(K13=28,Param!H13,IF(K13=45,Param!I13))) -> 00:00:40 | O13: 03:04:52 | Q13: 1987 | R13: Hommes | S13: FALSE
A14: 13 | B14: BLOT-Jean-Baptiste | C14: BLOT | D14: Jean-Baptiste | E14: M | F14: 1984-06-22 | G14: 30.92402464 | H14: VTT Cornebarieu | I14: NL | J14: Masters 1/2 | K14: 45 | L14: =VLOOKUP(A14,'Chrono+Classement'!G:O,5,FALSE) -> 35 | M14: =VLOOKUP(A14,'Chrono+Classement'!G:O,9,FALSE) -> 02:44:45 | N14: =IF(K14=17,Param!G14,IF(K14=28,Param!H14,IF(K14=45,Param!I14))) -> 00:00:40 | O14: 02:44:05 | Q14: 1984 | R14: Masters 1/2 | S14: FALSE
A15: 14 | B15: NADEAU-Frédéric | C15: NADEAU | D15: Frédéric | E15: M | F15: 1984-12-10 | G15: 30.45585216 | H15: CHEVREUILS VTT | I15: FFC | J15: Masters 1/2 | K15: 45 | L15: =VLOOKUP(A15,'Chrono+Classement'!G:O,5,FALSE) -> 31 | M15: =VLOOKUP(A15,'Chrono+Classement'!G:O,9,FALSE) -> 02:36:14 | N15: =IF(K15=17,Param!G15,IF(K15=28,Param!H15,IF(K15=45,Param!I15))) -> 00:00:40 | O15: 02:35:34 | Q15: 1984 | R15: Masters 1/2 | S15: FALSE
A16: 15 | B16: METRO-Alex | C16: METRO | D16: Alex | E16: M | F16: 1997-12-02 | G16: 17.47843943 | H16: VILLENEUVE Cycliste | I16: FFC | J16: Juniors | K16: 45 | L16: =VLOOKUP(A16,'Chrono+Classement'!G:O,5,FALSE) -> 16 | M16: =VLOOKUP(A16,'Chrono+Classement'!G:O,9,FALSE) -> 02:20:41 | N16: =IF(K16=17,Param!G16,IF(K16=28,Param!H16,IF(K16=45,Param!I16))) -> 00:00:40 | O16: 02:20:01 | Q16: 1997 | R16: Juniors | S16: FALSE
A17: 16 | B17: VILA-Sébastien | C17: VILA | D17: Sébastien | E17: M | F17: 1981-09-14 | G17: 33.69472964 | H17: TOAC | I17: FFC | J17: Masters 1/2 | K17: 45 | L17: =VLOOKUP(A17,'Chrono+Classement'!G:O,5,FALSE) -> 39 | M17: =VLOOKUP(A17,'Chrono+Classement'!G:O,9,FALSE) -> 02:52:28 | N17: =IF(K17=17,Param!G17,IF(K17=28,Param!H17,IF(K17=45,Param!I17))) -> 00:00:40 | O17: 02:51:48 | Q17: 1981 | R17: Masters 1/2 | S17: FALSE
A18: 17 | B18: PECHBERRY-Laurent | C18: PECHBERRY | D18: Laurent | E18: M | F18: 1970-02-01 | G18: 45.31143053 | H18: LOURDES VTT | I18: FFC | J18: Masters 3/4 | K18: 45 | L18: =VLOOKUP(A18,'Chrono+Classement'!G:O,5,FALSE) -> 22 | M18: =VLOOKUP(A18,'Chrono+Classement'!G:O,9,FALSE) -> 02:28:21 | N18: =IF(K18=17,Param!G18,IF(K18=28,Param!H18,IF(K18=45,Param!I18))) -> 00:00:40 | O18: 02:27:41 | Q18: 1970 | R18: Masters 3/4 | S18: FALSE
A19: 18 | B19: DUPIN-Damien | C19: DUPIN | D19: Damien | E19: M | F19: 1993-09-03 | G19: 21.724846 | H19: Guidons Quercynois | I19: UFOLEP | J19: Espoirs | K19: 45 | L19: =VLOOKUP(A19,'Chrono+Classement'!G:O,5,FALSE) -> 32 | M19: =VLOOKUP(A19,'Chrono+Classement'!G:O,9,FALSE) -> 02:36:58 | N19: =IF(K19=17,Param!G19,IF(K19=28,Param!H19,IF(K19=45,Param!I19))) -> 00:00:40 | O19: 02:36:18 | Q19: 1993 | R19: Espoirs | S19: FALSE
A20: 19 | B20: MONCASSIN-Jonathan | C20: MONCASSIN | D20: Jonathan | E20: M | F20: 1984-09-05 | G20: 30.71868583 | H20: Tarbes Pyrennées Cuyclisme | I20: FSGT | J20: Masters 1/2 | K20: 45 | L20: =VLOOKUP(A20,'Chrono+Classement'!G:O,5,FALSE) -> 54 | M20: =VLOOKUP(A20,'Chrono+Classement'!G:O,9,FALSE) -> 03:33:39 | N20: =IF(K20=17,Param!G20,IF(K20=28,Param!H20,IF(K20=45,Param!I20))) -> 00:00:40 | O20: 03:32:59 | Q20: 1984 | R20: Masters 1/2 | S20: FALSE
A21: 20 | B21: FALOPPA-Christophe | C21: FALOPPA | D21: Christophe | E21: M | F21: 1981-11-03 | G21: 33.5578371 | H21: TOAC | I21: FFC | J21: Masters 1/2 | K21: 45 | L21: =VLOOKUP(A21,'Chrono+Classement'!G:O,5,FALSE) -> 14 | M21: =VLOOKUP(A21,'Chrono+Classement'!G:O,9,FALSE) -> 02:16:59 | N21: =IF(K21=17,Param!G21,IF(K21=28,Param!H21,IF(K21=45,Param!I21))) -> 00:00:40 | O21: 02:16:19 | Q21: 1981 | R21: Masters 1/2 | S21: FALSE
A22: 21 | B22: RIVALS-Eric | C22: RIVALS | D22: Eric | E22: M | F22: 1983-05-18 | G22: 32.02190281 | H22: TOAC | I22: FFC | J22: Masters 1/2 | K22: 45 | L22: =VLOOKUP(A22,'Chrono+Classement'!G:O,5,FALSE) -> 17 | M22: =VLOOKUP(A22,'Chrono+Classement'!G:O,9,FALSE) -> 02:23:08 | N22: =IF(K22=17,Param!G22,IF(K22=28,Param!H22,IF(K22=45,Param!I22))) -> 00:00:40 | O22: 02:22:28 | Q22: 1983 | R22: Masters 1/2 | S22: FALSE
A23: 22 | B23: ROUANET-Xavier | C23: ROUANET | D23: Xavier | E23: M | F23: 1976-02-24 | G23: 39.24982888 | H23: Albi Velo Sport | I23: FFC | J23: Masters 1/2 | K23: 45 | L23: =VLOOKUP(A23,'Chrono+Classement'!G:O,5,FALSE) -> 27 | M23: =VLOOKUP(A23,'Chrono+Classement'!G:O,9,FALSE) -> 02:34:17 | N23: =IF(K23=17,Param!G23,IF(K23=28,Param!H23,IF(K23=45,Param!I23))) -> 00:00:40 | O23: 02:33:37 | Q23: 1976 | R23: Masters 1/2 | S23: FALSE
A24: 23 | B24: SERRES-Benoit | C24: SERRES | D24: Benoit | E24: M | F24: 1970-11-16 | G24: 44.5229295 | H24: Velo Club Naucelle | I24: UFOLEP | J24: Masters 3/4 | K24: 45 | L24: =VLOOKUP(A24,'Chrono+Classement'!G:O,5,FALSE) -> 23 | M24: =VLOOKUP(A24,'Chrono+Classement'!G:O,9,FALSE) -> 02:28:31 | N24: =IF(K24=17,Param!G24,IF(K24=28,Param!H24,IF(K24=45,Param!I24))) -> 00:00:40 | O24: 02:27:51 | Q24: 1970 | R24: Masters 3/4 | S24: FALSE
A25: 24 | B25: TACHON-Bruno | C25: TACHON | D25: Bruno | E25: M | F25: 1967-03-25 | G25: 48.16974675 | H25: Vélo Club Villefranchois | I25: FSGT | J25: Masters 3/4 | K25: 45 | L25: =VLOOKUP(A25,'Chrono+Classement'!G:O,5,FALSE) -> 57 | M25: =VLOOKUP(A25,'Chrono+Classement'!G:O,9,FALSE) -> 03:53:11 | N25: =IF(K25=17,Param!G25,IF(K25=28,Param!H25,IF(K25=45,Param!I25))) -> 00:00:40 | O25: 03:52:31 | Q25: 1967 | R25: Masters 3/4 | S25: FALSE
A26: 25 | B26: AUMAGY-Nicolas | C26: AUMAGY | D26: Nicolas | E26: M | F26: 1985-02-04 | G26: 30.30253251 | I26: NL | J26: Masters 1/2 | K26: 45 | L26: ABD | M26: ABD | N26: =IF(K26=17,Param!G26,IF(K26=28,Param!H26,IF(K26=45,Param!I26))) -> 00:00:40 | O26: ABD | Q26: 1985 | R26: Masters 1/2 | S26: FALSE
A27: 26 | B27: COUSTILLERES-Christophe | C27: COUSTILLERES | D27: Christophe | E27: M | F27: 1971-12-13 | G27: 43.44969199 | H27: VC Castelmayran | I27: UFOLEP | J27: Masters 3/4 | K27: 45 | L27: =VLOOKUP(A27,'Chrono+Classement'!G:O,5,FALSE) -> 15 | M27: =VLOOKUP(A27,'Chrono+Classement'!G:O,9,FALSE) -> 02:19:11 | N27: =IF(K27=17,Param!G27,IF(K27=28,Param!H27,IF(K27=45,Param!I27))) -> 00:00:40 | O27: =M27-N27 -> 02:18:31 | Q27: 1971 | R27: Masters 3/4 | S27: FALSE
A28: 27 | B28: FENASSE-Frederic | C28: FENASSE | D28: Frederic | E28: M | F28: 1964-12-09 | G28: 50.45859001 | H28: TOAC | I28: FFC | J28: Masters 5 | K28: 45 | L28: =VLOOKUP(A28,'Chrono+Classement'!G:O,5,FALSE) -> 38 | M28: =VLOOKUP(A28,'Chrono+Classement'!G:O,9,FALSE) -> 02:51:16 | N28: =IF(K28=17,Param!G28,IF(K28=28,Param!H28,IF(K28=45,Param!I28))) -> 00:00:40 | O28: =M28-N28 -> 02:50:36 | Q28: 1964 | R28: Masters 5 | S28: FALSE
A29: 28 | B29: FENASSE-Damien | C29: FENASSE | D29: Damien | E29: M | F29: 1994-11-08 | G29: 20.54483231 | H29: TOAC | I29: FFC | J29: Espoirs | K29: 45 | L29: =VLOOKUP(A29,'Chrono+Classement'!G:O,5,FALSE) -> 26 | M29: =VLOOKUP(A29,'Chrono+Classement'!G:O,9,FALSE) -> 02:33:02 | N29: =IF(K29=17,Param!G29,IF(K29=28,Param!H29,IF(K29=45,Param!I29))) -> 00:00:40 | O29: =M29-N29 -> 02:32:22 | Q29: 1994 | R29: Espoirs | S29: FALSE
A30: 29 | B30: LARRIPA-Bruno | C30: LARRIPA | D30: Bruno | E30: M | F30: 1965-12-06 | G30: 49.46748802 | H30: JURANCON | I30: UFOLEP | J30: Masters 5 | K30: 45 | L30: =VLOOKUP(A30,'Chrono+Classement'!G:O,5,FALSE) -> 49 | M30: =VLOOKUP(A30,'Chrono+Classement'!G:O,9,FALSE) -> 03:22:24 | N30: =IF(K30=17,Param!G30,IF(K30=28,Param!H30,IF(K30=45,Param!I30))) -> 00:00:40 | O30: =M30-N30 -> 03:21:44 | Q30: 1965 | R30: Masters 5 | S30: FALSE
A31: 30 | B31: GINESTE-Antony | C31: GINESTE | D31: Antony | E31: M | F31: 1991-06-12 | G31: 23.95345654 | H31: VC Montauban | I31: FFC | J31: Hommes | K31: 45 | L31: =VLOOKUP(A31,'Chrono+Classement'!G:O,5,FALSE) -> 42 | M31: =VLOOKUP(A31,'Chrono+Classement'!G:O,9,FALSE) -> 03:12:48 | N31: =IF(K31=17,Param!G31,IF(K31=28,Param!H31,IF(K31=45,Param!I31))) -> 00:00:40 | O31: =M31-N31 -> 03:12:08 | Q31: 1991 | R31: Hommes | S31: FALSE
A32: 31 | B32: ROCHE-Damien | C32: ROCHE | D32: Damien | E32: M | F32: 1980-12-11 | G32: 34.45311431 | H32: Cahors Cyclisme | I32: FFC | J32: Masters 1/2 | K32: 45 | L32: ABD | M32: ABD | N32: =IF(K32=17,Param!G32,IF(K32=28,Param!H32,IF(K32=45,Param!I32))) -> 00:00:40 | O32: ABD | Q32: 1980 | R32: Masters 1/2 | S32: FALSE
A33: 32 | B33: DIAS SOEIRO-Eric | C33: DIAS SOEIRO | D33: Eric | E33: M | F33: 1977-11-08 | G33: 37.54414784 | H33: Cahors Cyclisme | I33: FFC | J33: Masters 1/2 | K33: 45 | L33: =VLOOKUP(A33,'Chrono+Classement'!G:O,5,FALSE) -> 28 | M33: =VLOOKUP(A33,'Chrono+Classement'!G:O,9,FALSE) -> 02:34:32 | N33: =IF(K33=17,Param!G33,IF(K33=28,Param!H33,IF(K33=45,Param!I33))) -> 00:00:40 | O33: =M33-N33 -> 02:33:52 | Q33: 1977 | R33: Masters 1/2 | S33: FALSE
A34: 33 | B34: VIGROOX-Gaetan | C34: VIGROOX | D34: Gaetan | E34: M | F34: 1987-05-19 | G34: 28.01916496 | H34: VTT Evasion | I34: FFC | J34: Hommes | K34: 45 | L34: =VLOOKUP(A34,'Chrono+Classement'!G:O,5,FALSE) -> 48 | M34: =VLOOKUP(A34,'Chrono+Classement'!G:O,9,FALSE) -> 03:19:11 | N34: =IF(K34=17,Param!G34,IF(K34=28,Param!H34,IF(K34=45,Param!I34))) -> 00:00:40 | O34: =M34-N34 -> 03:18:31 | Q34: 1987 | R34: Hommes | S34: FALSE
A35: 34 | B35: GAYRAL-Michael | C35: GAYRAL | D35: Michael | E35: M | F35: 1992-08-27 | G35: 22.74332649 | H35: VSM | I35: FFC | J35: Hommes | K35: 45 | L35: =VLOOKUP(A35,'Chrono+Classement'!G:O,5,FALSE) -> 24 | M35: =VLOOKUP(A35,'Chrono+Classement'!G:O,9,FALSE) -> 02:29:56 | N35: =IF(K35=17,Param!G35,IF(K35=28,Param!H35,IF(K35=45,Param!I35))) -> 00:00:40 | O35: =M35-N35 -> 02:29:16 | Q35: 1992 | R35: Hommes | S35: FALSE
A36: 35 | B36: BARBANSON-Xavier | C36: BARBANSON | D36: Xavier | E36: M | F36: 1979-09-27 | G36: 35.6605065 | H36: TOAC | I36: FSGT | J36: Masters 1/2 | K36: 45 | L36: ABD | M36: ABD | N36: =IF(K36=17,Param!G36,IF(K36=28,Param!H36,IF(K36=45,Param!I36))) -> 00:00:40 | O36: ABD | Q36: 1979 | R36: Masters 1/2 | S36: FALSE
A37: 36 | B37: RALECHE-Jean-Michel | C37: RALECHE | D37: Jean-Michel | E37: M | F37: 1971-04-23 | G37: 44.09034908 | I37: NL | J37: Masters 3/4 | K37: 45 | L37: =VLOOKUP(A37,'Chrono+Classement'!G:O,5,FALSE) -> 53 | M37: =VLOOKUP(A37,'Chrono+Classement'!G:O,9,FALSE) -> 03:31:07 | N37: =IF(K37=17,Param!G37,IF(K37=28,Param!H37,IF(K37=45,Param!I37))) -> 00:00:40 | O37: =M37-N37 -> 03:30:27 | Q37: 1971 | R37: Masters 3/4 | S37: FALSE
A38: 37 | B38: CARTRON-Jacques | C38: CARTRON | D38: Jacques | E38: M | F38: 1967-07-07 | G38: 47.88501027 | H38: Maillons Libres | I38: NL | J38: Masters 3/4 | K38: 45 | L38: =VLOOKUP(A38,'Chrono+Classement'!G:O,5,FALSE) -> 46 | M38: =VLOOKUP(A38,'Chrono+Classement'!G:O,9,FALSE) -> 03:15:54 | N38: =IF(K38=17,Param!G38,IF(K38=28,Param!H38,IF(K38=45,Param!I38))) -> 00:00:40 | O38: 03:15:14 | Q38: 1967 | R38: Masters 3/4 | S38: FALSE
A39: 38 | B39: PAGES-Yves | C39: PAGES | D39: Yves | E39: M | F39: 1967-10-12 | G39: 47.61943874 | H39: VTT Cornebarieu | I39: NL | J39: Masters 3/4 | K39: 45 | L39: =VLOOKUP(A39,'Chrono+Classement'!G:O,5,FALSE) -> 29 | M39: =VLOOKUP(A39,'Chrono+Classement'!G:O,9,FALSE) -> 02:34:47 | N39: =IF(K39=17,Param!G39,IF(K39=28,Param!H39,IF(K39=45,Param!I39))) -> 00:00:40 | O39: 02:34:07 | Q39: 1967 | R39: Masters 3/4 | S39: FALSE
A40: 39 | B40: BARCELO-Thierry | C40: BARCELO | D40: Thierry | E40: M | F40: 1963-04-24 | G40: 52.08761123 | H40: CPRS Pins Justaret | I40: FSGT | J40: Masters 5 | K40: 45 | L40: =VLOOKUP(A40,'Chrono+Classement'!G:O,5,FALSE) -> 25 | M40: =VLOOKUP(A40,'Chrono+Classement'!G:O,9,FALSE) -> 02:32:30 | N40: =IF(K40=17,Param!G40,IF(K40=28,Param!H40,IF(K40=45,Param!I40))) -> 00:00:40 | O40: 02:31:50 | Q40: 1963 | R40: Masters 5 | S40: FALSE
A41: 40 | B41: GAYRAUD-Cédric | C41: GAYRAUD | D41: Cédric | E41: M | F41: 1983-03-21 | G41: 32.18069815 | H41: APC | I41: UFOLEP | J41: Masters 1/2 | K41: 45 | L41: =VLOOKUP(A41,'Chrono+Classement'!G:O,5,FALSE) -> 30 | M41: =VLOOKUP(A41,'Chrono+Classement'!G:O,9,FALSE) -> 02:35:53 | N41: =IF(K41=17,Param!G41,IF(K41=28,Param!H41,IF(K41=45,Param!I41))) -> 00:00:40 | O41: 02:35:13 | Q41: 1983 | R41: Masters 1/2 | S41: FALSE
A42: 41 | B42: NICE-Stephane | C42: NICE | D42: Stephane | E42: M | F42: 1981-05-07 | G42: 34.05065024 | I42: NL | J42: Masters 1/2 | K42: 45 | L42: =VLOOKUP(A42,'Chrono+Classement'!G:O,5,FALSE) -> 56 | M42: =VLOOKUP(A42,'Chrono+Classement'!G:O,9,FALSE) -> 03:45:41 | N42: =IF(K42=17,Param!G42,IF(K42=28,Param!H42,IF(K42=45,Param!I42))) -> 00:00:40 | O42: 03:45:01 | Q42: 1981 | R42: Masters 1/2 | S42: FALSE
A43: 42 | B43: JOULIE-Nicolas | C43: JOULIE | D43: Nicolas | E43: M | F43: 1973-12-11 | G43: 41.45379877 | H43: Muret | I43: FFC | J43: Masters 3/4 | K43: 45 | L43: =VLOOKUP(A43,'Chrono+Classement'!G:O,5,FALSE) -> 21 | M43: =VLOOKUP(A43,'Chrono+Classement'!G:O,9,FALSE) -> 02:27:52 | N43: =IF(K43=17,Param!G43,IF(K43=28,Param!H43,IF(K43=45,Param!I43))) -> 00:00:40 | O43: 02:27:12 | Q43: 1973 | R43: Masters 3/4 | S43: FALSE
A44: 43 | B44: SIGOT-François | C44: SIGOT | D44: François | E44: M | F44: 1964-08-17 | G44: 50.770705 | H44: Muret | I44: FFC | J44: Masters 5 | K44: 45 | L44: =VLOOKUP(A44,'Chrono+Classement'!G:O,5,FALSE) -> 36 | M44: =VLOOKUP(A44,'Chrono+Classement'!G:O,9,FALSE) -> 02:44:53 | N44: =IF(K44=17,Param!G44,IF(K44=28,Param!H44,IF(K44=45,Param!I44))) -> 00:00:40 | O44: 02:44:13 | Q44: 1964 | R44: Masters 5 | S44: FALSE
A45: 44 | B45: MATHIEU-Sebastien | C45: MATHIEU | D45: Sebastien | E45: M | F45: 1981-10-03 | G45: 33.64271047 | H45: VC Laissac | I45: FFC | J45: Masters 1/2 | K45: 45 | L45: =VLOOKUP(A45,'Chrono+Classement'!G:O,5,FALSE) -> 19 | M45: =VLOOKUP(A45,'Chrono+Classement'!G:O,9,FALSE) -> 02:25:57 | N45: =IF(K45=17,Param!G45,IF(K45=28,Param!H45,IF(K45=45,Param!I45))) -> 00:00:40 | O45: 02:25:17 | Q45: 1981 | R45: Masters 1/2 | S45: FALSE
A46: 45 | B46: SIRGUE-Jérome | C46: SIRGUE | D46: Jérome | E46: M | F46: 1973-04-11 | G46: 42.12183436 | H46: VC Laissac | I46: FFC | J46: Masters 3/4 | K46: 45 | L46: =VLOOKUP(A46,'Chrono+Classement'!G:O,5,FALSE) -> 47 | M46: =VLOOKUP(A46,'Chrono+Classement'!G:O,9,FALSE) -> 03:19:02 | N46: =IF(K46=17,Param!G46,IF(K46=28,Param!H46,IF(K46=45,Param!I46))) -> 00:00:40 | O46: 03:18:22 | Q46: 1973 | R46: Masters 3/4 | S46: FALSE
A47: 46 | B47: JOUVE-Dominique | C47: JOUVE | D47: Dominique | E47: M | F47: 1961-08-25 | G47: 53.74948665 | I47: NL | J47: Masters 5 | K47: 45 | L47: =VLOOKUP(A47,'Chrono+Classement'!G:O,5,FALSE) -> 55 | M47: =VLOOKUP(A47,'Chrono+Classement'!G:O,9,FALSE) -> 03:35:57 | N47: =IF(K47=17,Param!G47,IF(K47=28,Param!H47,IF(K47=45,Param!I47))) -> 00:00:40 | O47: 03:35:17 | Q47: 1961 | R47: Masters 5 | S47: FALSE
A48: 47 | B48: BORN-Vivian | C48: BORN | D48: Vivian | E48: M | F48: 1996-04-19 | G48: 19.09924709 | H48: VILLENEUVE Cycliste | I48: FFC | J48: Espoirs | K48: 45 | L48: =VLOOKUP(A48,'Chrono+Classement'!G:O,5,FALSE) -> 13 | M48: =VLOOKUP(A48,'Chrono+Classement'!G:O,9,FALSE) -> 02:13:47 | N48: =IF(K48=17,Param!G48,IF(K48=28,Param!H48,IF(K48=45,Param!I48))) -> 00:00:40 | O48: 02:13:07 | Q48: 1996 | R48: Espoirs | S48: FALSE
A49: 48 | B49: - | G49: 115.4004107 | K49: 45 | L49: =VLOOKUP(A49,'Chrono+Classement'!G:O,5,FALSE) ->  | M49: =VLOOKUP(A49,'Chrono+Classement'!G:O,9,FALSE) ->  | N49: =IF(K49=17,Param!G49,IF(K49=28,Param!H49,IF(K49=45,Param!I49))) -> 00:00:40 | Q49: 1900 | R49: FALSE | S49: FALSE
A50: 49 | B50: - | G50: 115.4004107 | K50: 45 | L50: =VLOOKUP(A50,'Chrono+Classement'!G:O,5,FALSE) ->  | M50: =VLOOKUP(A50,'Chrono+Classement'!G:O,9,FALSE) ->  | N50: =IF(K50=17,Param!G50,IF(K50=28,Param!H50,IF(K50=45,Param!I50))) -> 00:00:40 | Q50: 1900 | R50: FALSE | S50: FALSE
A51: 50 | B51: - | G51: 115.4004107 | K51: 45 | L51: =VLOOKUP(A51,'Chrono+Classement'!G:O,5,FALSE) ->  | M51: =VLOOKUP(A51,'Chrono+Classement'!G:O,9,FALSE) ->  | N51: =IF(K51=17,Param!G51,IF(K51=28,Param!H51,IF(K51=45,Param!I51))) -> 00:00:40 | Q51: 1900 | R51: FALSE | S51: FALSE
A52: 51 | B52: - | G52: 115.4004107 | K52: 45 | L52: =VLOOKUP(A52,'Chrono+Classement'!G:O,5,FALSE) ->  | M52: =VLOOKUP(A52,'Chrono+Classement'!G:O,9,FALSE) ->  | N52: =IF(K52=17,Param!G52,IF(K52=28,Param!H52,IF(K52=45,Param!I52))) -> 00:00:40 | Q52: 1900 | R52: FALSE | S52: FALSE
A53: 52 | B53: - | G53: 115.4004107 | K53: 45 | L53: =VLOOKUP(A53,'Chrono+Classement'!G:O,5,FALSE) ->  | M53: =VLOOKUP(A53,'Chrono+Classement'!G:O,9,FALSE) ->  | N53: =IF(K53=17,Param!G53,IF(K53=28,Param!H53,IF(K53=45,Param!I53))) -> 00:00:40 | Q53: 1900 | R53: FALSE | S53: FALSE
A54: 53 | B54: - | G54: 115.4004107 | K54: 45 | L54: =VLOOKUP(A54,'Chrono+Classement'!G:O,5,FALSE) ->  | M54: =VLOOKUP(A54,'Chrono+Classement'!G:O,9,FALSE) ->  | N54: =IF(K54=17,Param!G54,IF(K54=28,Param!H54,IF(K54=45,Param!I54))) -> 00:00:40 | Q54: 1900 | R54: FALSE | S54: FALSE
A55: 54 | B55: - | G55: 115.4004107 | K55: 45 | L55: =VLOOKUP(A55,'Chrono+Classement'!G:O,5,FALSE) ->  | M55: =VLOOKUP(A55,'Chrono+Classement'!G:O,9,FALSE) ->  | N55: =IF(K55=17,Param!G55,IF(K55=28,Param!H55,IF(K55=45,Param!I55))) -> 00:00:40 | Q55: 1900 | R55: FALSE | S55: FALSE
A56: 55 | B56: - | G56: 115.4004107 | K56: 45 | L56: =VLOOKUP(A56,'Chrono+Classement'!G:O,5,FALSE) ->  | M56: =VLOOKUP(A56,'Chrono+Classement'!G:O,9,FALSE) ->  | N56: =IF(K56=17,Param!G56,IF(K56=28,Param!H56,IF(K56=45,Param!I56))) -> 00:00:40 | Q56: 1900 | R56: FALSE | S56: FALSE
A57: 56 | B57: - | G57: 115.4004107 | K57: 45 | L57: =VLOOKUP(A57,'Chrono+Classement'!G:O,5,FALSE) ->  | M57: =VLOOKUP(A57,'Chrono+Classement'!G:O,9,FALSE) ->  | N57: =IF(K57=17,Param!G57,IF(K57=28,Param!H57,IF(K57=45,Param!I57))) -> 00:00:40 | Q57: 1900 | R57: FALSE | S57: FALSE
A58: 57 | B58: - | G58: 115.4004107 | K58: 45 | L58: =VLOOKUP(A58,'Chrono+Classement'!G:O,5,FALSE) ->  | M58: =VLOOKUP(A58,'Chrono+Classement'!G:O,9,FALSE) ->  | N58: =IF(K58=17,Param!G58,IF(K58=28,Param!H58,IF(K58=45,Param!I58))) -> 00:00:40 | Q58: 1900 | R58: FALSE | S58: FALSE
A59: 58 | B59: - | G59: 115.4004107 | K59: 45 | L59: =VLOOKUP(A59,'Chrono+Classement'!G:O,5,FALSE) ->  | M59: =VLOOKUP(A59,'Chrono+Classement'!G:O,9,FALSE) ->  | N59: =IF(K59=17,Param!G59,IF(K59=28,Param!H59,IF(K59=45,Param!I59))) -> 00:00:40 | Q59: 1900 | R59: FALSE | S59: FALSE
A60: 59 | B60: - | G60: 115.4004107 | K60: 45 | L60: =VLOOKUP(A60,'Chrono+Classement'!G:O,5,FALSE) ->  | M60: =VLOOKUP(A60,'Chrono+Classement'!G:O,9,FALSE) ->  | N60: =IF(K60=17,Param!G60,IF(K60=28,Param!H60,IF(K60=45,Param!I60))) -> 00:00:40 | Q60: 1900 | R60: FALSE | S60: FALSE
A61: 60 | B61: - | G61: 115.4004107 | K61: 45 | L61: =VLOOKUP(A61,'Chrono+Classement'!G:O,5,FALSE) ->  | M61: =VLOOKUP(A61,'Chrono+Classement'!G:O,9,FALSE) ->  | N61: =IF(K61=17,Param!G61,IF(K61=28,Param!H61,IF(K61=45,Param!I61))) -> 00:00:40 | Q61: 1900 | R61: FALSE | S61: FALSE
A62: 61 | B62: - | G62: 115.4004107 | K62: 45 | L62: =VLOOKUP(A62,'Chrono+Classement'!G:O,5,FALSE) ->  | M62: =VLOOKUP(A62,'Chrono+Classement'!G:O,9,FALSE) ->  | N62: =IF(K62=17,Param!G62,IF(K62=28,Param!H62,IF(K62=45,Param!I62))) -> 00:00:40 | Q62: 1900 | R62: FALSE | S62: FALSE
A63: 62 | B63: - | G63: 115.4004107 | K63: 45 | L63: =VLOOKUP(A63,'Chrono+Classement'!G:O,5,FALSE) ->  | M63: =VLOOKUP(A63,'Chrono+Classement'!G:O,9,FALSE) ->  | N63: =IF(K63=17,Param!G63,IF(K63=28,Param!H63,IF(K63=45,Param!I63))) -> 00:00:40 | Q63: 1900 | R63: FALSE | S63: FALSE
A64: 63 | B64: - | G64: 115.4004107 | K64: 45 | L64: =VLOOKUP(A64,'Chrono+Classement'!G:O,5,FALSE) ->  | M64: =VLOOKUP(A64,'Chrono+Classement'!G:O,9,FALSE) ->  | N64: =IF(K64=17,Param!G64,IF(K64=28,Param!H64,IF(K64=45,Param!I64))) -> 00:00:40 | Q64: 1900 | R64: FALSE | S64: FALSE
A65: 64 | B65: - | G65: 115.4004107 | K65: 45 | L65: =VLOOKUP(A65,'Chrono+Classement'!G:O,5,FALSE) ->  | M65: =VLOOKUP(A65,'Chrono+Classement'!G:O,9,FALSE) ->  | N65: =IF(K65=17,Param!G65,IF(K65=28,Param!H65,IF(K65=45,Param!I65))) -> 00:00:40 | Q65: 1900 | R65: FALSE | S65: FALSE
A66: 65 | B66: =CONCATENATE(C66,"-",D66) -> - | G66: =(TODAY()-F66)/365.25 -> 115.4004107 | K66: 45 | L66: =VLOOKUP(A66,'Chrono+Classement'!G:O,5,FALSE) ->  | M66: =VLOOKUP(A66,'Chrono+Classement'!G:O,9,FALSE) ->  | N66: =IF(K66=17,Param!G66,IF(K66=28,Param!H66,IF(K66=45,Param!I66))) -> 00:00:40 | Q66: =YEAR(F66) -> 1900 | R66: =IF(E66="M",IF(Q66<=1965,"Masters 5",IF(Q66<=1975,"Masters 3/4",IF(Q66<=1985,"Masters 1/2",IF(Q66<=1992,"Hommes",IF(Q66<=1996,"Espoirs",IF(Q66<=1998,"Juniors",IF(Q66<=2000,"Cadets",0)))))))) -> FALSE | S66: =IF(E66="F",IF(Q66<=1992,"Dames",IF(Q66<=1996,"Espoirs Dames",IF(Q66<=1998,"Juniors Dames",IF(Q66<=2000,"Cadettes",0))))) -> FALSE
A67: 66 | B67: - | G67: 115.4004107 | K67: 45 | L67: =VLOOKUP(A67,'Chrono+Classement'!G:O,5,FALSE) ->  | M67: =VLOOKUP(A67,'Chrono+Classement'!G:O,9,FALSE) ->  | N67: =IF(K67=17,Param!G67,IF(K67=28,Param!H67,IF(K67=45,Param!I67))) -> 00:00:40 | Q67: 1900 | R67: FALSE | S67: FALSE
A68: 67 | B68: - | G68: 115.4004107 | K68: 45 | L68: =VLOOKUP(A68,'Chrono+Classement'!G:O,5,FALSE) ->  | M68: =VLOOKUP(A68,'Chrono+Classement'!G:O,9,FALSE) ->  | N68: =IF(K68=17,Param!G68,IF(K68=28,Param!H68,IF(K68=45,Param!I68))) -> 00:00:40 | Q68: 1900 | R68: FALSE | S68: FALSE
A69: 68 | B69: - | G69: 115.4004107 | K69: 45 | L69: =VLOOKUP(A69,'Chrono+Classement'!G:O,5,FALSE) ->  | M69: =VLOOKUP(A69,'Chrono+Classement'!G:O,9,FALSE) ->  | N69: =IF(K69=17,Param!G69,IF(K69=28,Param!H69,IF(K69=45,Param!I69))) -> 00:00:40 | Q69: 1900 | R69: FALSE | S69: FALSE
A70: 69 | B70: - | G70: 115.4004107 | K70: 45 | L70: =VLOOKUP(A70,'Chrono+Classement'!G:O,5,FALSE) ->  | M70: =VLOOKUP(A70,'Chrono+Classement'!G:O,9,FALSE) ->  | N70: =IF(K70=17,Param!G70,IF(K70=28,Param!H70,IF(K70=45,Param!I70))) -> 00:00:40 | Q70: 1900 | R70: FALSE | S70: FALSE
A71: 70 | B71: - | G71: 115.4004107 | K71: 45 | L71: =VLOOKUP(A71,'Chrono+Classement'!G:O,5,FALSE) ->  | M71: =VLOOKUP(A71,'Chrono+Classement'!G:O,9,FALSE) ->  | N71: =IF(K71=17,Param!G71,IF(K71=28,Param!H71,IF(K71=45,Param!I71))) -> 00:00:40 | Q71: 1900 | R71: FALSE | S71: FALSE
A72: 71 | B72: - | G72: 115.4004107 | K72: 45 | L72: =VLOOKUP(A72,'Chrono+Classement'!G:O,5,FALSE) ->  | M72: =VLOOKUP(A72,'Chrono+Classement'!G:O,9,FALSE) ->  | N72: =IF(K72=17,Param!G72,IF(K72=28,Param!H72,IF(K72=45,Param!I72))) -> 00:00:40 | Q72: 1900 | R72: FALSE | S72: FALSE
A73: 72 | B73: - | G73: 115.4004107 | K73: 45 | L73: =VLOOKUP(A73,'Chrono+Classement'!G:O,5,FALSE) ->  | M73: =VLOOKUP(A73,'Chrono+Classement'!G:O,9,FALSE) ->  | N73: =IF(K73=17,Param!G73,IF(K73=28,Param!H73,IF(K73=45,Param!I73))) -> 00:00:40 | Q73: 1900 | R73: FALSE | S73: FALSE
A74: 73 | B74: - | G74: 115.4004107 | K74: 45 | L74: =VLOOKUP(A74,'Chrono+Classement'!G:O,5,FALSE) ->  | M74: =VLOOKUP(A74,'Chrono+Classement'!G:O,9,FALSE) ->  | N74: =IF(K74=17,Param!G74,IF(K74=28,Param!H74,IF(K74=45,Param!I74))) -> 00:00:40 | Q74: 1900 | R74: FALSE | S74: FALSE
A75: 74 | B75: - | G75: 115.4004107 | K75: 45 | L75: =VLOOKUP(A75,'Chrono+Classement'!G:O,5,FALSE) ->  | M75: =VLOOKUP(A75,'Chrono+Classement'!G:O,9,FALSE) ->  | N75: =IF(K75=17,Param!G75,IF(K75=28,Param!H75,IF(K75=45,Param!I75))) -> 00:00:40 | Q75: 1900 | R75: FALSE | S75: FALSE
A76: 75 | B76: - | G76: 115.4004107 | K76: 45 | L76: =VLOOKUP(A76,'Chrono+Classement'!G:O,5,FALSE) ->  | M76: =VLOOKUP(A76,'Chrono+Classement'!G:O,9,FALSE) ->  | N76: =IF(K76=17,Param!G76,IF(K76=28,Param!H76,IF(K76=45,Param!I76))) -> 00:00:40 | Q76: 1900 | R76: FALSE | S76: FALSE
A77: 76 | B77: - | G77: 115.4004107 | K77: 45 | L77: =VLOOKUP(A77,'Chrono+Classement'!G:O,5,FALSE) ->  | M77: =VLOOKUP(A77,'Chrono+Classement'!G:O,9,FALSE) ->  | N77: =IF(K77=17,Param!G77,IF(K77=28,Param!H77,IF(K77=45,Param!I77))) -> 00:00:40 | Q77: 1900 | R77: FALSE | S77: FALSE
A78: 77 | B78: - | G78: 115.4004107 | K78: 45 | L78: =VLOOKUP(A78,'Chrono+Classement'!G:O,5,FALSE) ->  | M78: =VLOOKUP(A78,'Chrono+Classement'!G:O,9,FALSE) ->  | N78: =IF(K78=17,Param!G78,IF(K78=28,Param!H78,IF(K78=45,Param!I78))) -> 00:00:40 | Q78: 1900 | R78: FALSE | S78: FALSE
A79: 78 | B79: - | G79: 115.4004107 | K79: 45 | L79: =VLOOKUP(A79,'Chrono+Classement'!G:O,5,FALSE) ->  | M79: =VLOOKUP(A79,'Chrono+Classement'!G:O,9,FALSE) ->  | N79: =IF(K79=17,Param!G79,IF(K79=28,Param!H79,IF(K79=45,Param!I79))) -> 00:00:40 | Q79: 1900 | R79: FALSE | S79: FALSE
A80: 79 | B80: - | G80: 115.4004107 | K80: 45 | L80: =VLOOKUP(A80,'Chrono+Classement'!G:O,5,FALSE) ->  | M80: =VLOOKUP(A80,'Chrono+Classement'!G:O,9,FALSE) ->  | N80: =IF(K80=17,Param!G80,IF(K80=28,Param!H80,IF(K80=45,Param!I80))) -> 00:00:40 | Q80: 1900 | R80: FALSE | S80: FALSE
A81: 80 | B81: - | G81: 115.4004107 | K81: 45 | L81: =VLOOKUP(A81,'Chrono+Classement'!G:O,5,FALSE) ->  | M81: =VLOOKUP(A81,'Chrono+Classement'!G:O,9,FALSE) ->  | N81: =IF(K81=17,Param!G81,IF(K81=28,Param!H81,IF(K81=45,Param!I81))) -> 00:00:40 | Q81: 1900 | R81: FALSE | S81: FALSE
A82: 81 | B82: - | G82: 115.4004107 | K82: 45 | L82: =VLOOKUP(A82,'Chrono+Classement'!G:O,5,FALSE) ->  | M82: =VLOOKUP(A82,'Chrono+Classement'!G:O,9,FALSE) ->  | N82: =IF(K82=17,Param!G82,IF(K82=28,Param!H82,IF(K82=45,Param!I82))) -> 00:00:40 | Q82: 1900 | R82: FALSE | S82: FALSE
A83: 82 | B83: - | G83: 115.4004107 | K83: 45 | L83: =VLOOKUP(A83,'Chrono+Classement'!G:O,5,FALSE) ->  | M83: =VLOOKUP(A83,'Chrono+Classement'!G:O,9,FALSE) ->  | N83: =IF(K83=17,Param!G83,IF(K83=28,Param!H83,IF(K83=45,Param!I83))) -> 00:00:40 | Q83: 1900 | R83: FALSE | S83: FALSE
A84: 83 | B84: - | G84: 115.4004107 | K84: 45 | L84: =VLOOKUP(A84,'Chrono+Classement'!G:O,5,FALSE) ->  | M84: =VLOOKUP(A84,'Chrono+Classement'!G:O,9,FALSE) ->  | N84: =IF(K84=17,Param!G84,IF(K84=28,Param!H84,IF(K84=45,Param!I84))) -> 00:00:40 | Q84: 1900 | R84: FALSE | S84: FALSE
A85: 84 | B85: - | G85: 115.4004107 | K85: 45 | L85: =VLOOKUP(A85,'Chrono+Classement'!G:O,5,FALSE) ->  | M85: =VLOOKUP(A85,'Chrono+Classement'!G:O,9,FALSE) ->  | N85: =IF(K85=17,Param!G85,IF(K85=28,Param!H85,IF(K85=45,Param!I85))) -> 00:00:40 | Q85: 1900 | R85: FALSE | S85: FALSE
A86: 85 | B86: - | G86: 115.4004107 | K86: 45 | L86: =VLOOKUP(A86,'Chrono+Classement'!G:O,5,FALSE) ->  | M86: =VLOOKUP(A86,'Chrono+Classement'!G:O,9,FALSE) ->  | N86: =IF(K86=17,Param!G86,IF(K86=28,Param!H86,IF(K86=45,Param!I86))) -> 00:00:40 | Q86: 1900 | R86: FALSE | S86: FALSE
A87: 86 | B87: - | G87: 115.4004107 | K87: 45 | L87: =VLOOKUP(A87,'Chrono+Classement'!G:O,5,FALSE) ->  | M87: =VLOOKUP(A87,'Chrono+Classement'!G:O,9,FALSE) ->  | N87: =IF(K87=17,Param!G87,IF(K87=28,Param!H87,IF(K87=45,Param!I87))) -> 00:00:40 | Q87: 1900 | R87: FALSE | S87: FALSE
A88: 87 | B88: - | G88: 115.4004107 | K88: 45 | L88: =VLOOKUP(A88,'Chrono+Classement'!G:O,5,FALSE) ->  | M88: =VLOOKUP(A88,'Chrono+Classement'!G:O,9,FALSE) ->  | N88: =IF(K88=17,Param!G88,IF(K88=28,Param!H88,IF(K88=45,Param!I88))) -> 00:00:40 | Q88: 1900 | R88: FALSE | S88: FALSE
A89: 88 | B89: - | G89: 115.4004107 | K89: 45 | L89: =VLOOKUP(A89,'Chrono+Classement'!G:O,5,FALSE) ->  | M89: =VLOOKUP(A89,'Chrono+Classement'!G:O,9,FALSE) ->  | N89: =IF(K89=17,Param!G89,IF(K89=28,Param!H89,IF(K89=45,Param!I89))) -> 00:00:40 | Q89: 1900 | R89: FALSE | S89: FALSE
A90: 89 | B90: - | G90: 115.4004107 | K90: 45 | L90: =VLOOKUP(A90,'Chrono+Classement'!G:O,5,FALSE) ->  | M90: =VLOOKUP(A90,'Chrono+Classement'!G:O,9,FALSE) ->  | N90: =IF(K90=17,Param!G90,IF(K90=28,Param!H90,IF(K90=45,Param!I90))) -> 00:00:40 | Q90: 1900 | R90: FALSE | S90: FALSE
A91: 90 | B91: - | G91: 115.4004107 | K91: 45 | L91: =VLOOKUP(A91,'Chrono+Classement'!G:O,5,FALSE) ->  | M91: =VLOOKUP(A91,'Chrono+Classement'!G:O,9,FALSE) ->  | N91: =IF(K91=17,Param!G91,IF(K91=28,Param!H91,IF(K91=45,Param!I91))) -> 00:00:40 | Q91: 1900 | R91: FALSE | S91: FALSE
A92: 91 | B92: - | G92: 115.4004107 | K92: 45 | L92: =VLOOKUP(A92,'Chrono+Classement'!G:O,5,FALSE) ->  | M92: =VLOOKUP(A92,'Chrono+Classement'!G:O,9,FALSE) ->  | N92: =IF(K92=17,Param!G92,IF(K92=28,Param!H92,IF(K92=45,Param!I92))) -> 00:00:40 | Q92: 1900 | R92: FALSE | S92: FALSE
A93: 92 | B93: - | G93: 115.4004107 | K93: 45 | L93: =VLOOKUP(A93,'Chrono+Classement'!G:O,5,FALSE) ->  | M93: =VLOOKUP(A93,'Chrono+Classement'!G:O,9,FALSE) ->  | N93: =IF(K93=17,Param!G93,IF(K93=28,Param!H93,IF(K93=45,Param!I93))) -> 00:00:40 | Q93: 1900 | R93: FALSE | S93: FALSE
A94: 93 | B94: - | G94: 115.4004107 | K94: 45 | L94: =VLOOKUP(A94,'Chrono+Classement'!G:O,5,FALSE) ->  | M94: =VLOOKUP(A94,'Chrono+Classement'!G:O,9,FALSE) ->  | N94: =IF(K94=17,Param!G94,IF(K94=28,Param!H94,IF(K94=45,Param!I94))) -> 00:00:40 | Q94: 1900 | R94: FALSE | S94: FALSE
A95: 94 | B95: - | G95: 115.4004107 | K95: 45 | L95: =VLOOKUP(A95,'Chrono+Classement'!G:O,5,FALSE) ->  | M95: =VLOOKUP(A95,'Chrono+Classement'!G:O,9,FALSE) ->  | N95: =IF(K95=17,Param!G95,IF(K95=28,Param!H95,IF(K95=45,Param!I95))) -> 00:00:40 | Q95: 1900 | R95: FALSE | S95: FALSE
A96: 95 | B96: - | G96: 115.4004107 | K96: 45 | L96: =VLOOKUP(A96,'Chrono+Classement'!G:O,5,FALSE) ->  | M96: =VLOOKUP(A96,'Chrono+Classement'!G:O,9,FALSE) ->  | N96: =IF(K96=17,Param!G96,IF(K96=28,Param!H96,IF(K96=45,Param!I96))) -> 00:00:40 | Q96: 1900 | R96: FALSE | S96: FALSE
A97: 96 | B97: - | G97: 115.4004107 | K97: 45 | L97: =VLOOKUP(A97,'Chrono+Classement'!G:O,5,FALSE) ->  | M97: =VLOOKUP(A97,'Chrono+Classement'!G:O,9,FALSE) ->  | N97: =IF(K97=17,Param!G97,IF(K97=28,Param!H97,IF(K97=45,Param!I97))) -> 00:00:40 | Q97: 1900 | R97: FALSE | S97: FALSE
A98: 97 | B98: - | G98: 115.4004107 | K98: 45 | L98: =VLOOKUP(A98,'Chrono+Classement'!G:O,5,FALSE) ->  | M98: =VLOOKUP(A98,'Chrono+Classement'!G:O,9,FALSE) ->  | N98: =IF(K98=17,Param!G98,IF(K98=28,Param!H98,IF(K98=45,Param!I98))) -> 00:00:40 | Q98: 1900 | R98: FALSE | S98: FALSE
A99: 98 | B99: - | G99: 115.4004107 | K99: 45 | L99: =VLOOKUP(A99,'Chrono+Classement'!G:O,5,FALSE) ->  | M99: =VLOOKUP(A99,'Chrono+Classement'!G:O,9,FALSE) ->  | N99: =IF(K99=17,Param!G99,IF(K99=28,Param!H99,IF(K99=45,Param!I99))) -> 00:00:40 | Q99: 1900 | R99: FALSE | S99: FALSE
A100: 99 | B100: - | G100: 115.4004107 | K100: 45 | L100: =VLOOKUP(A100,'Chrono+Classement'!G:O,5,FALSE) ->  | M100: =VLOOKUP(A100,'Chrono+Classement'!G:O,9,FALSE) ->  | N100: =IF(K100=17,Param!G100,IF(K100=28,Param!H100,IF(K100=45,Param!I100))) -> 00:00:40 | Q100: 1900 | R100: FALSE | S100: FALSE
A101: 100 | B101: - | G101: 115.4004107 | K101: 45 | L101: =VLOOKUP(A101,'Chrono+Classement'!G:O,5,FALSE) ->  | M101: =VLOOKUP(A101,'Chrono+Classement'!G:O,9,FALSE) ->  | N101: =IF(K101=17,Param!G101,IF(K101=28,Param!H101,IF(K101=45,Param!I101))) -> 00:00:40 | O101: =M101-N101 ->  | Q101: 1900 | R101: FALSE | S101: FALSE
A102: 101 | B102: - | G102: 115.4004107 | K102: 45 | L102: =VLOOKUP(A102,'Chrono+Classement'!G:O,5,FALSE) ->  | M102: =VLOOKUP(A102,'Chrono+Classement'!G:O,9,FALSE) ->  | N102: =IF(K102=17,Param!G102,IF(K102=28,Param!H102,IF(K102=45,Param!I102))) -> 00:00:40 | Q102: 1900 | R102: FALSE | S102: FALSE
A103: 102 | B103: - | G103: 115.4004107 | K103: 45 | L103: =VLOOKUP(A103,'Chrono+Classement'!G:O,5,FALSE) ->  | M103: =VLOOKUP(A103,'Chrono+Classement'!G:O,9,FALSE) ->  | N103: =IF(K103=17,Param!G103,IF(K103=28,Param!H103,IF(K103=45,Param!I103))) -> 00:00:40 | Q103: 1900 | R103: FALSE | S103: FALSE
A104: 103 | B104: - | G104: 115.4004107 | K104: 45 | L104: =VLOOKUP(A104,'Chrono+Classement'!G:O,5,FALSE) ->  | M104: =VLOOKUP(A104,'Chrono+Classement'!G:O,9,FALSE) ->  | N104: =IF(K104=17,Param!G104,IF(K104=28,Param!H104,IF(K104=45,Param!I104))) -> 00:00:40 | Q104: 1900 | R104: FALSE | S104: FALSE
A105: 104 | B105: - | G105: 115.4004107 | K105: 45 | L105: =VLOOKUP(A105,'Chrono+Classement'!G:O,5,FALSE) ->  | M105: =VLOOKUP(A105,'Chrono+Classement'!G:O,9,FALSE) ->  | N105: =IF(K105=17,Param!G105,IF(K105=28,Param!H105,IF(K105=45,Param!I105))) -> 00:00:40 | Q105: 1900 | R105: FALSE | S105: FALSE
A106: 105 | B106: - | G106: 115.4004107 | K106: 45 | L106: =VLOOKUP(A106,'Chrono+Classement'!G:O,5,FALSE) ->  | M106: =VLOOKUP(A106,'Chrono+Classement'!G:O,9,FALSE) ->  | N106: =IF(K106=17,Param!G106,IF(K106=28,Param!H106,IF(K106=45,Param!I106))) -> 00:00:40 | Q106: 1900 | R106: FALSE | S106: FALSE
A107: 106 | B107: - | G107: 115.4004107 | K107: 45 | L107: =VLOOKUP(A107,'Chrono+Classement'!G:O,5,FALSE) ->  | M107: =VLOOKUP(A107,'Chrono+Classement'!G:O,9,FALSE) ->  | N107: =IF(K107=17,Param!G107,IF(K107=28,Param!H107,IF(K107=45,Param!I107))) -> 00:00:40 | Q107: 1900 | R107: FALSE | S107: FALSE
A108: 107 | B108: - | G108: 115.4004107 | K108: 45 | L108: =VLOOKUP(A108,'Chrono+Classement'!G:O,5,FALSE) ->  | M108: =VLOOKUP(A108,'Chrono+Classement'!G:O,9,FALSE) ->  | N108: =IF(K108=17,Param!G108,IF(K108=28,Param!H108,IF(K108=45,Param!I108))) -> 00:00:40 | Q108: 1900 | R108: FALSE | S108: FALSE
A109: 108 | B109: - | G109: 115.4004107 | K109: 45 | L109: =VLOOKUP(A109,'Chrono+Classement'!G:O,5,FALSE) ->  | M109: =VLOOKUP(A109,'Chrono+Classement'!G:O,9,FALSE) ->  | N109: =IF(K109=17,Param!G109,IF(K109=28,Param!H109,IF(K109=45,Param!I109))) -> 00:00:40 | Q109: 1900 | R109: FALSE | S109: FALSE
A110: 109 | B110: - | G110: 115.4004107 | K110: 45 | L110: =VLOOKUP(A110,'Chrono+Classement'!G:O,5,FALSE) ->  | M110: =VLOOKUP(A110,'Chrono+Classement'!G:O,9,FALSE) ->  | N110: =IF(K110=17,Param!G110,IF(K110=28,Param!H110,IF(K110=45,Param!I110))) -> 00:00:40 | Q110: 1900 | R110: FALSE | S110: FALSE
A111: 110 | B111: - | G111: 115.4004107 | K111: 45 | L111: =VLOOKUP(A111,'Chrono+Classement'!G:O,5,FALSE) ->  | M111: =VLOOKUP(A111,'Chrono+Classement'!G:O,9,FALSE) ->  | N111: =IF(K111=17,Param!G111,IF(K111=28,Param!H111,IF(K111=45,Param!I111))) -> 00:00:40 | Q111: 1900 | R111: FALSE | S111: FALSE
A112: 111 | B112: - | G112: 115.4004107 | K112: 45 | L112: =VLOOKUP(A112,'Chrono+Classement'!G:O,5,FALSE) ->  | M112: =VLOOKUP(A112,'Chrono+Classement'!G:O,9,FALSE) ->  | N112: =IF(K112=17,Param!G112,IF(K112=28,Param!H112,IF(K112=45,Param!I112))) -> 00:00:40 | Q112: 1900 | R112: FALSE | S112: FALSE
A113: 112 | B113: - | G113: 115.4004107 | K113: 45 | L113: =VLOOKUP(A113,'Chrono+Classement'!G:O,5,FALSE) ->  | M113: =VLOOKUP(A113,'Chrono+Classement'!G:O,9,FALSE) ->  | N113: =IF(K113=17,Param!G113,IF(K113=28,Param!H113,IF(K113=45,Param!I113))) -> 00:00:40 | Q113: 1900 | R113: FALSE | S113: FALSE
A114: 113 | B114: - | G114: 115.4004107 | K114: 45 | L114: =VLOOKUP(A114,'Chrono+Classement'!G:O,5,FALSE) ->  | M114: =VLOOKUP(A114,'Chrono+Classement'!G:O,9,FALSE) ->  | N114: =IF(K114=17,Param!G114,IF(K114=28,Param!H114,IF(K114=45,Param!I114))) -> 00:00:40 | Q114: 1900 | R114: FALSE | S114: FALSE
A115: 114 | B115: - | G115: 115.4004107 | K115: 45 | L115: =VLOOKUP(A115,'Chrono+Classement'!G:O,5,FALSE) ->  | M115: =VLOOKUP(A115,'Chrono+Classement'!G:O,9,FALSE) ->  | N115: =IF(K115=17,Param!G115,IF(K115=28,Param!H115,IF(K115=45,Param!I115))) -> 00:00:40 | Q115: 1900 | R115: FALSE | S115: FALSE
A116: 115 | B116: - | G116: 115.4004107 | K116: 45 | L116: =VLOOKUP(A116,'Chrono+Classement'!G:O,5,FALSE) ->  | M116: =VLOOKUP(A116,'Chrono+Classement'!G:O,9,FALSE) ->  | N116: =IF(K116=17,Param!G116,IF(K116=28,Param!H116,IF(K116=45,Param!I116))) -> 00:00:40 | Q116: 1900 | R116: FALSE | S116: FALSE
A117: 116 | B117: - | G117: 115.4004107 | K117: 45 | L117: =VLOOKUP(A117,'Chrono+Classement'!G:O,5,FALSE) ->  | M117: =VLOOKUP(A117,'Chrono+Classement'!G:O,9,FALSE) ->  | N117: =IF(K117=17,Param!G117,IF(K117=28,Param!H117,IF(K117=45,Param!I117))) -> 00:00:40 | Q117: 1900 | R117: FALSE | S117: FALSE
A118: 117 | B118: - | G118: 115.4004107 | K118: 45 | L118: =VLOOKUP(A118,'Chrono+Classement'!G:O,5,FALSE) ->  | M118: =VLOOKUP(A118,'Chrono+Classement'!G:O,9,FALSE) ->  | N118: =IF(K118=17,Param!G118,IF(K118=28,Param!H118,IF(K118=45,Param!I118))) -> 00:00:40 | Q118: 1900 | R118: FALSE | S118: FALSE
A119: 118 | B119: - | G119: 115.4004107 | K119: 45 | L119: =VLOOKUP(A119,'Chrono+Classement'!G:O,5,FALSE) ->  | M119: =VLOOKUP(A119,'Chrono+Classement'!G:O,9,FALSE) ->  | N119: =IF(K119=17,Param!G119,IF(K119=28,Param!H119,IF(K119=45,Param!I119))) -> 00:00:40 | Q119: 1900 | R119: FALSE | S119: FALSE
A120: 119 | B120: - | G120: 115.4004107 | K120: 45 | L120: =VLOOKUP(A120,'Chrono+Classement'!G:O,5,FALSE) ->  | M120: =VLOOKUP(A120,'Chrono+Classement'!G:O,9,FALSE) ->  | N120: =IF(K120=17,Param!G120,IF(K120=28,Param!H120,IF(K120=45,Param!I120))) -> 00:00:40 | Q120: 1900 | R120: FALSE | S120: FALSE
A121: 120 | B121: - | G121: 115.4004107 | K121: 45 | L121: =VLOOKUP(A121,'Chrono+Classement'!G:O,5,FALSE) ->  | M121: =VLOOKUP(A121,'Chrono+Classement'!G:O,9,FALSE) ->  | N121: =IF(K121=17,Param!G121,IF(K121=28,Param!H121,IF(K121=45,Param!I121))) -> 00:00:40 | Q121: 1900 | R121: FALSE | S121: FALSE
A122: 121 | B122: - | G122: 115.4004107 | K122: 45 | L122: =VLOOKUP(A122,'Chrono+Classement'!G:O,5,FALSE) ->  | M122: =VLOOKUP(A122,'Chrono+Classement'!G:O,9,FALSE) ->  | N122: =IF(K122=17,Param!G122,IF(K122=28,Param!H122,IF(K122=45,Param!I122))) -> 00:00:40 | Q122: 1900 | R122: FALSE | S122: FALSE
A123: 122 | B123: - | G123: 115.4004107 | K123: 45 | L123: =VLOOKUP(A123,'Chrono+Classement'!G:O,5,FALSE) ->  | M123: =VLOOKUP(A123,'Chrono+Classement'!G:O,9,FALSE) ->  | N123: =IF(K123=17,Param!G123,IF(K123=28,Param!H123,IF(K123=45,Param!I123))) -> 00:00:40 | Q123: 1900 | R123: FALSE | S123: FALSE
A124: 123 | B124: - | G124: 115.4004107 | K124: 45 | L124: =VLOOKUP(A124,'Chrono+Classement'!G:O,5,FALSE) ->  | M124: =VLOOKUP(A124,'Chrono+Classement'!G:O,9,FALSE) ->  | N124: =IF(K124=17,Param!G124,IF(K124=28,Param!H124,IF(K124=45,Param!I124))) -> 00:00:40 | Q124: 1900 | R124: FALSE | S124: FALSE
A125: 124 | B125: - | G125: 115.4004107 | K125: 45 | L125: =VLOOKUP(A125,'Chrono+Classement'!G:O,5,FALSE) ->  | M125: =VLOOKUP(A125,'Chrono+Classement'!G:O,9,FALSE) ->  | N125: =IF(K125=17,Param!G125,IF(K125=28,Param!H125,IF(K125=45,Param!I125))) -> 00:00:40 | Q125: 1900 | R125: FALSE | S125: FALSE
A126: 125 | B126: - | G126: 115.4004107 | K126: 45 | L126: =VLOOKUP(A126,'Chrono+Classement'!G:O,5,FALSE) ->  | M126: =VLOOKUP(A126,'Chrono+Classement'!G:O,9,FALSE) ->  | N126: =IF(K126=17,Param!G126,IF(K126=28,Param!H126,IF(K126=45,Param!I126))) -> 00:00:40 | Q126: 1900 | R126: FALSE | S126: FALSE
A127: 126 | B127: - | G127: 115.4004107 | K127: 45 | L127: =VLOOKUP(A127,'Chrono+Classement'!G:O,5,FALSE) ->  | M127: =VLOOKUP(A127,'Chrono+Classement'!G:O,9,FALSE) ->  | N127: =IF(K127=17,Param!G127,IF(K127=28,Param!H127,IF(K127=45,Param!I127))) -> 00:00:40 | Q127: 1900 | R127: FALSE | S127: FALSE
A128: 127 | B128: - | G128: 115.4004107 | K128: 45 | L128: =VLOOKUP(A128,'Chrono+Classement'!G:O,5,FALSE) ->  | M128: =VLOOKUP(A128,'Chrono+Classement'!G:O,9,FALSE) ->  | N128: =IF(K128=17,Param!G128,IF(K128=28,Param!H128,IF(K128=45,Param!I128))) -> 00:00:40 | Q128: 1900 | R128: FALSE | S128: FALSE
A129: 128 | B129: - | G129: 115.4004107 | K129: 45 | L129: =VLOOKUP(A129,'Chrono+Classement'!G:O,5,FALSE) ->  | M129: =VLOOKUP(A129,'Chrono+Classement'!G:O,9,FALSE) ->  | N129: =IF(K129=17,Param!G129,IF(K129=28,Param!H129,IF(K129=45,Param!I129))) -> 00:00:40 | Q129: 1900 | R129: FALSE | S129: FALSE
A130: 129 | B130: =CONCATENATE(C130,"-",D130) -> - | G130: =(TODAY()-F130)/365.25 -> 115.4004107 | K130: 45 | L130: =VLOOKUP(A130,'Chrono+Classement'!G:O,5,FALSE) ->  | M130: =VLOOKUP(A130,'Chrono+Classement'!G:O,9,FALSE) ->  | N130: =IF(K130=17,Param!G130,IF(K130=28,Param!H130,IF(K130=45,Param!I130))) -> 00:00:40 | Q130: =YEAR(F130) -> 1900 | R130: =IF(E130="M",IF(Q130<=1965,"Masters 5",IF(Q130<=1975,"Masters 3/4",IF(Q130<=1985,"Masters 1/2",IF(Q130<=1992,"Hommes",IF(Q130<=1996,"Espoirs",IF(Q130<=1998,"Juniors",IF(Q130<=2000,"Cadets",0)))))))) -> FALSE | S130: =IF(E130="F",IF(Q130<=1992,"Dames",IF(Q130<=1996,"Espoirs Dames",IF(Q130<=1998,"Juniors Dames",IF(Q130<=2000,"Cadettes",0))))) -> FALSE
A131: 130 | B131: - | G131: 115.4004107 | K131: 45 | L131: =VLOOKUP(A131,'Chrono+Classement'!G:O,5,FALSE) ->  | M131: =VLOOKUP(A131,'Chrono+Classement'!G:O,9,FALSE) ->  | N131: =IF(K131=17,Param!G131,IF(K131=28,Param!H131,IF(K131=45,Param!I131))) -> 00:00:40 | Q131: 1900 | R131: FALSE | S131: FALSE
A132: 131 | B132: - | G132: 115.4004107 | K132: 45 | L132: =VLOOKUP(A132,'Chrono+Classement'!G:O,5,FALSE) ->  | M132: =VLOOKUP(A132,'Chrono+Classement'!G:O,9,FALSE) ->  | N132: =IF(K132=17,Param!G132,IF(K132=28,Param!H132,IF(K132=45,Param!I132))) -> 00:00:40 | Q132: 1900 | R132: FALSE | S132: FALSE
A133: 132 | B133: - | G133: 115.4004107 | K133: 45 | L133: =VLOOKUP(A133,'Chrono+Classement'!G:O,5,FALSE) ->  | M133: =VLOOKUP(A133,'Chrono+Classement'!G:O,9,FALSE) ->  | N133: =IF(K133=17,Param!G133,IF(K133=28,Param!H133,IF(K133=45,Param!I133))) -> 00:00:40 | Q133: 1900 | R133: FALSE | S133: FALSE
A134: 133 | B134: - | G134: 115.4004107 | K134: 45 | L134: =VLOOKUP(A134,'Chrono+Classement'!G:O,5,FALSE) ->  | M134: =VLOOKUP(A134,'Chrono+Classement'!G:O,9,FALSE) ->  | N134: =IF(K134=17,Param!G134,IF(K134=28,Param!H134,IF(K134=45,Param!I134))) -> 00:00:40 | Q134: 1900 | R134: FALSE | S134: FALSE
A135: 134 | B135: - | G135: 115.4004107 | K135: 45 | L135: =VLOOKUP(A135,'Chrono+Classement'!G:O,5,FALSE) ->  | M135: =VLOOKUP(A135,'Chrono+Classement'!G:O,9,FALSE) ->  | N135: =IF(K135=17,Param!G135,IF(K135=28,Param!H135,IF(K135=45,Param!I135))) -> 00:00:40 | Q135: 1900 | R135: FALSE | S135: FALSE
A136: 135 | B136: - | G136: 115.4004107 | K136: 45 | L136: =VLOOKUP(A136,'Chrono+Classement'!G:O,5,FALSE) ->  | M136: =VLOOKUP(A136,'Chrono+Classement'!G:O,9,FALSE) ->  | N136: =IF(K136=17,Param!G136,IF(K136=28,Param!H136,IF(K136=45,Param!I136))) -> 00:00:40 | Q136: 1900 | R136: FALSE | S136: FALSE
A137: 136 | B137: - | G137: 115.4004107 | K137: 45 | L137: =VLOOKUP(A137,'Chrono+Classement'!G:O,5,FALSE) ->  | M137: =VLOOKUP(A137,'Chrono+Classement'!G:O,9,FALSE) ->  | N137: =IF(K137=17,Param!G137,IF(K137=28,Param!H137,IF(K137=45,Param!I137))) -> 00:00:40 | Q137: 1900 | R137: FALSE | S137: FALSE
A138: 137 | B138: - | G138: 115.4004107 | K138: 45 | L138: =VLOOKUP(A138,'Chrono+Classement'!G:O,5,FALSE) ->  | M138: =VLOOKUP(A138,'Chrono+Classement'!G:O,9,FALSE) ->  | N138: =IF(K138=17,Param!G138,IF(K138=28,Param!H138,IF(K138=45,Param!I138))) -> 00:00:40 | Q138: 1900 | R138: FALSE | S138: FALSE
A139: 138 | B139: - | G139: 115.4004107 | K139: 45 | L139: =VLOOKUP(A139,'Chrono+Classement'!G:O,5,FALSE) ->  | M139: =VLOOKUP(A139,'Chrono+Classement'!G:O,9,FALSE) ->  | N139: =IF(K139=17,Param!G139,IF(K139=28,Param!H139,IF(K139=45,Param!I139))) -> 00:00:40 | Q139: 1900 | R139: FALSE | S139: FALSE
A140: 139 | B140: - | G140: 115.4004107 | K140: 45 | L140: =VLOOKUP(A140,'Chrono+Classement'!G:O,5,FALSE) ->  | M140: =VLOOKUP(A140,'Chrono+Classement'!G:O,9,FALSE) ->  | N140: =IF(K140=17,Param!G140,IF(K140=28,Param!H140,IF(K140=45,Param!I140))) -> 00:00:40 | Q140: 1900 | R140: FALSE | S140: FALSE
A141: 140 | B141: - | G141: 115.4004107 | K141: 45 | L141: =VLOOKUP(A141,'Chrono+Classement'!G:O,5,FALSE) ->  | M141: =VLOOKUP(A141,'Chrono+Classement'!G:O,9,FALSE) ->  | N141: =IF(K141=17,Param!G141,IF(K141=28,Param!H141,IF(K141=45,Param!I141))) -> 00:00:40 | Q141: 1900 | R141: FALSE | S141: FALSE
A142: 141 | B142: - | G142: 115.4004107 | K142: 45 | L142: =VLOOKUP(A142,'Chrono+Classement'!G:O,5,FALSE) ->  | M142: =VLOOKUP(A142,'Chrono+Classement'!G:O,9,FALSE) ->  | N142: =IF(K142=17,Param!G142,IF(K142=28,Param!H142,IF(K142=45,Param!I142))) -> 00:00:40 | Q142: 1900 | R142: FALSE | S142: FALSE
A143: 142 | B143: - | G143: 115.4004107 | K143: 45 | L143: =VLOOKUP(A143,'Chrono+Classement'!G:O,5,FALSE) ->  | M143: =VLOOKUP(A143,'Chrono+Classement'!G:O,9,FALSE) ->  | N143: =IF(K143=17,Param!G143,IF(K143=28,Param!H143,IF(K143=45,Param!I143))) -> 00:00:40 | Q143: 1900 | R143: FALSE | S143: FALSE
A144: 143 | B144: - | G144: 115.4004107 | K144: 45 | L144: =VLOOKUP(A144,'Chrono+Classement'!G:O,5,FALSE) ->  | M144: =VLOOKUP(A144,'Chrono+Classement'!G:O,9,FALSE) ->  | N144: =IF(K144=17,Param!G144,IF(K144=28,Param!H144,IF(K144=45,Param!I144))) -> 00:00:40 | Q144: 1900 | R144: FALSE | S144: FALSE
A145: 144 | B145: - | G145: 115.4004107 | K145: 45 | L145: =VLOOKUP(A145,'Chrono+Classement'!G:O,5,FALSE) ->  | M145: =VLOOKUP(A145,'Chrono+Classement'!G:O,9,FALSE) ->  | N145: =IF(K145=17,Param!G145,IF(K145=28,Param!H145,IF(K145=45,Param!I145))) -> 00:00:40 | Q145: 1900 | R145: FALSE | S145: FALSE
A146: 145 | B146: - | G146: 115.4004107 | K146: 45 | L146: =VLOOKUP(A146,'Chrono+Classement'!G:O,5,FALSE) ->  | M146: =VLOOKUP(A146,'Chrono+Classement'!G:O,9,FALSE) ->  | N146: =IF(K146=17,Param!G146,IF(K146=28,Param!H146,IF(K146=45,Param!I146))) -> 00:00:40 | Q146: 1900 | R146: FALSE | S146: FALSE
A147: 146 | B147: - | G147: 115.4004107 | K147: 45 | L147: =VLOOKUP(A147,'Chrono+Classement'!G:O,5,FALSE) ->  | M147: =VLOOKUP(A147,'Chrono+Classement'!G:O,9,FALSE) ->  | N147: =IF(K147=17,Param!G147,IF(K147=28,Param!H147,IF(K147=45,Param!I147))) -> 00:00:40 | Q147: 1900 | R147: FALSE | S147: FALSE
A148: 147 | B148: - | G148: 115.4004107 | K148: 45 | L148: =VLOOKUP(A148,'Chrono+Classement'!G:O,5,FALSE) ->  | M148: =VLOOKUP(A148,'Chrono+Classement'!G:O,9,FALSE) ->  | N148: =IF(K148=17,Param!G148,IF(K148=28,Param!H148,IF(K148=45,Param!I148))) -> 00:00:40 | Q148: 1900 | R148: FALSE | S148: FALSE
A149: 148 | B149: - | G149: 115.4004107 | K149: 45 | L149: =VLOOKUP(A149,'Chrono+Classement'!G:O,5,FALSE) ->  | M149: =VLOOKUP(A149,'Chrono+Classement'!G:O,9,FALSE) ->  | N149: =IF(K149=17,Param!G149,IF(K149=28,Param!H149,IF(K149=45,Param!I149))) -> 00:00:40 | Q149: 1900 | R149: FALSE | S149: FALSE
A150: 149 | B150: - | G150: 115.4004107 | K150: 45 | L150: =VLOOKUP(A150,'Chrono+Classement'!G:O,5,FALSE) ->  | M150: =VLOOKUP(A150,'Chrono+Classement'!G:O,9,FALSE) ->  | N150: =IF(K150=17,Param!G150,IF(K150=28,Param!H150,IF(K150=45,Param!I150))) -> 00:00:40 | Q150: 1900 | R150: FALSE | S150: FALSE
A151: 150 | B151: - | G151: 115.4004107 | K151: 45 | L151: =VLOOKUP(A151,'Chrono+Classement'!G:O,5,FALSE) ->  | M151: =VLOOKUP(A151,'Chrono+Classement'!G:O,9,FALSE) ->  | N151: =IF(K151=17,Param!G151,IF(K151=28,Param!H151,IF(K151=45,Param!I151))) -> 00:00:40 | Q151: 1900 | R151: FALSE | S151: FALSE
A152: 151 | B152: - | G152: 115.4004107 | K152: 45 | L152: =VLOOKUP(A152,'Chrono+Classement'!G:O,5,FALSE) ->  | M152: =VLOOKUP(A152,'Chrono+Classement'!G:O,9,FALSE) ->  | N152: =IF(K152=17,Param!G152,IF(K152=28,Param!H152,IF(K152=45,Param!I152))) -> 00:00:40 | Q152: 1900 | R152: FALSE | S152: FALSE
A153: 152 | B153: - | G153: 115.4004107 | K153: 45 | L153: =VLOOKUP(A153,'Chrono+Classement'!G:O,5,FALSE) ->  | M153: =VLOOKUP(A153,'Chrono+Classement'!G:O,9,FALSE) ->  | N153: =IF(K153=17,Param!G153,IF(K153=28,Param!H153,IF(K153=45,Param!I153))) -> 00:00:40 | Q153: 1900 | R153: FALSE | S153: FALSE
A154: 153 | B154: - | G154: 115.4004107 | K154: 45 | L154: =VLOOKUP(A154,'Chrono+Classement'!G:O,5,FALSE) ->  | M154: =VLOOKUP(A154,'Chrono+Classement'!G:O,9,FALSE) ->  | N154: =IF(K154=17,Param!G154,IF(K154=28,Param!H154,IF(K154=45,Param!I154))) -> 00:00:40 | Q154: 1900 | R154: FALSE | S154: FALSE
A155: 154 | B155: - | G155: 115.4004107 | K155: 45 | L155: =VLOOKUP(A155,'Chrono+Classement'!G:O,5,FALSE) ->  | M155: =VLOOKUP(A155,'Chrono+Classement'!G:O,9,FALSE) ->  | N155: =IF(K155=17,Param!G155,IF(K155=28,Param!H155,IF(K155=45,Param!I155))) -> 00:00:40 | Q155: 1900 | R155: FALSE | S155: FALSE
A156: 155 | B156: - | G156: 115.4004107 | K156: 45 | L156: =VLOOKUP(A156,'Chrono+Classement'!G:O,5,FALSE) ->  | M156: =VLOOKUP(A156,'Chrono+Classement'!G:O,9,FALSE) ->  | N156: =IF(K156=17,Param!G156,IF(K156=28,Param!H156,IF(K156=45,Param!I156))) -> 00:00:40 | Q156: 1900 | R156: FALSE | S156: FALSE
A157: 156 | B157: - | G157: 115.4004107 | K157: 45 | L157: =VLOOKUP(A157,'Chrono+Classement'!G:O,5,FALSE) ->  | M157: =VLOOKUP(A157,'Chrono+Classement'!G:O,9,FALSE) ->  | N157: =IF(K157=17,Param!G157,IF(K157=28,Param!H157,IF(K157=45,Param!I157))) -> 00:00:40 | Q157: 1900 | R157: FALSE | S157: FALSE
A158: 157 | B158: - | G158: 115.4004107 | K158: 45 | L158: =VLOOKUP(A158,'Chrono+Classement'!G:O,5,FALSE) ->  | M158: =VLOOKUP(A158,'Chrono+Classement'!G:O,9,FALSE) ->  | N158: =IF(K158=17,Param!G158,IF(K158=28,Param!H158,IF(K158=45,Param!I158))) -> 00:00:40 | Q158: 1900 | R158: FALSE | S158: FALSE
A159: 158 | B159: - | G159: 115.4004107 | K159: 45 | L159: =VLOOKUP(A159,'Chrono+Classement'!G:O,5,FALSE) ->  | M159: =VLOOKUP(A159,'Chrono+Classement'!G:O,9,FALSE) ->  | N159: =IF(K159=17,Param!G159,IF(K159=28,Param!H159,IF(K159=45,Param!I159))) -> 00:00:40 | Q159: 1900 | R159: FALSE | S159: FALSE
A160: 159 | B160: - | G160: 115.4004107 | K160: 45 | L160: =VLOOKUP(A160,'Chrono+Classement'!G:O,5,FALSE) ->  | M160: =VLOOKUP(A160,'Chrono+Classement'!G:O,9,FALSE) ->  | N160: =IF(K160=17,Param!G160,IF(K160=28,Param!H160,IF(K160=45,Param!I160))) -> 00:00:40 | Q160: 1900 | R160: FALSE | S160: FALSE
A161: 160 | B161: - | G161: 115.4004107 | K161: 45 | L161: =VLOOKUP(A161,'Chrono+Classement'!G:O,5,FALSE) ->  | M161: =VLOOKUP(A161,'Chrono+Classement'!G:O,9,FALSE) ->  | N161: =IF(K161=17,Param!G161,IF(K161=28,Param!H161,IF(K161=45,Param!I161))) -> 00:00:40 | Q161: 1900 | R161: FALSE | S161: FALSE
A162: 161 | B162: - | G162: 115.4004107 | K162: 45 | L162: =VLOOKUP(A162,'Chrono+Classement'!G:O,5,FALSE) ->  | M162: =VLOOKUP(A162,'Chrono+Classement'!G:O,9,FALSE) ->  | N162: =IF(K162=17,Param!G162,IF(K162=28,Param!H162,IF(K162=45,Param!I162))) -> 00:00:40 | Q162: 1900 | R162: FALSE | S162: FALSE
A163: 162 | B163: - | G163: 115.4004107 | K163: 45 | L163: =VLOOKUP(A163,'Chrono+Classement'!G:O,5,FALSE) ->  | M163: =VLOOKUP(A163,'Chrono+Classement'!G:O,9,FALSE) ->  | N163: =IF(K163=17,Param!G163,IF(K163=28,Param!H163,IF(K163=45,Param!I163))) -> 00:00:40 | Q163: 1900 | R163: FALSE | S163: FALSE
A164: 163 | B164: - | G164: 115.4004107 | K164: 45 | L164: =VLOOKUP(A164,'Chrono+Classement'!G:O,5,FALSE) ->  | M164: =VLOOKUP(A164,'Chrono+Classement'!G:O,9,FALSE) ->  | N164: =IF(K164=17,Param!G164,IF(K164=28,Param!H164,IF(K164=45,Param!I164))) -> 00:00:40 | Q164: 1900 | R164: FALSE | S164: FALSE
A165: 164 | B165: - | G165: 115.4004107 | K165: 45 | L165: =VLOOKUP(A165,'Chrono+Classement'!G:O,5,FALSE) ->  | M165: =VLOOKUP(A165,'Chrono+Classement'!G:O,9,FALSE) ->  | N165: =IF(K165=17,Param!G165,IF(K165=28,Param!H165,IF(K165=45,Param!I165))) -> 00:00:40 | O165: =M165-N165 ->  | Q165: 1900 | R165: FALSE | S165: FALSE
A166: 165 | B166: - | G166: 115.4004107 | K166: 45 | L166: =VLOOKUP(A166,'Chrono+Classement'!G:O,5,FALSE) ->  | M166: =VLOOKUP(A166,'Chrono+Classement'!G:O,9,FALSE) ->  | N166: =IF(K166=17,Param!G166,IF(K166=28,Param!H166,IF(K166=45,Param!I166))) -> 00:00:40 | Q166: 1900 | R166: FALSE | S166: FALSE
A167: 166 | B167: - | G167: 115.4004107 | K167: 45 | L167: =VLOOKUP(A167,'Chrono+Classement'!G:O,5,FALSE) ->  | M167: =VLOOKUP(A167,'Chrono+Classement'!G:O,9,FALSE) ->  | N167: =IF(K167=17,Param!G167,IF(K167=28,Param!H167,IF(K167=45,Param!I167))) -> 00:00:40 | Q167: 1900 | R167: FALSE | S167: FALSE
A168: 167 | B168: - | G168: 115.4004107 | K168: 45 | L168: =VLOOKUP(A168,'Chrono+Classement'!G:O,5,FALSE) ->  | M168: =VLOOKUP(A168,'Chrono+Classement'!G:O,9,FALSE) ->  | N168: =IF(K168=17,Param!G168,IF(K168=28,Param!H168,IF(K168=45,Param!I168))) -> 00:00:40 | Q168: 1900 | R168: FALSE | S168: FALSE
A169: 168 | B169: - | G169: 115.4004107 | K169: 45 | L169: =VLOOKUP(A169,'Chrono+Classement'!G:O,5,FALSE) ->  | M169: =VLOOKUP(A169,'Chrono+Classement'!G:O,9,FALSE) ->  | N169: =IF(K169=17,Param!G169,IF(K169=28,Param!H169,IF(K169=45,Param!I169))) -> 00:00:40 | Q169: 1900 | R169: FALSE | S169: FALSE
A170: 169 | B170: - | G170: 115.4004107 | K170: 45 | L170: =VLOOKUP(A170,'Chrono+Classement'!G:O,5,FALSE) ->  | M170: =VLOOKUP(A170,'Chrono+Classement'!G:O,9,FALSE) ->  | N170: =IF(K170=17,Param!G170,IF(K170=28,Param!H170,IF(K170=45,Param!I170))) -> 00:00:40 | Q170: 1900 | R170: FALSE | S170: FALSE
A171: 170 | B171: - | G171: 115.4004107 | K171: 45 | L171: =VLOOKUP(A171,'Chrono+Classement'!G:O,5,FALSE) ->  | M171: =VLOOKUP(A171,'Chrono+Classement'!G:O,9,FALSE) ->  | N171: =IF(K171=17,Param!G171,IF(K171=28,Param!H171,IF(K171=45,Param!I171))) -> 00:00:40 | Q171: 1900 | R171: FALSE | S171: FALSE
A172: 171 | B172: - | G172: 115.4004107 | K172: 45 | L172: =VLOOKUP(A172,'Chrono+Classement'!G:O,5,FALSE) ->  | M172: =VLOOKUP(A172,'Chrono+Classement'!G:O,9,FALSE) ->  | N172: =IF(K172=17,Param!G172,IF(K172=28,Param!H172,IF(K172=45,Param!I172))) -> 00:00:40 | Q172: 1900 | R172: FALSE | S172: FALSE
A173: 172 | B173: - | G173: 115.4004107 | K173: 45 | L173: =VLOOKUP(A173,'Chrono+Classement'!G:O,5,FALSE) ->  | M173: =VLOOKUP(A173,'Chrono+Classement'!G:O,9,FALSE) ->  | N173: =IF(K173=17,Param!G173,IF(K173=28,Param!H173,IF(K173=45,Param!I173))) -> 00:00:40 | Q173: 1900 | R173: FALSE | S173: FALSE
A174: 173 | B174: - | G174: 115.4004107 | K174: 45 | L174: =VLOOKUP(A174,'Chrono+Classement'!G:O,5,FALSE) ->  | M174: =VLOOKUP(A174,'Chrono+Classement'!G:O,9,FALSE) ->  | N174: =IF(K174=17,Param!G174,IF(K174=28,Param!H174,IF(K174=45,Param!I174))) -> 00:00:40 | Q174: 1900 | R174: FALSE | S174: FALSE
A175: 174 | B175: - | G175: 115.4004107 | K175: 45 | L175: =VLOOKUP(A175,'Chrono+Classement'!G:O,5,FALSE) ->  | M175: =VLOOKUP(A175,'Chrono+Classement'!G:O,9,FALSE) ->  | N175: =IF(K175=17,Param!G175,IF(K175=28,Param!H175,IF(K175=45,Param!I175))) -> 00:00:40 | Q175: 1900 | R175: FALSE | S175: FALSE
A176: 175 | B176: - | G176: 115.4004107 | K176: 45 | L176: =VLOOKUP(A176,'Chrono+Classement'!G:O,5,FALSE) ->  | M176: =VLOOKUP(A176,'Chrono+Classement'!G:O,9,FALSE) ->  | N176: =IF(K176=17,Param!G176,IF(K176=28,Param!H176,IF(K176=45,Param!I176))) -> 00:00:40 | Q176: 1900 | R176: FALSE | S176: FALSE
A177: 176 | B177: - | G177: 115.4004107 | K177: 45 | L177: =VLOOKUP(A177,'Chrono+Classement'!G:O,5,FALSE) ->  | M177: =VLOOKUP(A177,'Chrono+Classement'!G:O,9,FALSE) ->  | N177: =IF(K177=17,Param!G177,IF(K177=28,Param!H177,IF(K177=45,Param!I177))) -> 00:00:40 | Q177: 1900 | R177: FALSE | S177: FALSE
A178: 177 | B178: - | G178: 115.4004107 | K178: 45 | L178: =VLOOKUP(A178,'Chrono+Classement'!G:O,5,FALSE) ->  | M178: =VLOOKUP(A178,'Chrono+Classement'!G:O,9,FALSE) ->  | N178: =IF(K178=17,Param!G178,IF(K178=28,Param!H178,IF(K178=45,Param!I178))) -> 00:00:40 | Q178: 1900 | R178: FALSE | S178: FALSE
A179: 178 | B179: - | G179: 115.4004107 | K179: 45 | L179: =VLOOKUP(A179,'Chrono+Classement'!G:O,5,FALSE) ->  | M179: =VLOOKUP(A179,'Chrono+Classement'!G:O,9,FALSE) ->  | N179: =IF(K179=17,Param!G179,IF(K179=28,Param!H179,IF(K179=45,Param!I179))) -> 00:00:40 | Q179: 1900 | R179: FALSE | S179: FALSE
A180: 179 | B180: - | G180: 115.4004107 | K180: 45 | L180: =VLOOKUP(A180,'Chrono+Classement'!G:O,5,FALSE) ->  | M180: =VLOOKUP(A180,'Chrono+Classement'!G:O,9,FALSE) ->  | N180: =IF(K180=17,Param!G180,IF(K180=28,Param!H180,IF(K180=45,Param!I180))) -> 00:00:40 | Q180: 1900 | R180: FALSE | S180: FALSE
A181: 180 | B181: - | G181: 115.4004107 | K181: 45 | L181: =VLOOKUP(A181,'Chrono+Classement'!G:O,5,FALSE) ->  | M181: =VLOOKUP(A181,'Chrono+Classement'!G:O,9,FALSE) ->  | N181: =IF(K181=17,Param!G181,IF(K181=28,Param!H181,IF(K181=45,Param!I181))) -> 00:00:40 | Q181: 1900 | R181: FALSE | S181: FALSE
A182: 181 | B182: - | G182: 115.4004107 | K182: 45 | L182: =VLOOKUP(A182,'Chrono+Classement'!G:O,5,FALSE) ->  | M182: =VLOOKUP(A182,'Chrono+Classement'!G:O,9,FALSE) ->  | N182: =IF(K182=17,Param!G182,IF(K182=28,Param!H182,IF(K182=45,Param!I182))) -> 00:00:40 | Q182: 1900 | R182: FALSE | S182: FALSE
A183: 182 | B183: - | G183: 115.4004107 | K183: 45 | L183: =VLOOKUP(A183,'Chrono+Classement'!G:O,5,FALSE) ->  | M183: =VLOOKUP(A183,'Chrono+Classement'!G:O,9,FALSE) ->  | N183: =IF(K183=17,Param!G183,IF(K183=28,Param!H183,IF(K183=45,Param!I183))) -> 00:00:40 | Q183: 1900 | R183: FALSE | S183: FALSE
A184: 183 | B184: - | G184: 115.4004107 | K184: 45 | L184: =VLOOKUP(A184,'Chrono+Classement'!G:O,5,FALSE) ->  | M184: =VLOOKUP(A184,'Chrono+Classement'!G:O,9,FALSE) ->  | N184: =IF(K184=17,Param!G184,IF(K184=28,Param!H184,IF(K184=45,Param!I184))) -> 00:00:40 | Q184: 1900 | R184: FALSE | S184: FALSE
A185: 184 | B185: - | G185: 115.4004107 | K185: 45 | L185: =VLOOKUP(A185,'Chrono+Classement'!G:O,5,FALSE) ->  | M185: =VLOOKUP(A185,'Chrono+Classement'!G:O,9,FALSE) ->  | N185: =IF(K185=17,Param!G185,IF(K185=28,Param!H185,IF(K185=45,Param!I185))) -> 00:00:40 | Q185: 1900 | R185: FALSE | S185: FALSE
A186: 185 | B186: - | G186: 115.4004107 | K186: 45 | L186: =VLOOKUP(A186,'Chrono+Classement'!G:O,5,FALSE) ->  | M186: =VLOOKUP(A186,'Chrono+Classement'!G:O,9,FALSE) ->  | N186: =IF(K186=17,Param!G186,IF(K186=28,Param!H186,IF(K186=45,Param!I186))) -> 00:00:40 | Q186: 1900 | R186: FALSE | S186: FALSE
A187: 186 | B187: - | G187: 115.4004107 | K187: 45 | L187: =VLOOKUP(A187,'Chrono+Classement'!G:O,5,FALSE) ->  | M187: =VLOOKUP(A187,'Chrono+Classement'!G:O,9,FALSE) ->  | N187: =IF(K187=17,Param!G187,IF(K187=28,Param!H187,IF(K187=45,Param!I187))) -> 00:00:40 | Q187: 1900 | R187: FALSE | S187: FALSE
A188: 187 | B188: - | G188: 115.4004107 | K188: 45 | L188: =VLOOKUP(A188,'Chrono+Classement'!G:O,5,FALSE) ->  | M188: =VLOOKUP(A188,'Chrono+Classement'!G:O,9,FALSE) ->  | N188: =IF(K188=17,Param!G188,IF(K188=28,Param!H188,IF(K188=45,Param!I188))) -> 00:00:40 | Q188: 1900 | R188: FALSE | S188: FALSE
A189: 188 | B189: - | G189: 115.4004107 | K189: 45 | L189: =VLOOKUP(A189,'Chrono+Classement'!G:O,5,FALSE) ->  | M189: =VLOOKUP(A189,'Chrono+Classement'!G:O,9,FALSE) ->  | N189: =IF(K189=17,Param!G189,IF(K189=28,Param!H189,IF(K189=45,Param!I189))) -> 00:00:40 | Q189: 1900 | R189: FALSE | S189: FALSE
A190: 189 | B190: - | G190: 115.4004107 | K190: 45 | L190: =VLOOKUP(A190,'Chrono+Classement'!G:O,5,FALSE) ->  | M190: =VLOOKUP(A190,'Chrono+Classement'!G:O,9,FALSE) ->  | N190: =IF(K190=17,Param!G190,IF(K190=28,Param!H190,IF(K190=45,Param!I190))) -> 00:00:40 | Q190: 1900 | R190: FALSE | S190: FALSE
A191: 190 | B191: - | G191: 115.4004107 | K191: 45 | L191: =VLOOKUP(A191,'Chrono+Classement'!G:O,5,FALSE) ->  | M191: =VLOOKUP(A191,'Chrono+Classement'!G:O,9,FALSE) ->  | N191: =IF(K191=17,Param!G191,IF(K191=28,Param!H191,IF(K191=45,Param!I191))) -> 00:00:40 | Q191: 1900 | R191: FALSE | S191: FALSE
A192: 191 | B192: - | G192: 115.4004107 | K192: 45 | L192: =VLOOKUP(A192,'Chrono+Classement'!G:O,5,FALSE) ->  | M192: =VLOOKUP(A192,'Chrono+Classement'!G:O,9,FALSE) ->  | N192: =IF(K192=17,Param!G192,IF(K192=28,Param!H192,IF(K192=45,Param!I192))) -> 00:00:40 | Q192: 1900 | R192: FALSE | S192: FALSE
A193: 192 | B193: - | G193: 115.4004107 | K193: 45 | L193: =VLOOKUP(A193,'Chrono+Classement'!G:O,5,FALSE) ->  | M193: =VLOOKUP(A193,'Chrono+Classement'!G:O,9,FALSE) ->  | N193: =IF(K193=17,Param!G193,IF(K193=28,Param!H193,IF(K193=45,Param!I193))) -> 00:00:40 | Q193: 1900 | R193: FALSE | S193: FALSE
A194: 193 | B194: =CONCATENATE(C194,"-",D194) -> - | G194: =(TODAY()-F194)/365.25 -> 115.4004107 | K194: 45 | L194: =VLOOKUP(A194,'Chrono+Classement'!G:O,5,FALSE) ->  | M194: =VLOOKUP(A194,'Chrono+Classement'!G:O,9,FALSE) ->  | N194: =IF(K194=17,Param!G194,IF(K194=28,Param!H194,IF(K194=45,Param!I194))) -> 00:00:40 | Q194: =YEAR(F194) -> 1900 | R194: =IF(E194="M",IF(Q194<=1965,"Masters 5",IF(Q194<=1975,"Masters 3/4",IF(Q194<=1985,"Masters 1/2",IF(Q194<=1992,"Hommes",IF(Q194<=1996,"Espoirs",IF(Q194<=1998,"Juniors",IF(Q194<=2000,"Cadets",0)))))))) -> FALSE | S194: =IF(E194="F",IF(Q194<=1992,"Dames",IF(Q194<=1996,"Espoirs Dames",IF(Q194<=1998,"Juniors Dames",IF(Q194<=2000,"Cadettes",0))))) -> FALSE
A195: 194 | B195: - | G195: 115.4004107 | K195: 45 | L195: =VLOOKUP(A195,'Chrono+Classement'!G:O,5,FALSE) ->  | M195: =VLOOKUP(A195,'Chrono+Classement'!G:O,9,FALSE) ->  | N195: =IF(K195=17,Param!G195,IF(K195=28,Param!H195,IF(K195=45,Param!I195))) -> 00:00:40 | Q195: 1900 | R195: FALSE | S195: FALSE
A196: 195 | B196: - | G196: 115.4004107 | K196: 45 | L196: =VLOOKUP(A196,'Chrono+Classement'!G:O,5,FALSE) ->  | M196: =VLOOKUP(A196,'Chrono+Classement'!G:O,9,FALSE) ->  | N196: =IF(K196=17,Param!G196,IF(K196=28,Param!H196,IF(K196=45,Param!I196))) -> 00:00:40 | Q196: 1900 | R196: FALSE | S196: FALSE
A197: 196 | B197: - | G197: 115.4004107 | K197: 45 | L197: =VLOOKUP(A197,'Chrono+Classement'!G:O,5,FALSE) ->  | M197: =VLOOKUP(A197,'Chrono+Classement'!G:O,9,FALSE) ->  | N197: =IF(K197=17,Param!G197,IF(K197=28,Param!H197,IF(K197=45,Param!I197))) -> 00:00:40 | Q197: 1900 | R197: FALSE | S197: FALSE
A198: 197 | B198: - | G198: 115.4004107 | K198: 45 | L198: =VLOOKUP(A198,'Chrono+Classement'!G:O,5,FALSE) ->  | M198: =VLOOKUP(A198,'Chrono+Classement'!G:O,9,FALSE) ->  | N198: =IF(K198=17,Param!G198,IF(K198=28,Param!H198,IF(K198=45,Param!I198))) -> 00:00:40 | Q198: 1900 | R198: FALSE | S198: FALSE
A199: 198 | B199: - | G199: 115.4004107 | K199: 45 | L199: =VLOOKUP(A199,'Chrono+Classement'!G:O,5,FALSE) ->  | M199: =VLOOKUP(A199,'Chrono+Classement'!G:O,9,FALSE) ->  | N199: =IF(K199=17,Param!G199,IF(K199=28,Param!H199,IF(K199=45,Param!I199))) -> 00:00:40 | Q199: 1900 | R199: FALSE | S199: FALSE
A200: 199 | B200: - | G200: 115.4004107 | K200: 45 | L200: =VLOOKUP(A200,'Chrono+Classement'!G:O,5,FALSE) ->  | M200: =VLOOKUP(A200,'Chrono+Classement'!G:O,9,FALSE) ->  | N200: =IF(K200=17,Param!G200,IF(K200=28,Param!H200,IF(K200=45,Param!I200))) -> 00:00:40 | Q200: 1900 | R200: FALSE | S200: FALSE
... 800 more rows

Sheet 45 Scratch
A1: Classement | B1: Plaque | C1: NOM | D1: Prénom | E1: Sexe | F1: Age fin année | G1: Club | H1: Licence | I1: Categorie | J1: Circuit | K1: Classement | L1: Temps | M1: Ecart Départ | N1: Temps Réel | P1: Année | Q1: H | R1: F
A2: 1 | B2: 1 | C2: VASSAL | D2: Thibaut | E2: M | F2: 40.35318275 | G2: UV Mazamet | H2: FFC | I2: Masters 3/4 | J2: 45 | K2: 11 | L2: 02:11:41 | M2: 00:00:40 | N2: 02:11:01 | P2: 1975 | Q2: Masters 3/4 | R2: FALSE
A3: 2 | B3: 47 | C3: BORN | D3: Vivian | E3: M | F3: 19.09650924 | G3: VILLENEUVE Cycliste | H3: FFC | I3: Espoirs | J3: 45 | K3: 13 | L3: 02:13:47 | M3: 00:00:40 | N3: 02:13:07 | P3: 1996 | Q3: Espoirs | R3: FALSE
A4: 3 | B4: 20 | C4: FALOPPA | D4: Christophe | E4: M | F4: 33.55509925 | G4: TOAC | H4: FFC | I4: Masters 1/2 | J4: 45 | K4: 14 | L4: 02:16:59 | M4: 00:00:40 | N4: 02:16:19 | P4: 1981 | Q4: Masters 1/2 | R4: FALSE
A5: 4 | B5: 26 | C5: COUSTILLERES | D5: Christophe | E5: M | F5: 43.44695414 | G5: VC Castelmayran | H5: UFOLEP | I5: Masters 3/4 | J5: 45 | K5: 15 | L5: 02:19:11 | M5: 00:00:40 | N5: 02:18:31 | P5: 1971 | Q5: Masters 3/4 | R5: FALSE
A6: 5 | B6: 15 | C6: METRO | D6: Alex | E6: M | F6: 17.47570157 | G6: VILLENEUVE Cycliste | H6: FFC | I6: Juniors | J6: 45 | K6: 16 | L6: 02:20:41 | M6: 00:00:40 | N6: 02:20:01 | P6: 1997 | Q6: Juniors | R6: FALSE
A7: 6 | B7: 21 | C7: RIVALS | D7: Eric | E7: M | F7: 32.01916496 | G7: TOAC | H7: FFC | I7: Masters 1/2 | J7: 45 | K7: 17 | L7: 02:23:08 | M7: 00:00:40 | N7: 02:22:28 | P7: 1983 | Q7: Masters 1/2 | R7: FALSE
A8: 7 | B8: 2 | C8: PERUSIN | D8: Benjamin | E8: M | F8: 29.28952772 | G8: UVAGG | H8: FFC | I8: Hommes | J8: 45 | K8: 18 | L8: 02:23:43 | M8: 00:00:40 | N8: 02:23:03 | P8: 1986 | Q8: Hommes | R8: FALSE
A9: 8 | B9: 44 | C9: MATHIEU | D9: Sebastien | E9: M | F9: 33.63997262 | G9: VC Laissac | H9: FFC | I9: Masters 1/2 | J9: 45 | K9: 19 | L9: 02:25:57 | M9: 00:00:40 | N9: 02:25:17 | P9: 1981 | Q9: Masters 1/2 | R9: FALSE
A10: 9 | B10: 11 | C10: FOURNALES | D10: Olivier | E10: M | F10: 34.80903491 | G10: CAC | H10: FFC | I10: Masters 1/2 | J10: 45 | K10: 20 | L10: 02:26:23 | M10: 00:00:40 | N10: 02:25:43 | P10: 1980 | Q10: Masters 1/2 | R10: FALSE
A11: 10 | B11: 42 | C11: JOULIE | D11: Nicolas | E11: M | F11: 41.45106092 | G11: Muret | H11: FFC | I11: Masters 3/4 | J11: 45 | K11: 21 | L11: 02:27:52 | M11: 00:00:40 | N11: 02:27:12 | P11: 1973 | Q11: Masters 3/4 | R11: FALSE
A12: 11 | B12: 17 | C12: PECHBERRY | D12: Laurent | E12: M | F12: 45.30869268 | G12: LOURDES VTT | H12: FFC | I12: Masters 3/4 | J12: 45 | K12: 22 | L12: 02:28:21 | M12: 00:00:40 | N12: 02:27:41 | P12: 1970 | Q12: Masters 3/4 | R12: FALSE
A13: 12 | B13: 23 | C13: SERRES | D13: Benoit | E13: M | F13: 44.52019165 | G13: Velo Club Naucelle | H13: UFOLEP | I13: Masters 3/4 | J13: 45 | K13: 23 | L13: 02:28:31 | M13: 00:00:40 | N13: 02:27:51 | P13: 1970 | Q13: Masters 3/4 | R13: FALSE
A14: 13 | B14: 34 | C14: GAYRAL | D14: Michael | E14: M | F14: 22.74058864 | G14: VSM | H14: FFC | I14: Hommes | J14: 45 | K14: 24 | L14: 02:29:56 | M14: 00:00:40 | N14: 02:29:16 | P14: 1992 | Q14: Hommes | R14: FALSE
A15: 14 | B15: 39 | C15: BARCELO | D15: Thierry | E15: M | F15: 52.08487337 | G15: CPRS Pins Justaret | H15: FSGT | I15: Masters 5 | J15: 45 | K15: 25 | L15: 02:32:30 | M15: 00:00:40 | N15: 02:31:50 | P15: 1963 | Q15: Masters 5 | R15: FALSE
A16: 15 | B16: 28 | C16: FENASSE | D16: Damien | E16: M | F16: 20.54209446 | G16: TOAC | H16: FFC | I16: Espoirs | J16: 45 | K16: 26 | L16: 02:33:02 | M16: 00:00:40 | N16: 02:32:22 | P16: 1994 | Q16: Espoirs | R16: FALSE
A17: 16 | B17: 22 | C17: ROUANET | D17: Xavier | E17: M | F17: 39.24709103 | G17: Albi Velo Sport | H17: FFC | I17: Masters 1/2 | J17: 45 | K17: 27 | L17: 02:34:17 | M17: 00:00:40 | N17: 02:33:37 | P17: 1976 | Q17: Masters 1/2 | R17: FALSE
A18: 17 | B18: 32 | C18: DIAS SOEIRO | D18: Eric | E18: M | F18: 37.54140999 | G18: Cahors Cyclisme | H18: FFC | I18: Masters 1/2 | J18: 45 | K18: 28 | L18: 02:34:32 | M18: 00:00:40 | N18: 02:33:52 | P18: 1977 | Q18: Masters 1/2 | R18: FALSE
A19: 18 | B19: 38 | C19: PAGES | D19: Yves | E19: M | F19: 47.61670089 | G19: VTT Cornebarieu | H19: NL | I19: Masters 3/4 | J19: 45 | K19: 29 | L19: 02:34:47 | M19: 00:00:40 | N19: 02:34:07 | P19: 1967 | Q19: Masters 3/4 | R19: FALSE
A20: 19 | B20: 40 | C20: GAYRAUD | D20: Cédric | E20: M | F20: 32.1779603 | G20: APC | H20: UFOLEP | I20: Masters 1/2 | J20: 45 | K20: 30 | L20: 02:35:53 | M20: 00:00:40 | N20: 02:35:13 | P20: 1983 | Q20: Masters 1/2 | R20: FALSE
A21: 20 | B21: 14 | C21: NADEAU | D21: Frédéric | E21: M | F21: 30.45311431 | G21: CHEVREUILS VTT | H21: FFC | I21: Masters 1/2 | J21: 45 | K21: 31 | L21: 02:36:14 | M21: 00:00:40 | N21: 02:35:34 | P21: 1984 | Q21: Masters 1/2 | R21: FALSE
A22: 21 | B22: 18 | C22: DUPIN | D22: Damien | E22: M | F22: 21.72210815 | G22: Guidons Quercynois | H22: UFOLEP | I22: Espoirs | J22: 45 | K22: 32 | L22: 02:36:58 | M22: 00:00:40 | N22: 02:36:18 | P22: 1993 | Q22: Espoirs | R22: FALSE
A23: 22 | B23: 8 | C23: REMY | D23: Julien | E23: M | F23: 30.15195072 | G23: CA Castelsarasin | H23: FFC | I23: Masters 1/2 | J23: 45 | K23: 33 | L23: 02:37:01 | M23: 00:00:40 | N23: 02:36:21 | P23: 1985 | Q23: Masters 1/2 | R23: FALSE
A24: 23 | B24: 6 | C24: DELFINO | D24: Benjamin | E24: M | F24: 24.07392197 | G24: Vélo Club Moyenne Durance | H24: FFC | I24: Hommes | J24: 45 | K24: 34 | L24: 02:39:56 | M24: 00:00:40 | N24: 02:39:16 | P24: 1991 | Q24: Hommes | R24: FALSE
A25: 24 | B25: 13 | C25: BLOT | D25: Jean-Baptiste | E25: M | F25: 30.92128679 | G25: VTT Cornebarieu | H25: NL | I25: Masters 1/2 | J25: 45 | K25: 35 | L25: 02:44:45 | M25: 00:00:40 | N25: 02:44:05 | P25: 1984 | Q25: Masters 1/2 | R25: FALSE
A26: 25 | B26: 43 | C26: SIGOT | D26: François | E26: M | F26: 50.76796715 | G26: Muret | H26: FFC | I26: Masters 5 | J26: 45 | K26: 36 | L26: 02:44:53 | M26: 00:00:40 | N26: 02:44:13 | P26: 1964 | Q26: Masters 5 | R26: FALSE
A27: 26 | B27: 9 | C27: RAMOUSSE | D27: Arnaud | E27: M | F27: 42.82272416 | G27: CPRS Pins Justaret | H27: FSGT | I27: Masters 3/4 | J27: 45 | K27: 37 | L27: 02:51:06 | M27: 00:00:40 | N27: 02:50:26 | P27: 1972 | Q27: Masters 3/4 | R27: FALSE
A28: 27 | B28: 27 | C28: FENASSE | D28: Frederic | E28: M | F28: 50.45585216 | G28: TOAC | H28: FFC | I28: Masters 5 | J28: 45 | K28: 38 | L28: 02:51:16 | M28: 00:00:40 | N28: 02:50:36 | P28: 1964 | Q28: Masters 5 | R28: FALSE
A29: 28 | B29: 16 | C29: VILA | D29: Sébastien | E29: M | F29: 33.69199179 | G29: TOAC | H29: FFC | I29: Masters 1/2 | J29: 45 | K29: 39 | L29: 02:52:28 | M29: 00:00:40 | N29: 02:51:48 | P29: 1981 | Q29: Masters 1/2 | R29: FALSE
A30: 29 | B30: 12 | C30: PERRIE | D30: Mathieu | E30: M | F30: 28.05201916 | G30: TOAC | H30: FSGT | I30: Hommes | J30: 45 | K30: 41 | L30: 03:05:32 | M30: 00:00:40 | N30: 03:04:52 | P30: 1987 | Q30: Hommes | R30: FALSE
A31: 30 | B31: 30 | C31: GINESTE | D31: Antony | E31: M | F31: 23.95071869 | G31: VC Montauban | H31: FFC | I31: Hommes | J31: 45 | K31: 42 | L31: 03:12:48 | M31: 00:00:40 | N31: 03:12:08 | P31: 1991 | Q31: Hommes | R31: FALSE
A32: 31 | B32: 3 | C32: TAILLEFER | D32: Loïc | E32: M | F32: 24.45995893 | G32: TOAC | H32: FFC | I32: Hommes | J32: 45 | K32: 44 | L32: 03:14:25 | M32: 00:00:40 | N32: 03:13:45 | P32: 1990 | Q32: Hommes | R32: FALSE
A33: 32 | B33: 10 | C33: XIMENES | D33: Thibaut | E33: M | F33: 26.52156057 | H33: NL | I33: Hommes | J33: 45 | K33: 45 | L33: 03:14:50 | M33: 00:00:40 | N33: 03:14:10 | P33: 1988 | Q33: Hommes | R33: FALSE
A34: 33 | B34: 37 | C34: CARTRON | D34: Jacques | E34: M | F34: 47.88227242 | G34: Maillons Libres | H34: NL | I34: Masters 3/4 | J34: 45 | K34: 46 | L34: 03:15:54 | M34: 00:00:40 | N34: 03:15:14 | P34: 1967 | Q34: Masters 3/4 | R34: FALSE
A35: 34 | B35: 45 | C35: SIRGUE | D35: Jérome | E35: M | F35: 42.11909651 | G35: VC Laissac | H35: FFC | I35: Masters 3/4 | J35: 45 | K35: 47 | L35: 03:19:02 | M35: 00:00:40 | N35: 03:18:22 | P35: 1973 | Q35: Masters 3/4 | R35: FALSE
A36: 35 | B36: 33 | C36: VIGROOX | D36: Gaetan | E36: M | F36: 28.0164271 | G36: VTT Evasion | H36: FFC | I36: Hommes | J36: 45 | K36: 48 | L36: 03:19:11 | M36: 00:00:40 | N36: 03:18:31 | P36: 1987 | Q36: Hommes | R36: FALSE
A37: 36 | B37: 29 | C37: LARRIPA | D37: Bruno | E37: M | F37: 49.46475017 | G37: JURANCON | H37: UFOLEP | I37: Masters 5 | J37: 45 | K37: 49 | L37: 03:22:24 | M37: 00:00:40 | N37: 03:21:44 | P37: 1965 | Q37: Masters 5 | R37: FALSE
A38: 37 | B38: 7 | C38: PETIT | D38: François | E38: M | F38: 57.89459274 | G38: Les Renardeaux du bas Quercy | H38: FFCT | I38: Masters 5 | J38: 45 | K38: 50 | L38: 03:23:07 | M38: 00:00:40 | N38: 03:22:27 | P38: 1957 | Q38: Masters 5 | R38: FALSE
A39: 38 | B39: 4 | C39: LAPEYRE | D39: Martin | E39: M | F39: 30.53251198 | G39: TOAC | H39: FSGT | I39: Masters 1/2 | J39: 45 | K39: 51 | L39: 03:23:41 | M39: 00:00:40 | N39: 03:23:01 | P39: 1984 | Q39: Masters 1/2 | R39: FALSE
A40: 39 | B40: 5 | C40: PENDERIES | D40: Frédéric | E40: M | F40: 39.40041068 | G40: Team Racing Stephanois | H40: NL | I40: Masters 3/4 | J40: 45 | K40: 52 | L40: 03:27:23 | M40: 00:00:40 | N40: 03:26:43 | P40: 1975 | Q40: Masters 3/4 | R40: FALSE
A41: 40 | B41: 36 | C41: RALECHE | D41: Jean-Michel | E41: M | F41: 44.08761123 | H41: NL | I41: Masters 3/4 | J41: 45 | K41: 53 | L41: 03:31:07 | M41: 00:00:40 | N41: 03:30:27 | P41: 1971 | Q41: Masters 3/4 | R41: FALSE
A42: 41 | B42: 19 | C42: MONCASSIN | D42: Jonathan | E42: M | F42: 30.71594798 | G42: Tarbes Pyrennées Cuyclisme | H42: FSGT | I42: Masters 1/2 | J42: 45 | K42: 54 | L42: 03:33:39 | M42: 00:00:40 | N42: 03:32:59 | P42: 1984 | Q42: Masters 1/2 | R42: FALSE
A43: 42 | B43: 46 | C43: JOUVE | D43: Dominique | E43: M | F43: 53.7467488 | H43: NL | I43: Masters 5 | J43: 45 | K43: 55 | L43: 03:35:57 | M43: 00:00:40 | N43: 03:35:17 | P43: 1961 | Q43: Masters 5 | R43: FALSE
A44: 43 | B44: 41 | C44: NICE | D44: Stephane | E44: M | F44: 34.04791239 | H44: NL | I44: Masters 1/2 | J44: 45 | K44: 56 | L44: 03:45:41 | M44: 00:00:40 | N44: 03:45:01 | P44: 1981 | Q44: Masters 1/2 | R44: FALSE
A45: 44 | B45: 24 | C45: TACHON | D45: Bruno | E45: M | F45: 48.1670089 | G45: Vélo Club Villefranchois | H45: FSGT | I45: Masters 3/4 | J45: 45 | K45: 57 | L45: 03:53:11 | M45: 00:00:40 | N45: 03:52:31 | P45: 1967 | Q45: Masters 3/4 | R45: FALSE
A46: 45 | B46: 25 | C46: AUMAGY | D46: Nicolas | E46: M | F46: 30.29979466 | H46: NL | I46: Masters 1/2 | J46: 45 | K46: ABD | L46: ABD | M46: 00:00:40 | N46: ABD | P46: 1985 | Q46: Masters 1/2 | R46: FALSE
A47: 46 | B47: 31 | C47: ROCHE | D47: Damien | E47: M | F47: 34.45037645 | G47: Cahors Cyclisme | H47: FFC | I47: Masters 1/2 | J47: 45 | K47: ABD | L47: ABD | M47: 00:00:40 | N47: ABD | P47: 1980 | Q47: Masters 1/2 | R47: FALSE
A48: 47 | B48: 35 | C48: BARBANSON | D48: Xavier | E48: M | F48: 35.65776865 | G48: TOAC | H48: FSGT | I48: Masters 1/2 | J48: 45 | K48: ABD | L48: ABD | M48: 00:00:40 | N48: ABD | P48: 1979 | Q48: Masters 1/2 | R48: FALSE

Sheet 45 Espoirs
A1: Classement | B1: Plaque | C1: NOM | D1: Prénom | E1: Sexe | F1: Age fin année | G1: Club | H1: Licence | I1: Categorie | J1: Circuit | K1: Classement | L1: Temps | M1: Ecart Départ | N1: Temps Réel | P1: Année | Q1: H | R1: F
A2: 1 | B2: 47 | C2: BORN | D2: Vivian | E2: M | F2: 19.09650924 | G2: VILLENEUVE Cycliste | H2: FFC | I2: Espoirs | J2: 45 | K2: 13 | L2: 02:13:47 | M2: 00:00:40 | N2: 02:13:07 | P2: 1996 | Q2: Espoirs | R2: FALSE
A3: 2 | B3: 28 | C3: FENASSE | D3: Damien | E3: M | F3: 20.54209446 | G3: TOAC | H3: FFC | I3: Espoirs | J3: 45 | K3: 26 | L3: 02:33:02 | M3: 00:00:40 | N3: 02:32:22 | P3: 1994 | Q3: Espoirs | R3: FALSE
A4: 3 | B4: 18 | C4: DUPIN | D4: Damien | E4: M | F4: 21.72210815 | G4: Guidons Quercynois | H4: UFOLEP | I4: Espoirs | J4: 45 | K4: 32 | L4: 02:36:58 | M4: 00:00:40 | N4: 02:36:18 | P4: 1993 | Q4: Espoirs | R4: FALSE

Sheet 45 Hommes
A1: Classement | B1: Plaque | C1: NOM | D1: Prénom | E1: Sexe | F1: Age fin année | G1: Club | H1: Licence | I1: Categorie | J1: Circuit | K1: Classement | L1: Temps | M1: Ecart Départ | N1: Temps Réel | P1: Année | Q1: H | R1: F
A2: 1 | B2: 2 | C2: PERUSIN | D2: Benjamin | E2: M | F2: 29.28952772 | G2: UVAGG | H2: FFC | I2: Hommes | J2: 45 | K2: 18 | L2: 02:23:43 | M2: 00:00:40 | N2: 02:23:03 | P2: 1986 | Q2: Hommes | R2: FALSE
A3: 2 | B3: 34 | C3: GAYRAL | D3: Michael | E3: M | F3: 22.74058864 | G3: VSM | H3: FFC | I3: Hommes | J3: 45 | K3: 24 | L3: 02:29:56 | M3: 00:00:40 | N3: 02:29:16 | P3: 1992 | Q3: Hommes | R3: FALSE
A4: 3 | B4: 6 | C4: DELFINO | D4: Benjamin | E4: M | F4: 24.07392197 | G4: Vélo Club Moyenne Durance | H4: FFC | I4: Hommes | J4: 45 | K4: 34 | L4: 02:39:56 | M4: 00:00:40 | N4: 02:39:16 | P4: 1991 | Q4: Hommes | R4: FALSE
A5: 4 | B5: 12 | C5: PERRIE | D5: Mathieu | E5: M | F5: 28.05201916 | G5: TOAC | H5: FSGT | I5: Hommes | J5: 45 | K5: 41 | L5: 03:05:32 | M5: 00:00:40 | N5: 03:04:52 | P5: 1987 | Q5: Hommes | R5: FALSE
A6: 5 | B6: 30 | C6: GINESTE | D6: Antony | E6: M | F6: 23.95071869 | G6: VC Montauban | H6: FFC | I6: Hommes | J6: 45 | K6: 42 | L6: 03:12:48 | M6: 00:00:40 | N6: 03:12:08 | P6: 1991 | Q6: Hommes | R6: FALSE
A7: 6 | B7: 3 | C7: TAILLEFER | D7: Loïc | E7: M | F7: 24.45995893 | G7: TOAC | H7: FFC | I7: Hommes | J7: 45 | K7: 44 | L7: 03:14:25 | M7: 00:00:40 | N7: 03:13:45 | P7: 1990 | Q7: Hommes | R7: FALSE
A8: 7 | B8: 10 | C8: XIMENES | D8: Thibaut | E8: M | F8: 26.52156057 | H8: NL | I8: Hommes | J8: 45 | K8: 45 | L8: 03:14:50 | M8: 00:00:40 | N8: 03:14:10 | P8: 1988 | Q8: Hommes | R8: FALSE
A9: 8 | B9: 33 | C9: VIGROOX | D9: Gaetan | E9: M | F9: 28.0164271 | G9: VTT Evasion | H9: FFC | I9: Hommes | J9: 45 | K9: 48 | L9: 03:19:11 | M9: 00:00:40 | N9: 03:18:31 | P9: 1987 | Q9: Hommes | R9: FALSE

Sheet 45 Juniors
A1: Classement | B1: Plaque | C1: NOM | D1: Prénom | E1: Sexe | F1: Age fin année | G1: Club | H1: Licence | I1: Categorie | J1: Circuit | K1: Classement | L1: Temps | M1: Ecart Départ | N1: Temps Réel | P1: Année | Q1: H | R1: F
A2: 1 | B2: 15 | C2: METRO | D2: Alex | E2: M | F2: 17.47570157 | G2: VILLENEUVE Cycliste | H2: FFC | I2: Juniors | J2: 45 | K2: 16 | L2: 02:20:41 | M2: 00:00:40 | N2: 02:20:01 | P2: 1997 | Q2: Juniors | R2: FALSE

Sheet 45 Masters1-2
A1: Classement | B1: Plaque | C1: NOM | D1: Prénom | E1: Sexe | F1: Age fin année | G1: Club | H1: Licence | I1: Categorie | J1: Circuit | K1: Classement | L1: Temps | M1: Ecart Départ | N1: Temps Réel | P1: Année | Q1: H | R1: F
A2: 1 | B2: 20 | C2: FALOPPA | D2: Christophe | E2: M | F2: 33.55509925 | G2: TOAC | H2: FFC | I2: Masters 1/2 | J2: 45 | K2: 14 | L2: 02:16:59 | M2: 00:00:40 | N2: 02:16:19 | P2: 1981 | Q2: Masters 1/2 | R2: FALSE
A3: 2 | B3: 21 | C3: RIVALS | D3: Eric | E3: M | F3: 32.01916496 | G3: TOAC | H3: FFC | I3: Masters 1/2 | J3: 45 | K3: 17 | L3: 02:23:08 | M3: 00:00:40 | N3: 02:22:28 | P3: 1983 | Q3: Masters 1/2 | R3: FALSE
A4: 3 | B4: 44 | C4: MATHIEU | D4: Sebastien | E4: M | F4: 33.63997262 | G4: VC Laissac | H4: FFC | I4: Masters 1/2 | J4: 45 | K4: 19 | L4: 02:25:57 | M4: 00:00:40 | N4: 02:25:17 | P4: 1981 | Q4: Masters 1/2 | R4: FALSE
A5: 4 | B5: 11 | C5: FOURNALES | D5: Olivier | E5: M | F5: 34.80903491 | G5: CAC | H5: FFC | I5: Masters 1/2 | J5: 45 | K5: 20 | L5: 02:26:23 | M5: 00:00:40 | N5: 02:25:43 | P5: 1980 | Q5: Masters 1/2 | R5: FALSE
A6: 5 | B6: 22 | C6: ROUANET | D6: Xavier | E6: M | F6: 39.24709103 | G6: Albi Velo Sport | H6: FFC | I6: Masters 1/2 | J6: 45 | K6: 27 | L6: 02:34:17 | M6: 00:00:40 | N6: 02:33:37 | P6: 1976 | Q6: Masters 1/2 | R6: FALSE
A7: 6 | B7: 32 | C7: DIAS SOEIRO | D7: Eric | E7: M | F7: 37.54140999 | G7: Cahors Cyclisme | H7: FFC | I7: Masters 1/2 | J7: 45 | K7: 28 | L7: 02:34:32 | M7: 00:00:40 | N7: 02:33:52 | P7: 1977 | Q7: Masters 1/2 | R7: FALSE
A8: 7 | B8: 40 | C8: GAYRAUD | D8: Cédric | E8: M | F8: 32.1779603 | G8: APC | H8: UFOLEP | I8: Masters 1/2 | J8: 45 | K8: 30 | L8: 02:35:53 | M8: 00:00:40 | N8: 02:35:13 | P8: 1983 | Q8: Masters 1/2 | R8: FALSE
A9: 8 | B9: 14 | C9: NADEAU | D9: Frédéric | E9: M | F9: 30.45311431 | G9: CHEVREUILS VTT | H9: FFC | I9: Masters 1/2 | J9: 45 | K9: 31 | L9: 02:36:14 | M9: 00:00:40 | N9: 02:35:34 | P9: 1984 | Q9: Masters 1/2 | R9: FALSE
A10: 9 | B10: 8 | C10: REMY | D10: Julien | E10: M | F10: 30.15195072 | G10: CA Castelsarasin | H10: FFC | I10: Masters 1/2 | J10: 45 | K10: 33 | L10: 02:37:01 | M10: 00:00:40 | N10: 02:36:21 | P10: 1985 | Q10: Masters 1/2 | R10: FALSE
A11: 10 | B11: 13 | C11: BLOT | D11: Jean-Baptiste | E11: M | F11: 30.92128679 | G11: VTT Cornebarieu | H11: NL | I11: Masters 1/2 | J11: 45 | K11: 35 | L11: 02:44:45 | M11: 00:00:40 | N11: 02:44:05 | P11: 1984 | Q11: Masters 1/2 | R11: FALSE
A12: 11 | B12: 16 | C12: VILA | D12: Sébastien | E12: M | F12: 33.69199179 | G12: TOAC | H12: FFC | I12: Masters 1/2 | J12: 45 | K12: 39 | L12: 02:52:28 | M12: 00:00:40 | N12: 02:51:48 | P12: 1981 | Q12: Masters 1/2 | R12: FALSE
A13: 12 | B13: 4 | C13: LAPEYRE | D13: Martin | E13: M | F13: 30.53251198 | G13: TOAC | H13: FSGT | I13: Masters 1/2 | J13: 45 | K13: 51 | L13: 03:23:41 | M13: 00:00:40 | N13: 03:23:01 | P13: 1984 | Q13: Masters 1/2 | R13: FALSE
A14: 13 | B14: 19 | C14: MONCASSIN | D14: Jonathan | E14: M | F14: 30.71594798 | G14: Tarbes Pyrennées Cuyclisme | H14: FSGT | I14: Masters 1/2 | J14: 45 | K14: 54 | L14: 03:33:39 | M14: 00:00:40 | N14: 03:32:59 | P14: 1984 | Q14: Masters 1/2 | R14: FALSE
A15: 14 | B15: 41 | C15: NICE | D15: Stephane | E15: M | F15: 34.04791239 | H15: NL | I15: Masters 1/2 | J15: 45 | K15: 56 | L15: 03:45:41 | M15: 00:00:40 | N15: 03:45:01 | P15: 1981 | Q15: Masters 1/2 | R15: FALSE
A16: 15 | B16: 25 | C16: AUMAGY | D16: Nicolas | E16: M | F16: 30.29979466 | H16: NL | I16: Masters 1/2 | J16: 45 | K16: ABD | L16: ABD | M16: 00:00:40 | N16: ABD | P16: 1985 | Q16: Masters 1/2 | R16: FALSE
A17: 16 | B17: 31 | C17: ROCHE | D17: Damien | E17: M | F17: 34.45037645 | G17: Cahors Cyclisme | H17: FFC | I17: Masters 1/2 | J17: 45 | K17: ABD | L17: ABD | M17: 00:00:40 | N17: ABD | P17: 1980 | Q17: Masters 1/2 | R17: FALSE
A18: 17 | B18: 35 | C18: BARBANSON | D18: Xavier | E18: M | F18: 35.65776865 | G18: TOAC | H18: FFC | I18: Masters 1/2 | J18: 45 | K18: ABD | L18: ABD | M18: 00:00:40 | N18: ABD | P18: 1979 | Q18: Masters 1/2 | R18: FALSE

Sheet 45 Master3-4
A1: Classement | B1: Plaque | C1: NOM | D1: Prénom | E1: Sexe | F1: Age fin année | G1: Club | H1: Licence | I1: Categorie | J1: Circuit | K1: Classement | L1: Temps | M1: Ecart Départ | N1: Temps Réel | P1: Année | Q1: H | R1: F
A2: 1 | B2: 1 | C2: VASSAL | D2: Thibaut | E2: M | F2: 40.35318275 | G2: UV Mazamet | H2: FFC | I2: Masters 3/4 | J2: 45 | K2: 11 | L2: 02:11:41 | M2: 00:00:40 | N2: 02:11:01 | P2: 1975 | Q2: Masters 3/4 | R2: FALSE
A3: 2 | B3: 26 | C3: COUSTILLERES | D3: Christophe | E3: M | F3: 43.44695414 | G3: VC Castelmayran | H3: UFOLEP | I3: Masters 3/4 | J3: 45 | K3: 15 | L3: 02:19:11 | M3: 00:00:40 | N3: 02:18:31 | P3: 1971 | Q3: Masters 3/4 | R3: FALSE
A4: 3 | B4: 42 | C4: JOULIE | D4: Nicolas | E4: M | F4: 41.45106092 | G4: Muret | H4: FFC | I4: Masters 3/4 | J4: 45 | K4: 21 | L4: 02:27:52 | M4: 00:00:40 | N4: 02:27:12 | P4: 1973 | Q4: Masters 3/4 | R4: FALSE
A5: 4 | B5: 17 | C5: PECHBERRY | D5: Laurent | E5: M | F5: 45.30869268 | G5: LOURDES VTT | H5: FFC | I5: Masters 3/4 | J5: 45 | K5: 22 | L5: 02:28:21 | M5: 00:00:40 | N5: 02:27:41 | P5: 1970 | Q5: Masters 3/4 | R5: FALSE
A6: 5 | B6: 23 | C6: SERRES | D6: Benoit | E6: M | F6: 44.52019165 | G6: Velo Club Naucelle | H6: UFOLEP | I6: Masters 3/4 | J6: 45 | K6: 23 | L6: 02:28:31 | M6: 00:00:40 | N6: 02:27:51 | P6: 1970 | Q6: Masters 3/4 | R6: FALSE
A7: 6 | B7: 38 | C7: PAGES | D7: Yves | E7: M | F7: 47.61670089 | G7: VTT Cornebarieu | H7: NL | I7: Masters 3/4 | J7: 45 | K7: 29 | L7: 02:34:47 | M7: 00:00:40 | N7: 02:34:07 | P7: 1967 | Q7: Masters 3/4 | R7: FALSE
A8: 7 | B8: 9 | C8: RAMOUSSE | D8: Arnaud | E8: M | F8: 42.82272416 | G8: CPRS Pins Justaret | H8: FSGT | I8: Masters 3/4 | J8: 45 | K8: 37 | L8: 02:51:06 | M8: 00:00:40 | N8: 02:50:26 | P8: 1972 | Q8: Masters 3/4 | R8: FALSE
A9: 8 | B9: 37 | C9: CARTRON | D9: Jacques | E9: M | F9: 47.88227242 | G9: Maillons Libres | H9: NL | I9: Masters 3/4 | J9: 45 | K9: 46 | L9: 03:15:54 | M9: 00:00:40 | N9: 03:15:14 | P9: 1967 | Q9: Masters 3/4 | R9: FALSE
A10: 9 | B10: 45 | C10: SIRGUE | D10: Jérome | E10: M | F10: 42.11909651 | G10: VC Laissac | H10: FFC | I10: Masters 3/4 | J10: 45 | K10: 47 | L10: 03:19:02 | M10: 00:00:40 | N10: 03:18:22 | P10: 1973 | Q10: Masters 3/4 | R10: FALSE
A11: 10 | B11: 5 | C11: PENDERIES | D11: Frédéric | E11: M | F11: 39.40041068 | G11: Team Racing Stephanois | H11: NL | I11: Masters 3/4 | J11: 45 | K11: 52 | L11: 03:27:23 | M11: 00:00:40 | N11: 03:26:43 | P11: 1975 | Q11: Masters 3/4 | R11: FALSE
A12: 11 | B12: 36 | C12: RALECHE | D12: Jean-Michel | E12: M | F12: 44.08761123 | H12: NL | I12: Masters 3/4 | J12: 45 | K12: 53 | L12: 03:31:07 | M12: 00:00:40 | N12: 03:30:27 | P12: 1971 | Q12: Masters 3/4 | R12: FALSE
A13: 12 | B13: 24 | C13: TACHON | D13: Bruno | E13: M | F13: 48.1670089 | G13: Vélo Club Villefranchois | H13: FSGT | I13: Masters 3/4 | J13: 45 | K13: 57 | L13: 03:53:11 | M13: 00:00:40 | N13: 03:52:31 | P13: 1967 | Q13: Masters 3/4 | R13: FALSE

Sheet 45 Master5
A1: Classement | B1: Plaque | C1: NOM | D1: Prénom | E1: Sexe | F1: Age fin année | G1: Club | H1: Licence | I1: Categorie | J1: Circuit | K1: Classement | L1: Temps | M1: Ecart Départ | N1: Temps Réel | P1: Année | Q1: H | R1: F
A2: 1 | B2: 39 | C2: BARCELO | D2: Thierry | E2: M | F2: 52.08487337 | G2: CPRS Pins Justaret | H2: FSGT | I2: Masters 5 | J2: 45 | K2: 25 | L2: 02:32:30 | M2: 00:00:40 | N2: 02:31:50 | P2: 1963 | Q2: Masters 5 | R2: FALSE
A3: 2 | B3: 43 | C3: SIGOT | D3: François | E3: M | F3: 50.76796715 | G3: Muret | H3: FFC | I3: Masters 5 | J3: 45 | K3: 36 | L3: 02:44:53 | M3: 00:00:40 | N3: 02:44:13 | P3: 1964 | Q3: Masters 5 | R3: FALSE
A4: 3 | B4: 27 | C4: FENASSE | D4: Frederic | E4: M | F4: 50.45585216 | G4: TOAC | H4: FFC | I4: Masters 5 | J4: 45 | K4: 38 | L4: 02:51:16 | M4: 00:00:40 | N4: 02:50:36 | P4: 1964 | Q4: Masters 5 | R4: FALSE
A5: 4 | B5: 29 | C5: LARRIPA | D5: Bruno | E5: M | F5: 49.46475017 | G5: JURANCON | H5: UFOLEP | I5: Masters 5 | J5: 45 | K5: 49 | L5: 03:22:24 | M5: 00:00:40 | N5: 03:21:44 | P5: 1965 | Q5: Masters 5 | R5: FALSE
A6: 5 | B6: 7 | C6: PETIT | D6: François | E6: M | F6: 57.89459274 | G6: Les Renardeaux du bas Quercy | H6: FFCT | I6: Masters 5 | J6: 45 | K6: 50 | L6: 03:23:07 | M6: 00:00:40 | N6: 03:22:27 | P6: 1957 | Q6: Masters 5 | R6: FALSE
A7: 6 | B7: 46 | C7: JOUVE | D7: Dominique | E7: M | F7: 53.7467488 | H7: NL | I7: Masters 5 | J7: 45 | K7: 55 | L7: 03:35:57 | M7: 00:00:40 | N7: 03:35:17 | P7: 1961 | Q7: Masters 5 | R7: FALSE

Sheet 28 Scratch
A1: Classement | B1: Plaque | C1: NOM | D1: Prénom | E1: Sexe | F1: Age fin année | G1: Club | H1: Licence | I1: Categorie | J1: Circuit | K1: Classement | L1: Temps | M1: Ecart Départ | N1: Temps Réel | P1: Année | Q1: H | R1: F
A2: 1 | B2: 403 | C2: BIBET | D2: Laurent | E2: M | F2: 42.50239562 | G2: ALBI Velo Sport | H2: FFC | I2: Masters 3/4 | J2: 28 | K2: 1 | L2: 01:26:55 | M2: 00:00:42 | N2: 01:26:13 | P2: 1972 | Q2: Masters 3/4 | R2: FALSE
A3: 2 | B3: 407 | C3: PASQUET | D3: Daniel | E3: M | F3: 50.73237509 | G3: Les ZACCROS | H3: FFC | I3: Masters 5 | J3: 28 | K3: 2 | L3: 01:28:32 | M3: 00:00:42 | N3: 01:27:50 | P3: 1964 | Q3: Masters 5 | R3: FALSE
A4: 3 | B4: 402 | C4: CONFOLENS | D4: Eric | E4: M | F4: 43.12388775 | G4: CHEVREUILS VTT | H4: FFC | I4: Masters 3/4 | J4: 28 | K4: 3 | L4: 01:31:55 | M4: 00:00:42 | N4: 01:31:13 | P4: 1972 | Q4: Masters 3/4 | R4: FALSE
A5: 4 | B5: 413 | C5: DELAHAYE | D5: Fabrice | E5: M | F5: 39.58384668 | G5: VCRO | H5: FSGT | I5: Masters 3/4 | J5: 28 | K5: 4 | L5: 01:31:57 | M5: 00:00:42 | N5: 01:31:15 | P5: 1975 | Q5: Masters 3/4 | R5: FALSE
A6: 5 | B6: 411 | C6: LIABAT | D6: Stéphane | E6: M | F6: 41.93292266 | G6: VC Graulhet | H6: FFC | I6: Masters 3/4 | J6: 28 | K6: 5 | L6: 01:41:04 | M6: 00:00:42 | N6: 01:40:22 | P6: 1973 | Q6: Masters 3/4 | R6: FALSE
A7: 6 | B7: 408 | C7: COSTES | D7: Joel | E7: M | F7: 49.99589322 | G7: Marssac Aventure | H7: FFC | I7: Masters 5 | J7: 28 | K7: 6 | L7: 01:43:05 | M7: 00:00:42 | N7: 01:42:23 | P7: 1965 | Q7: Masters 5 | R7: FALSE
A8: 7 | B8: 410 | C8: CUBURY | D8: Thierry | E8: M | F8: 49.44558522 | G8: TOAC | H8: FFC | I8: Masters 5 | J8: 28 | K8: 7 | L8: 01:49:06 | M8: 00:00:42 | N8: 01:48:24 | P8: 1965 | Q8: Masters 5 | R8: FALSE
A9: 8 | B9: 409 | C9: TEYSSIER | D9: Eric | E9: M | F9: 47.69609856 | H9: NL | I9: Masters 3/4 | J9: 28 | K9: 8 | L9: 01:50:53 | M9: 00:00:42 | N9: 01:50:11 | P9: 1967 | Q9: Masters 3/4 | R9: FALSE
A10: 9 | B10: 406 | C10: FAGEDET | D10: Pascal | E10: M | F10: 49.7357974 | G10: CASTELNAU Cyclo Club | H10: FSGT | I10: Masters 5 | J10: 28 | K10: 9 | L10: 01:53:18 | M10: 00:00:42 | N10: 01:52:36 | P10: 1965 | Q10: Masters 5 | R10: FALSE
A11: 10 | B11: 400 | C11: SANCHEZ | D11: Mathias | E11: M | F11: 17.43189596 | G11: US Fronton | H11: FFC | I11: Juniors | J11: 28 | K11: 10 | L11: 02:07:38 | M11: 00:00:42 | N11: 02:06:56 | P11: 1997 | Q11: Juniors | R11: FALSE
A12: 11 | B12: 401 | C12: CHAUVET | D12: Clara | E12: F | F12: 26.25051335 | H12: NL | I12: Dames | J12: 28 | K12: 12 | L12: 02:11:47 | M12: 00:00:42 | N12: 02:11:05 | P12: 1989 | Q12: FALSE | R12: Dames
A13: 12 | B13: 412 | C13: TURON | D13: David | E13: M | F13: 41.04312115 | H13: NL | I13: Masters 3/4 | J13: 28 | K13: 40 | L13: 03:03:34 | M13: 00:00:42 | N13: 03:02:52 | P13: 1974 | Q13: Masters 3/4 | R13: FALSE
A14: 13 | B14: 404 | C14: SIRVEN | D14: Patrick | E14: M | F14: 51.45516769 | H14: NL | I14: Masters 5 | J14: 28 | K14: 43 | L14: 03:14:19 | M14: 00:00:42 | N14: 03:13:37 | P14: 1963 | Q14: Masters 5 | R14: FALSE

Sheet 28 Juniors
A1: Classement | B1: Plaque | C1: NOM | D1: Prénom | E1: Sexe | F1: Age fin année | G1: Club | H1: Licence | I1: Categorie | J1: Circuit | K1: Classement | L1: Temps | M1: Ecart Départ | N1: Temps Réel | P1: Année | Q1: H | R1: F
A2: 1 | B2: 400 | C2: SANCHEZ | D2: Mathias | E2: M | F2: 17.43189596 | G2: US Fronton | H2: FFC | I2: Juniors | J2: 28 | K2: 10 | L2: 02:07:38 | M2: 00:00:42 | N2: 02:06:56 | P2: 1997 | Q2: Juniors | R2: FALSE

Sheet 28 Dames
A1: Classement | B1: Plaque | C1: NOM | D1: Prénom | E1: Sexe | F1: Age fin année | G1: Club | H1: Licence | I1: Categorie | J1: Circuit | K1: Classement | L1: Temps | M1: Ecart Départ | N1: Temps Réel | P1: Année | Q1: H | R1: F
A2: 1 | B2: 401 | C2: CHAUVET | D2: Clara | E2: F | F2: 26.25051335 | H2: NL | I2: Dames | J2: 28 | K2: 12 | L2: 02:11:47 | M2: 00:00:42 | N2: 02:11:05 | P2: 1989 | Q2: FALSE | R2: Dames

Sheet 28 Masters3-4
A1: Classement | B1: Plaque | C1: NOM | D1: Prénom | E1: Sexe | F1: Club | G1: Licence | H1: Categorie | I1: Circuit | J1: Classement | K1: Temps | L1: Ecart Départ | M1: Temps Réel | O1: Année | P1: H | Q1: F
A2: 1 | B2: 403 | C2: BIBET | D2: Laurent | E2: M | F2: ALBI Velo Sport | G2: FFC | H2: Masters 3/4 | I2: 28 | J2: 1 | K2: 01:26:55 | L2: 00:00:42 | M2: 01:26:13 | O2: 1972 | P2: Masters 3/4 | Q2: FALSE
A3: 2 | B3: 402 | C3: CONFOLENS | D3: Eric | E3: M | F3: CHEVREUILS VTT | G3: FFC | H3: Masters 3/4 | I3: 28 | J3: 3 | K3: 01:31:55 | L3: 00:00:42 | M3: 01:31:13 | O3: 1972 | P3: Masters 3/4 | Q3: FALSE
A4: 3 | B4: 413 | C4: DELAHAYE | D4: Fabrice | E4: M | F4: VCRO | G4: FSGT | H4: Masters 3/4 | I4: 28 | J4: 4 | K4: 01:31:57 | L4: 00:00:42 | M4: 01:31:15 | O4: 1975 | P4: Masters 3/4 | Q4: FALSE
A5: 4 | B5: 411 | C5: LIABAT | D5: Stéphane | E5: M | F5: VC Graulhet | G5: FFC | H5: Masters 3/4 | I5: 28 | J5: 5 | K5: 01:41:04 | L5: 00:00:42 | M5: 01:40:22 | O5: 1973 | P5: Masters 3/4 | Q5: FALSE
A6: 5 | B6: 409 | C6: TEYSSIER | D6: Eric | E6: M | G6: NL | H6: Masters 3/4 | I6: 28 | J6: 8 | K6: 01:50:53 | L6: 00:00:42 | M6: 01:50:11 | O6: 1967 | P6: Masters 3/4 | Q6: FALSE
A7: 6 | B7: 412 | C7: TURON | D7: David | E7: M | G7: NL | H7: Masters 3/4 | I7: 28 | J7: 40 | K7: 03:03:34 | L7: 00:00:42 | M7: 03:02:52 | O7: 1974 | P7: Masters 3/4 | Q7: FALSE

Sheet 28 Masters5
A1: Classement | B1: Plaque | C1: NOM | D1: Prénom | E1: Sexe | F1: Age fin année | G1: Club | H1: Licence | I1: Categorie | J1: Circuit | K1: Classement | L1: Temps | M1: Ecart Départ | N1: Temps Réel | P1: Année | Q1: H | R1: F
A2: 1 | B2: 407 | C2: PASQUET | D2: Daniel | E2: M | F2: 50.73237509 | G2: Les ZACCROS | H2: FFC | I2: Masters 5 | J2: 28 | K2: 2 | L2: 01:28:32 | M2: 00:00:42 | N2: 01:27:50 | P2: 1964 | Q2: Masters 5 | R2: FALSE
A3: 2 | B3: 408 | C3: COSTES | D3: Joel | E3: M | F3: 49.99589322 | G3: Marssac Aventure | H3: FFC | I3: Masters 5 | J3: 28 | K3: 6 | L3: 01:43:05 | M3: 00:00:42 | N3: 01:42:23 | P3: 1965 | Q3: Masters 5 | R3: FALSE
A4: 3 | B4: 410 | C4: CUBURY | D4: Thierry | E4: M | F4: 49.44558522 | G4: TOAC | H4: FFC | I4: Masters 5 | J4: 28 | K4: 7 | L4: 01:49:06 | M4: 00:00:42 | N4: 01:48:24 | P4: 1965 | Q4: Masters 5 | R4: FALSE
A5: 4 | B5: 406 | C5: FAGEDET | D5: Pascal | E5: M | F5: 49.7357974 | G5: CASTELNAU Cyclo Club | H5: FSGT | I5: Masters 5 | J5: 28 | K5: 9 | L5: 01:53:18 | M5: 00:00:42 | N5: 01:52:36 | P5: 1965 | Q5: Masters 5 | R5: FALSE
A6: 5 | B6: 404 | C6: SIRVEN | D6: Patrick | E6: M | F6: 51.45516769 | H6: NL | I6: Masters 5 | J6: 28 | K6: 43 | L6: 03:14:19 | M6: 00:00:42 | N6: 03:13:37 | P6: 1963 | Q6: Masters 5 | R6: FALSE
